Workbook

Sheet Overview
D1: Team Results from the 2020 Virtual Blackcap race in memory of Chris Smith
D3: Winners - BRIGHTON PHOENIX
D5: Team Times (each M U45, U60, O60 ; F U45, U60, O60 - with substitutes/adjusts)
D7: Team | E7: A | F7: B | G7: C | H7: D | I7: E | J7: F | K7: G | L7: H | M7: I
D8: Club
D9: HHH | E9: =HHH!AD4 -> 0.1553126157 | F9: =HHH!AE4 -> 0.1641519259 | G9: =HHH!AF4 -> 0.1700868704 | H9: =HHH!AG4 -> 0.1730433919 | I9: =HHH!AH4 -> 0.1800614931 | J9: =HHH!AI4 -> 0.1824876505 | K9: =HHH!AJ4 -> 0.1915498148 | L9: =HHH!AK4 -> 0.1872700231
D10: Lewes | E10: =LewesAC!Z4 -> 0.1591898148 | F10: =LewesAC!AA4 -> 0.1703587963 | G10: =LewesAC!AB4 -> 0.1751040556 | H10: =LewesAC!AC4 -> 0.1867102963 | I10: =LewesAC!AD4 -> 0.1882233796 | J10: =LewesAC!AE4 -> 0.2013253617
D11: Phoenix | E11: =Phoenix!AF4 -> 0.1513078704 | F11: =Phoenix!AG4 -> 0.1567571667 | G11: =Phoenix!AH4 -> 0.1637153333 | H11: =Phoenix!AI4 -> 0.1706122037 | I11: =Phoenix!AJ4 -> 0.1759850926 | J11: =Phoenix!AK4 -> 0.1787836686 | K11: =Phoenix!AL4 -> 0.1944383194 | L11: =Phoenix!AM4 -> 0.2101174769 | M11: =Phoenix!AN4 -> 0.1831155482
D12: BHR | E12: =BHR!X4 -> 0.1761458333 | F12: =BHR!Y4 -> 0.2045601852 | G12: =BHR!Z4 -> 0.2073661296 | H12: =BHR!AA4 -> 0.2422626852
D14: Rank each category | O14: Rank 1 Count
D15: HHH | E15: =RANK(E9,E$9:E$12,1) -> 2 | F15: =RANK(F9,F$9:F$12,1) -> 2 | G15: 2 | H15: 2 | I15: 2 | J15: 2 | K15: 1 | L15: =RANK(L9,L$9:L$12,1) -> 1 | O15: =COUNTIF(E15:M15,1) -> 2
D16: Lewes | E16: =RANK(E10,E$9:E$12,1) -> 3 | F16: 3 | G16: 3 | H16: 3 | I16: 3 | J16: 3 | L16: =RANK(L10,L$9:L$12,1) ->  | O16: =COUNTIF(E16:M16,1) -> 0
D17: Phoenix | E17: 1 | F17: 1 | G17: 1 | H17: 1 | I17: 1 | J17: 1 | K17: 2 | L17: =RANK(L11,L$9:L$12,1) -> 2 | M17: 1 | O17: 7
D18: BHR | E18: 4 | F18: 4 | G18: 4 | H18: 4 | L18: =RANK(L12,L$9:L$12,1) ->  | O18: 0
D20: Runners
H21: all Clubs | J21: HHH | K21: Lewes | L21: PHX | M21: BHR
D22: HHH | E22: =COUNTIF(Individual!$AA$7:$AA$160,Overview!D22) -> 44 | G22: F S | H22: =COUNTIF(Individual!$AD$7:$AD$160,Overview!G22) -> 27 | J22: =SUM((J$21=Individual!$AA$8:$AA$160)*(Overview!$G22=Individual!$AD$8:$AD$160)) -> 8 | K22: =SUM((K$21=Individual!$AA$8:$AA$160)*(Overview!$G22=Individual!$AD$8:$AD$160)) -> 4 | L22: =SUM((L$21=Individual!$AA$8:$AA$160)*(Overview!$G22=Individual!$AD$8:$AD$160)) -> 11 | M22: =SUM((M$21=Individual!$AA$8:$AA$160)*(Overview!$G22=Individual!$AD$8:$AD$160)) -> 4
D23: Lewes | E23: =COUNTIF(Individual!$AA$7:$AA$160,Overview!D23) -> 36 | G23: M S | H23: =COUNTIF(Individual!$AD$7:$AD$160,Overview!G23) -> 30 | J23: =SUM((J$21=Individual!$AA$8:$AA$160)*(Overview!$G23=Individual!$AD$8:$AD$160)) -> 13 | K23: =SUM((K$21=Individual!$AA$8:$AA$160)*(Overview!$G23=Individual!$AD$8:$AD$160)) -> 1 | L23: =SUM((L$21=Individual!$AA$8:$AA$160)*(Overview!$G23=Individual!$AD$8:$AD$160)) -> 10 | M23: =SUM((M$21=Individual!$AA$8:$AA$160)*(Overview!$G23=Individual!$AD$8:$AD$160)) -> 6
D24: PHX | E24: =COUNTIF(Individual!$AA$7:$AA$160,Overview!D24) -> 50 | G24: F V | H24: =COUNTIF(Individual!$AD$7:$AD$160,Overview!G24) -> 20 | J24: =SUM((J$21=Individual!$AA$8:$AA$160)*(Overview!$G24=Individual!$AD$8:$AD$160)) -> 5 | K24: =SUM((K$21=Individual!$AA$8:$AA$160)*(Overview!$G24=Individual!$AD$8:$AD$160)) -> 7 | L24: =SUM((L$21=Individual!$AA$8:$AA$160)*(Overview!$G24=Individual!$AD$8:$AD$160)) -> 6 | M24: =SUM((M$21=Individual!$AA$8:$AA$160)*(Overview!$G24=Individual!$AD$8:$AD$160)) -> 2
D25: BHR | E25: =COUNTIF(Individual!$AA$7:$AA$160,Overview!D25) -> 23 | G25: M V | H25: =COUNTIF(Individual!$AD$7:$AD$160,Overview!G25) -> 49 | J25: =SUM((J$21=Individual!$AA$8:$AA$160)*(Overview!$G25=Individual!$AD$8:$AD$160)) -> 15 | K25: =SUM((K$21=Individual!$AA$8:$AA$160)*(Overview!$G25=Individual!$AD$8:$AD$160)) -> 13 | L25: =SUM((L$21=Individual!$AA$8:$AA$160)*(Overview!$G25=Individual!$AD$8:$AD$160)) -> 16 | M25: =SUM((M$21=Individual!$AA$8:$AA$160)*(Overview!$G25=Individual!$AD$8:$AD$160)) -> 5
G26: F SV | H26: =COUNTIF(Individual!$AD$7:$AD$160,Overview!G26) -> 6 | J26: =SUM((J$21=Individual!$AA$8:$AA$160)*(Overview!$G26=Individual!$AD$8:$AD$160)) -> 1 | K26: =SUM((K$21=Individual!$AA$8:$AA$160)*(Overview!$G26=Individual!$AD$8:$AD$160)) -> 2 | L26: =SUM((L$21=Individual!$AA$8:$AA$160)*(Overview!$G26=Individual!$AD$8:$AD$160)) -> 1 | M26: =SUM((M$21=Individual!$AA$8:$AA$160)*(Overview!$G26=Individual!$AD$8:$AD$160)) -> 2
G27: M SV | H27: =COUNTIF(Individual!$AD$7:$AD$160,Overview!G27) -> 21 | J27: =SUM((J$21=Individual!$AA$8:$AA$160)*(Overview!$G27=Individual!$AD$8:$AD$160)) -> 2 | K27: =SUM((K$21=Individual!$AA$8:$AA$160)*(Overview!$G27=Individual!$AD$8:$AD$160)) -> 9 | L27: =SUM((L$21=Individual!$AA$8:$AA$160)*(Overview!$G27=Individual!$AD$8:$AD$160)) -> 6 | M27: =SUM((M$21=Individual!$AA$8:$AA$160)*(Overview!$G27=Individual!$AD$8:$AD$160)) -> 4
D29: Total | E29: =SUM(E22:E28) -> 153 | H29: =SUM(H22:H28) -> 153 | J29: =SUM(J22:J28) -> 44 | K29: =SUM(K22:K28) -> 36 | L29: 50 | M29: 23

Sheet Individual
B2: Individual results by age/gender category from the 2020 Virtual Blackcap race in memory of Chris Smith
B3: 2 | C3: 3 | D3: 1
B6: M S | F6: M V | J6: M SV | N6: F S | R6: F V | V6: F SV
B7: runner | C7: time | D7: Club | F7: runner | G7: time | H7: Club | J7: runner | K7: time | L7: Club | N7: runner | O7: time | P7: Club | R7: runner | S7: time | T7: Club | V7: runner | W7: time | X7: Club | Z7: time rank | AA7: club | AB7: runner | AC7: time | AD7: cat | AE7: cat rank
A8: 1 | B8: =INDEX($AA$8:$AE$160,MATCH(1,($A8=$AE$8:$AE$160)*($B$6=$AD$8:$AD$160),0),$B$3) -> Ben Gibson | C8: =INDEX($AA$8:$AE$160,MATCH(1,($A8=$AE$8:$AE$160)*($B$6=$AD$8:$AD$160),0),$C$3) -> 00:29:18 | D8: =INDEX($AA$8:$AE$160,MATCH(1,($A8=$AE$8:$AE$160)*($B$6=$AD$8:$AD$160),0),$D$3) -> HHH | F8: =INDEX($AA$8:$AE$160,MATCH(1,($A8=$AE$8:$AE$160)*($F$6=$AD$8:$AD$160),0),$B$3) -> Chris Gilbert | G8: =INDEX($AA$8:$AE$160,MATCH(1,($A8=$AE$8:$AE$160)*($F$6=$AD$8:$AD$160),0),$C$3) -> 00:31:16 | H8: =INDEX($AA$8:$AE$160,MATCH(1,($A8=$AE$8:$AE$160)*($F$6=$AD$8:$AD$160),0),$D$3) -> Lewes | J8: =INDEX($AA$8:$AE$160,MATCH(1,($A8=$AE$8:$AE$160)*($J$6=$AD$8:$AD$160),0),$B$3) -> Paul Whelpton | K8: =INDEX($AA$8:$AE$160,MATCH(1,($A8=$AE$8:$AE$160)*($J$6=$AD$8:$AD$160),0),$C$3) -> 00:34:40 | L8: =INDEX($AA$8:$AE$160,MATCH(1,($A8=$AE$8:$AE$160)*($J$6=$AD$8:$AD$160),0),$D$3) -> PHX | M8: 1 | N8: =INDEX($AA$8:$AE$160,MATCH(1,($A8=$AE$8:$AE$160)*($N$6=$AD$8:$AD$160),0),$B$3) -> Bobby Searle | O8: =INDEX($AA$8:$AE$160,MATCH(1,($A8=$AE$8:$AE$160)*($N$6=$AD$8:$AD$160),0),$C$3) -> 00:34:23 | P8: =INDEX($AA$8:$AE$160,MATCH(1,($A8=$AE$8:$AE$160)*($N$6=$AD$8:$AD$160),0),$D$3) -> PHX | R8: =INDEX($AA$8:$AE$160,MATCH(1,($A8=$AE$8:$AE$160)*($R$6=$AD$8:$AD$160),0),$B$3) -> Samantha Leader | S8: =INDEX($AA$8:$AE$160,MATCH(1,($A8=$AE$8:$AE$160)*($R$6=$AD$8:$AD$160),0),$C$3) -> 00:37:03 | T8: =INDEX($AA$8:$AE$160,MATCH(1,($A8=$AE$8:$AE$160)*($R$6=$AD$8:$AD$160),0),$D$3) -> PHX | V8: =INDEX($AA$8:$AE$160,MATCH(1,($A8=$AE$8:$AE$160)*($V$6=$AD$8:$AD$160),0),$B$3) -> Marion Hemsworth | W8: =INDEX($AA$8:$AE$160,MATCH(1,($A8=$AE$8:$AE$160)*($V$6=$AD$8:$AD$160),0),$C$3) -> 00:48:20 | X8: =INDEX($AA$8:$AE$160,MATCH(1,($A8=$AE$8:$AE$160)*($V$6=$AD$8:$AD$160),0),$D$3) -> HHH | Z8: 1 | AA8: HHH | AB8: =HHH!D7 -> Ben Gibson | AC8: =HHH!E7 -> 00:29:18 | AD8: =HHH!H7 -> M S | AE8: =COUNTIFS($AD$8:$AD$160,AD8,$AC$8:$AC$160,"<"&AC8)+1 -> 1
A9: 2 | B9: =INDEX($AA$8:$AE$160,MATCH(1,($A9=$AE$8:$AE$160)*($B$6=$AD$8:$AD$160),0),$B$3) -> Simon Heath | C9: =INDEX($AA$8:$AE$160,MATCH(1,($A9=$AE$8:$AE$160)*($B$6=$AD$8:$AD$160),0),$C$3) -> 00:29:37 | D9: =INDEX($AA$8:$AE$160,MATCH(1,($A9=$AE$8:$AE$160)*($B$6=$AD$8:$AD$160),0),$D$3) -> PHX | F9: =INDEX($AA$8:$AE$160,MATCH(1,($A9=$AE$8:$AE$160)*($F$6=$AD$8:$AD$160),0),$B$3) -> Mike Ellicock | G9: =INDEX($AA$8:$AE$160,MATCH(1,($A9=$AE$8:$AE$160)*($F$6=$AD$8:$AD$160),0),$C$3) -> 00:31:26 | H9: =INDEX($AA$8:$AE$160,MATCH(1,($A9=$AE$8:$AE$160)*($F$6=$AD$8:$AD$160),0),$D$3) -> Lewes | J9: =INDEX($AA$8:$AE$160,MATCH(1,($A9=$AE$8:$AE$160)*($J$6=$AD$8:$AD$160),0),$B$3) -> Tim Hicks | K9: =INDEX($AA$8:$AE$160,MATCH(1,($A9=$AE$8:$AE$160)*($J$6=$AD$8:$AD$160),0),$C$3) -> 00:38:11 | L9: =INDEX($AA$8:$AE$160,MATCH(1,($A9=$AE$8:$AE$160)*($J$6=$AD$8:$AD$160),0),$D$3) -> HHH | M9: 2 | N9: =INDEX($AA$8:$AE$160,MATCH(1,($A9=$AE$8:$AE$160)*($N$6=$AD$8:$AD$160),0),$B$3) -> Erica Martin | O9: =INDEX($AA$8:$AE$160,MATCH(1,($A9=$AE$8:$AE$160)*($N$6=$AD$8:$AD$160),0),$C$3) -> 00:36:06 | P9: =INDEX($AA$8:$AE$160,MATCH(1,($A9=$AE$8:$AE$160)*($N$6=$AD$8:$AD$160),0),$D$3) -> PHX | R9: =INDEX($AA$8:$AE$160,MATCH(1,($A9=$AE$8:$AE$160)*($R$6=$AD$8:$AD$160),0),$B$3) -> Helen Sida | S9: =INDEX($AA$8:$AE$160,MATCH(1,($A9=$AE$8:$AE$160)*($R$6=$AD$8:$AD$160),0),$C$3) -> 00:37:39 | T9: =INDEX($AA$8:$AE$160,MATCH(1,($A9=$AE$8:$AE$160)*($R$6=$AD$8:$AD$160),0),$D$3) -> Lewes | V9: =INDEX($AA$8:$AE$160,MATCH(1,($A9=$AE$8:$AE$160)*($V$6=$AD$8:$AD$160),0),$B$3) -> Anne Hagan | W9: =INDEX($AA$8:$AE$160,MATCH(1,($A9=$AE$8:$AE$160)*($V$6=$AD$8:$AD$160),0),$C$3) -> 00:49:24 | X9: =INDEX($AA$8:$AE$160,MATCH(1,($A9=$AE$8:$AE$160)*($V$6=$AD$8:$AD$160),0),$D$3) -> Lewes | Z9: 2 | AA9: PHX | AB9: =Phoenix!D7 -> Simon Heath | AC9: =Phoenix!E7 -> 00:29:37 | AD9: =Phoenix!H7 -> M S | AE9: 2
A10: 3 | B10: =INDEX($AA$8:$AE$160,MATCH(1,($A10=$AE$8:$AE$160)*($B$6=$AD$8:$AD$160),0),$B$3) -> James Collins | C10: =INDEX($AA$8:$AE$160,MATCH(1,($A10=$AE$8:$AE$160)*($B$6=$AD$8:$AD$160),0),$C$3) -> 00:29:46 | D10: =INDEX($AA$8:$AE$160,MATCH(1,($A10=$AE$8:$AE$160)*($B$6=$AD$8:$AD$160),0),$D$3) -> HHH | F10: =INDEX($AA$8:$AE$160,MATCH(1,($A10=$AE$8:$AE$160)*($F$6=$AD$8:$AD$160),0),$B$3) -> Marcus Kimmins | G10: =INDEX($AA$8:$AE$160,MATCH(1,($A10=$AE$8:$AE$160)*($F$6=$AD$8:$AD$160),0),$C$3) -> 00:31:26.010 | H10: =INDEX($AA$8:$AE$160,MATCH(1,($A10=$AE$8:$AE$160)*($F$6=$AD$8:$AD$160),0),$D$3) -> HHH | J10: =INDEX($AA$8:$AE$160,MATCH(1,($A10=$AE$8:$AE$160)*($J$6=$AD$8:$AD$160),0),$B$3) -> David Prince-Iles | K10: =INDEX($AA$8:$AE$160,MATCH(1,($A10=$AE$8:$AE$160)*($J$6=$AD$8:$AD$160),0),$C$3) -> 00:38:27 | L10: =INDEX($AA$8:$AE$160,MATCH(1,($A10=$AE$8:$AE$160)*($J$6=$AD$8:$AD$160),0),$D$3) -> Lewes | M10: 3 | N10: =INDEX($AA$8:$AE$160,MATCH(1,($A10=$AE$8:$AE$160)*($N$6=$AD$8:$AD$160),0),$B$3) -> Cat Bounds | O10: =INDEX($AA$8:$AE$160,MATCH(1,($A10=$AE$8:$AE$160)*($N$6=$AD$8:$AD$160),0),$C$3) -> 00:37:22 | P10: =INDEX($AA$8:$AE$160,MATCH(1,($A10=$AE$8:$AE$160)*($N$6=$AD$8:$AD$160),0),$D$3) -> PHX | R10: =INDEX($AA$8:$AE$160,MATCH(1,($A10=$AE$8:$AE$160)*($R$6=$AD$8:$AD$160),0),$B$3) -> Siobhan Amer | S10: =INDEX($AA$8:$AE$160,MATCH(1,($A10=$AE$8:$AE$160)*($R$6=$AD$8:$AD$160),0),$C$3) -> 00:38:16 | T10: =INDEX($AA$8:$AE$160,MATCH(1,($A10=$AE$8:$AE$160)*($R$6=$AD$8:$AD$160),0),$D$3) -> HHH | V10: =INDEX($AA$8:$AE$160,MATCH(1,($A10=$AE$8:$AE$160)*($V$6=$AD$8:$AD$160),0),$B$3) -> Nicky Callus | W10: =INDEX($AA$8:$AE$160,MATCH(1,($A10=$AE$8:$AE$160)*($V$6=$AD$8:$AD$160),0),$C$3) -> 00:49:35 | X10: =INDEX($AA$8:$AE$160,MATCH(1,($A10=$AE$8:$AE$160)*($V$6=$AD$8:$AD$160),0),$D$3) -> BHR | Z10: 3 | AA10: HHH | AB10: =HHH!D8 -> James Collins | AC10: =HHH!E8 -> 00:29:46 | AD10: =HHH!H8 -> M S | AE10: 3
A11: 4 | B11: =INDEX($AA$8:$AE$160,MATCH(1,($A11=$AE$8:$AE$160)*($B$6=$AD$8:$AD$160),0),$B$3) -> Todd Leckie | C11: =INDEX($AA$8:$AE$160,MATCH(1,($A11=$AE$8:$AE$160)*($B$6=$AD$8:$AD$160),0),$C$3) -> 00:30:17 | D11: =INDEX($AA$8:$AE$160,MATCH(1,($A11=$AE$8:$AE$160)*($B$6=$AD$8:$AD$160),0),$D$3) -> PHX | F11: =INDEX($AA$8:$AE$160,MATCH(1,($A11=$AE$8:$AE$160)*($F$6=$AD$8:$AD$160),0),$B$3) -> Lewis Sida | G11: =INDEX($AA$8:$AE$160,MATCH(1,($A11=$AE$8:$AE$160)*($F$6=$AD$8:$AD$160),0),$C$3) -> 00:31:41 | H11: =INDEX($AA$8:$AE$160,MATCH(1,($A11=$AE$8:$AE$160)*($F$6=$AD$8:$AD$160),0),$D$3) -> Lewes | J11: =INDEX($AA$8:$AE$160,MATCH(1,($A11=$AE$8:$AE$160)*($J$6=$AD$8:$AD$160),0),$B$3) -> Dan Allen | K11: =INDEX($AA$8:$AE$160,MATCH(1,($A11=$AE$8:$AE$160)*($J$6=$AD$8:$AD$160),0),$C$3) -> 00:40:00 | L11: =INDEX($AA$8:$AE$160,MATCH(1,($A11=$AE$8:$AE$160)*($J$6=$AD$8:$AD$160),0),$D$3) -> PHX | M11: 4 | N11: =INDEX($AA$8:$AE$160,MATCH(1,($A11=$AE$8:$AE$160)*($N$6=$AD$8:$AD$160),0),$B$3) -> Kim Lo | O11: =INDEX($AA$8:$AE$160,MATCH(1,($A11=$AE$8:$AE$160)*($N$6=$AD$8:$AD$160),0),$C$3) -> 00:38:08 | P11: =INDEX($AA$8:$AE$160,MATCH(1,($A11=$AE$8:$AE$160)*($N$6=$AD$8:$AD$160),0),$D$3) -> HHH | R11: =INDEX($AA$8:$AE$160,MATCH(1,($A11=$AE$8:$AE$160)*($R$6=$AD$8:$AD$160),0),$B$3) -> Sara Burns | S11: =INDEX($AA$8:$AE$160,MATCH(1,($A11=$AE$8:$AE$160)*($R$6=$AD$8:$AD$160),0),$C$3) -> 00:38:29 | T11: =INDEX($AA$8:$AE$160,MATCH(1,($A11=$AE$8:$AE$160)*($R$6=$AD$8:$AD$160),0),$D$3) -> PHX | V11: =INDEX($AA$8:$AE$160,MATCH(1,($A11=$AE$8:$AE$160)*($V$6=$AD$8:$AD$160),0),$B$3) -> Jude Matthews | W11: =INDEX($AA$8:$AE$160,MATCH(1,($A11=$AE$8:$AE$160)*($V$6=$AD$8:$AD$160),0),$C$3) -> 00:49:49 | X11: =INDEX($AA$8:$AE$160,MATCH(1,($A11=$AE$8:$AE$160)*($V$6=$AD$8:$AD$160),0),$D$3) -> PHX | Z11: 4 | AA11: PHX | AB11: =Phoenix!D8 -> Todd Leckie | AC11: =Phoenix!E8 -> 00:30:17 | AD11: =Phoenix!H8 -> M S | AE11: 4
A12: 5 | B12: =INDEX($AA$8:$AE$160,MATCH(1,($A12=$AE$8:$AE$160)*($B$6=$AD$8:$AD$160),0),$B$3) -> Jon Clays | C12: =INDEX($AA$8:$AE$160,MATCH(1,($A12=$AE$8:$AE$160)*($B$6=$AD$8:$AD$160),0),$C$3) -> 00:30:21 | D12: =INDEX($AA$8:$AE$160,MATCH(1,($A12=$AE$8:$AE$160)*($B$6=$AD$8:$AD$160),0),$D$3) -> PHX | F12: =INDEX($AA$8:$AE$160,MATCH(1,($A12=$AE$8:$AE$160)*($F$6=$AD$8:$AD$160),0),$B$3) -> Stuart Roberts | G12: =INDEX($AA$8:$AE$160,MATCH(1,($A12=$AE$8:$AE$160)*($F$6=$AD$8:$AD$160),0),$C$3) -> 00:32:21 | H12: =INDEX($AA$8:$AE$160,MATCH(1,($A12=$AE$8:$AE$160)*($F$6=$AD$8:$AD$160),0),$D$3) -> PHX | J12: =INDEX($AA$8:$AE$160,MATCH(1,($A12=$AE$8:$AE$160)*($J$6=$AD$8:$AD$160),0),$B$3) -> Gerard Dummett | K12: =INDEX($AA$8:$AE$160,MATCH(1,($A12=$AE$8:$AE$160)*($J$6=$AD$8:$AD$160),0),$C$3) -> 00:42:37 | L12: =INDEX($AA$8:$AE$160,MATCH(1,($A12=$AE$8:$AE$160)*($J$6=$AD$8:$AD$160),0),$D$3) -> Lewes | M12: 5 | N12: =INDEX($AA$8:$AE$160,MATCH(1,($A12=$AE$8:$AE$160)*($N$6=$AD$8:$AD$160),0),$B$3) -> Sibel Recber | O12: =INDEX($AA$8:$AE$160,MATCH(1,($A12=$AE$8:$AE$160)*($N$6=$AD$8:$AD$160),0),$C$3) -> 00:38:22 | P12: =INDEX($AA$8:$AE$160,MATCH(1,($A12=$AE$8:$AE$160)*($N$6=$AD$8:$AD$160),0),$D$3) -> PHX | R12: =INDEX($AA$8:$AE$160,MATCH(1,($A12=$AE$8:$AE$160)*($R$6=$AD$8:$AD$160),0),$B$3) -> Amelia Culshaw | S12: =INDEX($AA$8:$AE$160,MATCH(1,($A12=$AE$8:$AE$160)*($R$6=$AD$8:$AD$160),0),$C$3) -> 00:41:10 | T12: =INDEX($AA$8:$AE$160,MATCH(1,($A12=$AE$8:$AE$160)*($R$6=$AD$8:$AD$160),0),$D$3) -> PHX | V12: =INDEX($AA$8:$AE$160,MATCH(1,($A12=$AE$8:$AE$160)*($V$6=$AD$8:$AD$160),0),$B$3) -> Anita Amies | W12: =INDEX($AA$8:$AE$160,MATCH(1,($A12=$AE$8:$AE$160)*($V$6=$AD$8:$AD$160),0),$C$3) -> 00:50:13 | X12: =INDEX($AA$8:$AE$160,MATCH(1,($A12=$AE$8:$AE$160)*($V$6=$AD$8:$AD$160),0),$D$3) -> Lewes | Z12: 5 | AA12: PHX | AB12: =Phoenix!D9 -> Jon Clays | AC12: =Phoenix!E9 -> 00:30:21 | AD12: =Phoenix!H9 -> M S | AE12: 5
A13: 6 | B13: =INDEX($AA$8:$AE$160,MATCH(1,($A13=$AE$8:$AE$160)*($B$6=$AD$8:$AD$160),0),$B$3) -> Jim Lathbury | C13: =INDEX($AA$8:$AE$160,MATCH(1,($A13=$AE$8:$AE$160)*($B$6=$AD$8:$AD$160),0),$C$3) -> 00:30:24 | D13: =INDEX($AA$8:$AE$160,MATCH(1,($A13=$AE$8:$AE$160)*($B$6=$AD$8:$AD$160),0),$D$3) -> PHX | F13: =INDEX($AA$8:$AE$160,MATCH(1,($A13=$AE$8:$AE$160)*($F$6=$AD$8:$AD$160),0),$B$3) -> Andy Hind | G13: =INDEX($AA$8:$AE$160,MATCH(1,($A13=$AE$8:$AE$160)*($F$6=$AD$8:$AD$160),0),$C$3) -> 00:32:26 | H13: =INDEX($AA$8:$AE$160,MATCH(1,($A13=$AE$8:$AE$160)*($F$6=$AD$8:$AD$160),0),$D$3) -> HHH | J13: =INDEX($AA$8:$AE$160,MATCH(1,($A13=$AE$8:$AE$160)*($J$6=$AD$8:$AD$160),0),$B$3) -> Stuart Condie | K13: =INDEX($AA$8:$AE$160,MATCH(1,($A13=$AE$8:$AE$160)*($J$6=$AD$8:$AD$160),0),$C$3) -> 00:43:10 | L13: =INDEX($AA$8:$AE$160,MATCH(1,($A13=$AE$8:$AE$160)*($J$6=$AD$8:$AD$160),0),$D$3) -> BHR | M13: 6 | N13: =INDEX($AA$8:$AE$160,MATCH(1,($A13=$AE$8:$AE$160)*($N$6=$AD$8:$AD$160),0),$B$3) -> Emily Budd | O13: =INDEX($AA$8:$AE$160,MATCH(1,($A13=$AE$8:$AE$160)*($N$6=$AD$8:$AD$160),0),$C$3) -> 00:38:37 | P13: =INDEX($AA$8:$AE$160,MATCH(1,($A13=$AE$8:$AE$160)*($N$6=$AD$8:$AD$160),0),$D$3) -> PHX | R13: =INDEX($AA$8:$AE$160,MATCH(1,($A13=$AE$8:$AE$160)*($R$6=$AD$8:$AD$160),0),$B$3) -> Katherine Buckeridge | S13: =INDEX($AA$8:$AE$160,MATCH(1,($A13=$AE$8:$AE$160)*($R$6=$AD$8:$AD$160),0),$C$3) -> 00:42:45 | T13: =INDEX($AA$8:$AE$160,MATCH(1,($A13=$AE$8:$AE$160)*($R$6=$AD$8:$AD$160),0),$D$3) -> HHH | V13: =INDEX($AA$8:$AE$160,MATCH(1,($A13=$AE$8:$AE$160)*($V$6=$AD$8:$AD$160),0),$B$3) -> Kim Gow | W13: =INDEX($AA$8:$AE$160,MATCH(1,($A13=$AE$8:$AE$160)*($V$6=$AD$8:$AD$160),0),$C$3) -> 00:52:53 | X13: =INDEX($AA$8:$AE$160,MATCH(1,($A13=$AE$8:$AE$160)*($V$6=$AD$8:$AD$160),0),$D$3) -> BHR | Z13: 6 | AA13: PHX | AB13: =Phoenix!D10 -> Jim Lathbury | AC13: =Phoenix!E10 -> 00:30:24 | AD13: =Phoenix!H10 -> M S | AE13: 6
A14: 7 | B14: =INDEX($AA$8:$AE$160,MATCH(1,($A14=$AE$8:$AE$160)*($B$6=$AD$8:$AD$160),0),$B$3) -> Alex Garrod | C14: =INDEX($AA$8:$AE$160,MATCH(1,($A14=$AE$8:$AE$160)*($B$6=$AD$8:$AD$160),0),$C$3) -> 00:31:05 | D14: =INDEX($AA$8:$AE$160,MATCH(1,($A14=$AE$8:$AE$160)*($B$6=$AD$8:$AD$160),0),$D$3) -> PHX | F14: =INDEX($AA$8:$AE$160,MATCH(1,($A14=$AE$8:$AE$160)*($F$6=$AD$8:$AD$160),0),$B$3) -> James Moffat | G14: =INDEX($AA$8:$AE$160,MATCH(1,($A14=$AE$8:$AE$160)*($F$6=$AD$8:$AD$160),0),$C$3) -> 00:32:36 | H14: =INDEX($AA$8:$AE$160,MATCH(1,($A14=$AE$8:$AE$160)*($F$6=$AD$8:$AD$160),0),$D$3) -> HHH | J14: =INDEX($AA$8:$AE$160,MATCH(1,($A14=$AE$8:$AE$160)*($J$6=$AD$8:$AD$160),0),$B$3) -> Mark Sykes | K14: =INDEX($AA$8:$AE$160,MATCH(1,($A14=$AE$8:$AE$160)*($J$6=$AD$8:$AD$160),0),$C$3) -> 00:43:26 | L14: =INDEX($AA$8:$AE$160,MATCH(1,($A14=$AE$8:$AE$160)*($J$6=$AD$8:$AD$160),0),$D$3) -> HHH | M14: 7 | N14: =INDEX($AA$8:$AE$160,MATCH(1,($A14=$AE$8:$AE$160)*($N$6=$AD$8:$AD$160),0),$B$3) -> Chelsey Hallam | O14: =INDEX($AA$8:$AE$160,MATCH(1,($A14=$AE$8:$AE$160)*($N$6=$AD$8:$AD$160),0),$C$3) -> 00:39:36 | P14: =INDEX($AA$8:$AE$160,MATCH(1,($A14=$AE$8:$AE$160)*($N$6=$AD$8:$AD$160),0),$D$3) -> PHX | R14: =INDEX($AA$8:$AE$160,MATCH(1,($A14=$AE$8:$AE$160)*($R$6=$AD$8:$AD$160),0),$B$3) -> Liz Halliday | S14: =INDEX($AA$8:$AE$160,MATCH(1,($A14=$AE$8:$AE$160)*($R$6=$AD$8:$AD$160),0),$C$3) -> 00:42:56 | T14: =INDEX($AA$8:$AE$160,MATCH(1,($A14=$AE$8:$AE$160)*($R$6=$AD$8:$AD$160),0),$D$3) -> PHX | V14: =INDEX($AA$8:$AE$160,MATCH(1,($A14=$AE$8:$AE$160)*($V$6=$AD$8:$AD$160),0),$B$3) ->  | W14: =INDEX($AA$8:$AE$160,MATCH(1,($A14=$AE$8:$AE$160)*($V$6=$AD$8:$AD$160),0),$C$3) ->  | X14: =INDEX($AA$8:$AE$160,MATCH(1,($A14=$AE$8:$AE$160)*($V$6=$AD$8:$AD$160),0),$D$3) ->  | Z14: 7 | AA14: PHX | AB14: =Phoenix!D11 -> Alex Garrod | AC14: =Phoenix!E11 -> 00:31:05 | AD14: =Phoenix!H11 -> M S | AE14: 7
A15: 8 | B15: =INDEX($AA$8:$AE$160,MATCH(1,($A15=$AE$8:$AE$160)*($B$6=$AD$8:$AD$160),0),$B$3) -> Owen Wallek | C15: =INDEX($AA$8:$AE$160,MATCH(1,($A15=$AE$8:$AE$160)*($B$6=$AD$8:$AD$160),0),$C$3) -> 00:31:50 | D15: =INDEX($AA$8:$AE$160,MATCH(1,($A15=$AE$8:$AE$160)*($B$6=$AD$8:$AD$160),0),$D$3) -> BHR | F15: =INDEX($AA$8:$AE$160,MATCH(1,($A15=$AE$8:$AE$160)*($F$6=$AD$8:$AD$160),0),$B$3) -> Mike Green | G15: =INDEX($AA$8:$AE$160,MATCH(1,($A15=$AE$8:$AE$160)*($F$6=$AD$8:$AD$160),0),$C$3) -> 00:32:38 | H15: =INDEX($AA$8:$AE$160,MATCH(1,($A15=$AE$8:$AE$160)*($F$6=$AD$8:$AD$160),0),$D$3) -> Lewes | J15: =INDEX($AA$8:$AE$160,MATCH(1,($A15=$AE$8:$AE$160)*($J$6=$AD$8:$AD$160),0),$B$3) -> Peter Kennedy | K15: =INDEX($AA$8:$AE$160,MATCH(1,($A15=$AE$8:$AE$160)*($J$6=$AD$8:$AD$160),0),$C$3) -> 00:43:32 | L15: =INDEX($AA$8:$AE$160,MATCH(1,($A15=$AE$8:$AE$160)*($J$6=$AD$8:$AD$160),0),$D$3) -> Lewes | M15: 8 | N15: =INDEX($AA$8:$AE$160,MATCH(1,($A15=$AE$8:$AE$160)*($N$6=$AD$8:$AD$160),0),$B$3) -> Ellen Brookes | O15: =INDEX($AA$8:$AE$160,MATCH(1,($A15=$AE$8:$AE$160)*($N$6=$AD$8:$AD$160),0),$C$3) -> 00:39:39 | P15: =INDEX($AA$8:$AE$160,MATCH(1,($A15=$AE$8:$AE$160)*($N$6=$AD$8:$AD$160),0),$D$3) -> Lewes | R15: =INDEX($AA$8:$AE$160,MATCH(1,($A15=$AE$8:$AE$160)*($R$6=$AD$8:$AD$160),0),$B$3) -> Helen Bowman | S15: =INDEX($AA$8:$AE$160,MATCH(1,($A15=$AE$8:$AE$160)*($R$6=$AD$8:$AD$160),0),$C$3) -> 00:45:37 | T15: =INDEX($AA$8:$AE$160,MATCH(1,($A15=$AE$8:$AE$160)*($R$6=$AD$8:$AD$160),0),$D$3) -> Lewes | V15: =INDEX($AA$8:$AE$160,MATCH(1,($A15=$AE$8:$AE$160)*($V$6=$AD$8:$AD$160),0),$B$3) ->  | W15: =INDEX($AA$8:$AE$160,MATCH(1,($A15=$AE$8:$AE$160)*($V$6=$AD$8:$AD$160),0),$C$3) ->  | X15: =INDEX($AA$8:$AE$160,MATCH(1,($A15=$AE$8:$AE$160)*($V$6=$AD$8:$AD$160),0),$D$3) ->  | Z15: 8 | AA15: Lewes | AB15: =LewesAC!D7 -> Chris Gilbert | AC15: =LewesAC!E7 -> 00:31:16 | AD15: =LewesAC!H7 -> M V | AE15: 1
A16: 9 | B16: =INDEX($AA$8:$AE$160,MATCH(1,($A16=$AE$8:$AE$160)*($B$6=$AD$8:$AD$160),0),$B$3) -> Phil Payne | C16: =INDEX($AA$8:$AE$160,MATCH(1,($A16=$AE$8:$AE$160)*($B$6=$AD$8:$AD$160),0),$C$3) -> 00:32:24 | D16: =INDEX($AA$8:$AE$160,MATCH(1,($A16=$AE$8:$AE$160)*($B$6=$AD$8:$AD$160),0),$D$3) -> HHH | F16: =INDEX($AA$8:$AE$160,MATCH(1,($A16=$AE$8:$AE$160)*($F$6=$AD$8:$AD$160),0),$B$3) -> Matt Greenall | G16: =INDEX($AA$8:$AE$160,MATCH(1,($A16=$AE$8:$AE$160)*($F$6=$AD$8:$AD$160),0),$C$3) -> 00:33:47 | H16: =INDEX($AA$8:$AE$160,MATCH(1,($A16=$AE$8:$AE$160)*($F$6=$AD$8:$AD$160),0),$D$3) -> PHX | J16: =INDEX($AA$8:$AE$160,MATCH(1,($A16=$AE$8:$AE$160)*($J$6=$AD$8:$AD$160),0),$B$3) -> Ian Hilder | K16: =INDEX($AA$8:$AE$160,MATCH(1,($A16=$AE$8:$AE$160)*($J$6=$AD$8:$AD$160),0),$C$3) -> 00:44:13 | L16: =INDEX($AA$8:$AE$160,MATCH(1,($A16=$AE$8:$AE$160)*($J$6=$AD$8:$AD$160),0),$D$3) -> Lewes | M16: 9 | N16: =INDEX($AA$8:$AE$160,MATCH(1,($A16=$AE$8:$AE$160)*($N$6=$AD$8:$AD$160),0),$B$3) -> Tamsyn d'Arienzo | O16: =INDEX($AA$8:$AE$160,MATCH(1,($A16=$AE$8:$AE$160)*($N$6=$AD$8:$AD$160),0),$C$3) -> 00:39:45 | P16: =INDEX($AA$8:$AE$160,MATCH(1,($A16=$AE$8:$AE$160)*($N$6=$AD$8:$AD$160),0),$D$3) -> Lewes | R16: =INDEX($AA$8:$AE$160,MATCH(1,($A16=$AE$8:$AE$160)*($R$6=$AD$8:$AD$160),0),$B$3) -> Shelagh Robinson | S16: =INDEX($AA$8:$AE$160,MATCH(1,($A16=$AE$8:$AE$160)*($R$6=$AD$8:$AD$160),0),$C$3) -> 00:45:40 | T16: =INDEX($AA$8:$AE$160,MATCH(1,($A16=$AE$8:$AE$160)*($R$6=$AD$8:$AD$160),0),$D$3) -> HHH | V16: =INDEX($AA$8:$AE$160,MATCH(1,($A16=$AE$8:$AE$160)*($V$6=$AD$8:$AD$160),0),$B$3) ->  | W16: =INDEX($AA$8:$AE$160,MATCH(1,($A16=$AE$8:$AE$160)*($V$6=$AD$8:$AD$160),0),$C$3) ->  | X16: =INDEX($AA$8:$AE$160,MATCH(1,($A16=$AE$8:$AE$160)*($V$6=$AD$8:$AD$160),0),$D$3) ->  | Z16: 10 | AA16: Lewes | AB16: =LewesAC!D8 -> Mike Ellicock | AC16: =LewesAC!E8 -> 00:31:26 | AD16: =LewesAC!H8 -> M V | AE16: 2 | AF16: tied
A17: 10 | B17: =INDEX($AA$8:$AE$160,MATCH(1,($A17=$AE$8:$AE$160)*($B$6=$AD$8:$AD$160),0),$B$3) -> Paul Weir | C17: =INDEX($AA$8:$AE$160,MATCH(1,($A17=$AE$8:$AE$160)*($B$6=$AD$8:$AD$160),0),$C$3) -> 00:32:36 | D17: =INDEX($AA$8:$AE$160,MATCH(1,($A17=$AE$8:$AE$160)*($B$6=$AD$8:$AD$160),0),$D$3) -> PHX | F17: =INDEX($AA$8:$AE$160,MATCH(1,($A17=$AE$8:$AE$160)*($F$6=$AD$8:$AD$160),0),$B$3) -> Tony Rickwood | G17: =INDEX($AA$8:$AE$160,MATCH(1,($A17=$AE$8:$AE$160)*($F$6=$AD$8:$AD$160),0),$C$3) -> 00:33:55 | H17: =INDEX($AA$8:$AE$160,MATCH(1,($A17=$AE$8:$AE$160)*($F$6=$AD$8:$AD$160),0),$D$3) -> PHX | J17: =INDEX($AA$8:$AE$160,MATCH(1,($A17=$AE$8:$AE$160)*($J$6=$AD$8:$AD$160),0),$B$3) -> Andrew Haig | K17: =INDEX($AA$8:$AE$160,MATCH(1,($A17=$AE$8:$AE$160)*($J$6=$AD$8:$AD$160),0),$C$3) -> 00:44:16 | L17: =INDEX($AA$8:$AE$160,MATCH(1,($A17=$AE$8:$AE$160)*($J$6=$AD$8:$AD$160),0),$D$3) -> PHX | M17: 10 | N17: =INDEX($AA$8:$AE$160,MATCH(1,($A17=$AE$8:$AE$160)*($N$6=$AD$8:$AD$160),0),$B$3) -> Georgie Anderson | O17: =INDEX($AA$8:$AE$160,MATCH(1,($A17=$AE$8:$AE$160)*($N$6=$AD$8:$AD$160),0),$C$3) -> 00:39:59 | P17: =INDEX($AA$8:$AE$160,MATCH(1,($A17=$AE$8:$AE$160)*($N$6=$AD$8:$AD$160),0),$D$3) -> PHX | R17: =INDEX($AA$8:$AE$160,MATCH(1,($A17=$AE$8:$AE$160)*($R$6=$AD$8:$AD$160),0),$B$3) -> Jacqueline Barnes | S17: =INDEX($AA$8:$AE$160,MATCH(1,($A17=$AE$8:$AE$160)*($R$6=$AD$8:$AD$160),0),$C$3) -> 00:46:47 | T17: =INDEX($AA$8:$AE$160,MATCH(1,($A17=$AE$8:$AE$160)*($R$6=$AD$8:$AD$160),0),$D$3) -> HHH | V17: =INDEX($AA$8:$AE$160,MATCH(1,($A17=$AE$8:$AE$160)*($V$6=$AD$8:$AD$160),0),$B$3) ->  | W17: =INDEX($AA$8:$AE$160,MATCH(1,($A17=$AE$8:$AE$160)*($V$6=$AD$8:$AD$160),0),$C$3) ->  | X17: =INDEX($AA$8:$AE$160,MATCH(1,($A17=$AE$8:$AE$160)*($V$6=$AD$8:$AD$160),0),$D$3) ->  | Z17: 9 | AA17: HHH | AB17: =HHH!D9 -> Marcus Kimmins | AC17: =HHH!E9 -> 00:31:26.010 | AD17: =HHH!H9 -> M V | AE17: 3 | AF17: tied
A18: 11 | B18: =INDEX($AA$8:$AE$160,MATCH(1,($A18=$AE$8:$AE$160)*($B$6=$AD$8:$AD$160),0),$B$3) -> Matt Cook | C18: =INDEX($AA$8:$AE$160,MATCH(1,($A18=$AE$8:$AE$160)*($B$6=$AD$8:$AD$160),0),$C$3) -> 00:32:45 | D18: =INDEX($AA$8:$AE$160,MATCH(1,($A18=$AE$8:$AE$160)*($B$6=$AD$8:$AD$160),0),$D$3) -> HHH | F18: =INDEX($AA$8:$AE$160,MATCH(1,($A18=$AE$8:$AE$160)*($F$6=$AD$8:$AD$160),0),$B$3) -> Ben Hodgson | G18: =INDEX($AA$8:$AE$160,MATCH(1,($A18=$AE$8:$AE$160)*($F$6=$AD$8:$AD$160),0),$C$3) -> 00:33:57 | H18: =INDEX($AA$8:$AE$160,MATCH(1,($A18=$AE$8:$AE$160)*($F$6=$AD$8:$AD$160),0),$D$3) -> Lewes | J18: =INDEX($AA$8:$AE$160,MATCH(1,($A18=$AE$8:$AE$160)*($J$6=$AD$8:$AD$160),0),$B$3) -> Richard Light | K18: =INDEX($AA$8:$AE$160,MATCH(1,($A18=$AE$8:$AE$160)*($J$6=$AD$8:$AD$160),0),$C$3) -> 00:45:25 | L18: =INDEX($AA$8:$AE$160,MATCH(1,($A18=$AE$8:$AE$160)*($J$6=$AD$8:$AD$160),0),$D$3) -> BHR | M18: 11 | N18: =INDEX($AA$8:$AE$160,MATCH(1,($A18=$AE$8:$AE$160)*($N$6=$AD$8:$AD$160),0),$B$3) -> Jess Stribbling | O18: =INDEX($AA$8:$AE$160,MATCH(1,($A18=$AE$8:$AE$160)*($N$6=$AD$8:$AD$160),0),$C$3) -> 00:40:05 | P18: =INDEX($AA$8:$AE$160,MATCH(1,($A18=$AE$8:$AE$160)*($N$6=$AD$8:$AD$160),0),$D$3) -> PHX | R18: =INDEX($AA$8:$AE$160,MATCH(1,($A18=$AE$8:$AE$160)*($R$6=$AD$8:$AD$160),0),$B$3) -> Ruth Wray | S18: =INDEX($AA$8:$AE$160,MATCH(1,($A18=$AE$8:$AE$160)*($R$6=$AD$8:$AD$160),0),$C$3) -> 00:47:03 | T18: =INDEX($AA$8:$AE$160,MATCH(1,($A18=$AE$8:$AE$160)*($R$6=$AD$8:$AD$160),0),$D$3) -> Lewes | Z18: 11 | AA18: Lewes | AB18: =LewesAC!D9 -> Lewis Sida | AC18: =LewesAC!E9 -> 00:31:41 | AD18: =LewesAC!H9 -> M V | AE18: 4
A19: 12 | B19: =INDEX($AA$8:$AE$160,MATCH(1,($A19=$AE$8:$AE$160)*($B$6=$AD$8:$AD$160),0),$B$3) -> Ben Pepler | C19: =INDEX($AA$8:$AE$160,MATCH(1,($A19=$AE$8:$AE$160)*($B$6=$AD$8:$AD$160),0),$C$3) -> 00:32:49 | D19: =INDEX($AA$8:$AE$160,MATCH(1,($A19=$AE$8:$AE$160)*($B$6=$AD$8:$AD$160),0),$D$3) -> Lewes | F19: =INDEX($AA$8:$AE$160,MATCH(1,($A19=$AE$8:$AE$160)*($F$6=$AD$8:$AD$160),0),$B$3) -> Rick Curtis | G19: =INDEX($AA$8:$AE$160,MATCH(1,($A19=$AE$8:$AE$160)*($F$6=$AD$8:$AD$160),0),$C$3) -> 00:34:00 | H19: =INDEX($AA$8:$AE$160,MATCH(1,($A19=$AE$8:$AE$160)*($F$6=$AD$8:$AD$160),0),$D$3) -> Lewes | J19: =INDEX($AA$8:$AE$160,MATCH(1,($A19=$AE$8:$AE$160)*($J$6=$AD$8:$AD$160),0),$B$3) -> Mark Pappenheim | K19: =INDEX($AA$8:$AE$160,MATCH(1,($A19=$AE$8:$AE$160)*($J$6=$AD$8:$AD$160),0),$C$3) -> 00:46:30 | L19: =INDEX($AA$8:$AE$160,MATCH(1,($A19=$AE$8:$AE$160)*($J$6=$AD$8:$AD$160),0),$D$3) -> Lewes | M19: 12 | N19: =INDEX($AA$8:$AE$160,MATCH(1,($A19=$AE$8:$AE$160)*($N$6=$AD$8:$AD$160),0),$B$3) -> Rachel Gorman | O19: =INDEX($AA$8:$AE$160,MATCH(1,($A19=$AE$8:$AE$160)*($N$6=$AD$8:$AD$160),0),$C$3) -> 00:41:13 | P19: =INDEX($AA$8:$AE$160,MATCH(1,($A19=$AE$8:$AE$160)*($N$6=$AD$8:$AD$160),0),$D$3) -> PHX | R19: =INDEX($AA$8:$AE$160,MATCH(1,($A19=$AE$8:$AE$160)*($R$6=$AD$8:$AD$160),0),$B$3) -> Lisa Ebdon | S19: =INDEX($AA$8:$AE$160,MATCH(1,($A19=$AE$8:$AE$160)*($R$6=$AD$8:$AD$160),0),$C$3) -> 00:47:31 | T19: =INDEX($AA$8:$AE$160,MATCH(1,($A19=$AE$8:$AE$160)*($R$6=$AD$8:$AD$160),0),$D$3) -> PHX | Z19: 12 | AA19: BHR | AB19: =BHR!D7 -> Owen Wallek | AC19: =BHR!E7 -> 00:31:50 | AD19: =BHR!H7 -> M S | AE19: 8
A20: 13 | B20: =INDEX($AA$8:$AE$160,MATCH(1,($A20=$AE$8:$AE$160)*($B$6=$AD$8:$AD$160),0),$B$3) -> Tom Clewley | C20: =INDEX($AA$8:$AE$160,MATCH(1,($A20=$AE$8:$AE$160)*($B$6=$AD$8:$AD$160),0),$C$3) -> 00:33:00 | D20: =INDEX($AA$8:$AE$160,MATCH(1,($A20=$AE$8:$AE$160)*($B$6=$AD$8:$AD$160),0),$D$3) -> PHX | F20: =INDEX($AA$8:$AE$160,MATCH(1,($A20=$AE$8:$AE$160)*($F$6=$AD$8:$AD$160),0),$B$3) -> Tim Miller | G20: =INDEX($AA$8:$AE$160,MATCH(1,($A20=$AE$8:$AE$160)*($F$6=$AD$8:$AD$160),0),$C$3) -> 00:34:11 | H20: =INDEX($AA$8:$AE$160,MATCH(1,($A20=$AE$8:$AE$160)*($F$6=$AD$8:$AD$160),0),$D$3) -> HHH | J20: =INDEX($AA$8:$AE$160,MATCH(1,($A20=$AE$8:$AE$160)*($J$6=$AD$8:$AD$160),0),$B$3) -> Bob Hughes | K20: =INDEX($AA$8:$AE$160,MATCH(1,($A20=$AE$8:$AE$160)*($J$6=$AD$8:$AD$160),0),$C$3) -> 00:46:45 | L20: =INDEX($AA$8:$AE$160,MATCH(1,($A20=$AE$8:$AE$160)*($J$6=$AD$8:$AD$160),0),$D$3) -> Lewes | M20: 13 | N20: =INDEX($AA$8:$AE$160,MATCH(1,($A20=$AE$8:$AE$160)*($N$6=$AD$8:$AD$160),0),$B$3) -> Olivia Treharne | O20: =INDEX($AA$8:$AE$160,MATCH(1,($A20=$AE$8:$AE$160)*($N$6=$AD$8:$AD$160),0),$C$3) -> 00:41:43 | P20: =INDEX($AA$8:$AE$160,MATCH(1,($A20=$AE$8:$AE$160)*($N$6=$AD$8:$AD$160),0),$D$3) -> HHH | R20: =INDEX($AA$8:$AE$160,MATCH(1,($A20=$AE$8:$AE$160)*($R$6=$AD$8:$AD$160),0),$B$3) -> Fran Witt | S20: =INDEX($AA$8:$AE$160,MATCH(1,($A20=$AE$8:$AE$160)*($R$6=$AD$8:$AD$160),0),$C$3) -> 00:48:51 | T20: =INDEX($AA$8:$AE$160,MATCH(1,($A20=$AE$8:$AE$160)*($R$6=$AD$8:$AD$160),0),$D$3) -> Lewes | Z20: 13 | AA20: PHX | AB20: =Phoenix!D12 -> Stuart Roberts | AC20: =Phoenix!E12 -> 00:32:21 | AD20: =Phoenix!H12 -> M V | AE20: 5
A21: 14 | B21: =INDEX($AA$8:$AE$160,MATCH(1,($A21=$AE$8:$AE$160)*($B$6=$AD$8:$AD$160),0),$B$3) -> Philip Wallek | C21: =INDEX($AA$8:$AE$160,MATCH(1,($A21=$AE$8:$AE$160)*($B$6=$AD$8:$AD$160),0),$C$3) -> 00:33:24 | D21: =INDEX($AA$8:$AE$160,MATCH(1,($A21=$AE$8:$AE$160)*($B$6=$AD$8:$AD$160),0),$D$3) -> BHR | F21: =INDEX($AA$8:$AE$160,MATCH(1,($A21=$AE$8:$AE$160)*($F$6=$AD$8:$AD$160),0),$B$3) -> Paul Lawrence | G21: =INDEX($AA$8:$AE$160,MATCH(1,($A21=$AE$8:$AE$160)*($F$6=$AD$8:$AD$160),0),$C$3) -> 00:34:30 | H21: =INDEX($AA$8:$AE$160,MATCH(1,($A21=$AE$8:$AE$160)*($F$6=$AD$8:$AD$160),0),$D$3) -> PHX | J21: =INDEX($AA$8:$AE$160,MATCH(1,($A21=$AE$8:$AE$160)*($J$6=$AD$8:$AD$160),0),$B$3) -> Hugh St John | K21: =INDEX($AA$8:$AE$160,MATCH(1,($A21=$AE$8:$AE$160)*($J$6=$AD$8:$AD$160),0),$C$3) -> 00:47:16 | L21: =INDEX($AA$8:$AE$160,MATCH(1,($A21=$AE$8:$AE$160)*($J$6=$AD$8:$AD$160),0),$D$3) -> Lewes | M21: 14 | N21: =INDEX($AA$8:$AE$160,MATCH(1,($A21=$AE$8:$AE$160)*($N$6=$AD$8:$AD$160),0),$B$3) -> Liz Earley | O21: =INDEX($AA$8:$AE$160,MATCH(1,($A21=$AE$8:$AE$160)*($N$6=$AD$8:$AD$160),0),$C$3) -> 00:42:54 | P21: =INDEX($AA$8:$AE$160,MATCH(1,($A21=$AE$8:$AE$160)*($N$6=$AD$8:$AD$160),0),$D$3) -> HHH | R21: =INDEX($AA$8:$AE$160,MATCH(1,($A21=$AE$8:$AE$160)*($R$6=$AD$8:$AD$160),0),$B$3) -> Sarah Russell | S21: =INDEX($AA$8:$AE$160,MATCH(1,($A21=$AE$8:$AE$160)*($R$6=$AD$8:$AD$160),0),$C$3) -> 00:48:54 | T21: =INDEX($AA$8:$AE$160,MATCH(1,($A21=$AE$8:$AE$160)*($R$6=$AD$8:$AD$160),0),$D$3) -> PHX | Z21: 14 | AA21: HHH | AB21: =HHH!D10 -> Phil Payne | AC21: =HHH!E10 -> 00:32:24 | AD21: =HHH!H10 -> M S | AE21: 9
A22: 15 | B22: =INDEX($AA$8:$AE$160,MATCH(1,($A22=$AE$8:$AE$160)*($B$6=$AD$8:$AD$160),0),$B$3) -> Matthew King | C22: =INDEX($AA$8:$AE$160,MATCH(1,($A22=$AE$8:$AE$160)*($B$6=$AD$8:$AD$160),0),$C$3) -> 00:33:39 | D22: =INDEX($AA$8:$AE$160,MATCH(1,($A22=$AE$8:$AE$160)*($B$6=$AD$8:$AD$160),0),$D$3) -> HHH | F22: =INDEX($AA$8:$AE$160,MATCH(1,($A22=$AE$8:$AE$160)*($F$6=$AD$8:$AD$160),0),$B$3) -> Geoff Pike | G22: =INDEX($AA$8:$AE$160,MATCH(1,($A22=$AE$8:$AE$160)*($F$6=$AD$8:$AD$160),0),$C$3) -> 00:34:35 | H22: =INDEX($AA$8:$AE$160,MATCH(1,($A22=$AE$8:$AE$160)*($F$6=$AD$8:$AD$160),0),$D$3) -> PHX | J22: =INDEX($AA$8:$AE$160,MATCH(1,($A22=$AE$8:$AE$160)*($J$6=$AD$8:$AD$160),0),$B$3) -> Andrew Chitty | K22: =INDEX($AA$8:$AE$160,MATCH(1,($A22=$AE$8:$AE$160)*($J$6=$AD$8:$AD$160),0),$C$3) -> 00:47:16.010 | L22: =INDEX($AA$8:$AE$160,MATCH(1,($A22=$AE$8:$AE$160)*($J$6=$AD$8:$AD$160),0),$D$3) -> Lewes | M22: 15 | N22: =INDEX($AA$8:$AE$160,MATCH(1,($A22=$AE$8:$AE$160)*($N$6=$AD$8:$AD$160),0),$B$3) -> Sarah King | O22: =INDEX($AA$8:$AE$160,MATCH(1,($A22=$AE$8:$AE$160)*($N$6=$AD$8:$AD$160),0),$C$3) -> 00:42:54.010 | P22: =INDEX($AA$8:$AE$160,MATCH(1,($A22=$AE$8:$AE$160)*($N$6=$AD$8:$AD$160),0),$D$3) -> HHH | R22: =INDEX($AA$8:$AE$160,MATCH(1,($A22=$AE$8:$AE$160)*($R$6=$AD$8:$AD$160),0),$B$3) -> Linda Tullett | S22: =INDEX($AA$8:$AE$160,MATCH(1,($A22=$AE$8:$AE$160)*($R$6=$AD$8:$AD$160),0),$C$3) -> 00:50:41 | T22: =INDEX($AA$8:$AE$160,MATCH(1,($A22=$AE$8:$AE$160)*($R$6=$AD$8:$AD$160),0),$D$3) -> HHH | Z22: 15 | AA22: HHH | AB22: =HHH!D11 -> Andy Hind | AC22: =HHH!E11 -> 00:32:26 | AD22: =HHH!H11 -> M V | AE22: 6
A23: 16 | B23: =INDEX($AA$8:$AE$160,MATCH(1,($A23=$AE$8:$AE$160)*($B$6=$AD$8:$AD$160),0),$B$3) -> Michael Burke | C23: =INDEX($AA$8:$AE$160,MATCH(1,($A23=$AE$8:$AE$160)*($B$6=$AD$8:$AD$160),0),$C$3) -> 00:33:57 | D23: =INDEX($AA$8:$AE$160,MATCH(1,($A23=$AE$8:$AE$160)*($B$6=$AD$8:$AD$160),0),$D$3) -> HHH | F23: =INDEX($AA$8:$AE$160,MATCH(1,($A23=$AE$8:$AE$160)*($F$6=$AD$8:$AD$160),0),$B$3) -> Donald Maclellan | G23: =INDEX($AA$8:$AE$160,MATCH(1,($A23=$AE$8:$AE$160)*($F$6=$AD$8:$AD$160),0),$C$3) -> 00:34:40 | H23: =INDEX($AA$8:$AE$160,MATCH(1,($A23=$AE$8:$AE$160)*($F$6=$AD$8:$AD$160),0),$D$3) -> PHX | J23: =INDEX($AA$8:$AE$160,MATCH(1,($A23=$AE$8:$AE$160)*($J$6=$AD$8:$AD$160),0),$B$3) -> Colin Hartland | K23: =INDEX($AA$8:$AE$160,MATCH(1,($A23=$AE$8:$AE$160)*($J$6=$AD$8:$AD$160),0),$C$3) -> 00:47:43 | L23: =INDEX($AA$8:$AE$160,MATCH(1,($A23=$AE$8:$AE$160)*($J$6=$AD$8:$AD$160),0),$D$3) -> Lewes | M23: 16 | N23: =INDEX($AA$8:$AE$160,MATCH(1,($A23=$AE$8:$AE$160)*($N$6=$AD$8:$AD$160),0),$B$3) -> Flo Wolfe | O23: =INDEX($AA$8:$AE$160,MATCH(1,($A23=$AE$8:$AE$160)*($N$6=$AD$8:$AD$160),0),$C$3) -> 00:42:57 | P23: =INDEX($AA$8:$AE$160,MATCH(1,($A23=$AE$8:$AE$160)*($N$6=$AD$8:$AD$160),0),$D$3) -> BHR | R23: =INDEX($AA$8:$AE$160,MATCH(1,($A23=$AE$8:$AE$160)*($R$6=$AD$8:$AD$160),0),$B$3) -> Emma Buckland | S23: =INDEX($AA$8:$AE$160,MATCH(1,($A23=$AE$8:$AE$160)*($R$6=$AD$8:$AD$160),0),$C$3) -> 00:51:00 | T23: =INDEX($AA$8:$AE$160,MATCH(1,($A23=$AE$8:$AE$160)*($R$6=$AD$8:$AD$160),0),$D$3) -> BHR | Z23: 16 | AA23: HHH | AB23: =HHH!D12 -> James Moffat | AC23: =HHH!E12 -> 00:32:36 | AD23: =HHH!H12 -> M V | AE23: 7 | AF23: tied
A24: 17 | B24: =INDEX($AA$8:$AE$160,MATCH(1,($A24=$AE$8:$AE$160)*($B$6=$AD$8:$AD$160),0),$B$3) -> Peter Francis | C24: =INDEX($AA$8:$AE$160,MATCH(1,($A24=$AE$8:$AE$160)*($B$6=$AD$8:$AD$160),0),$C$3) -> 00:34:12 | D24: =INDEX($AA$8:$AE$160,MATCH(1,($A24=$AE$8:$AE$160)*($B$6=$AD$8:$AD$160),0),$D$3) -> HHH | F24: =INDEX($AA$8:$AE$160,MATCH(1,($A24=$AE$8:$AE$160)*($F$6=$AD$8:$AD$160),0),$B$3) -> Barry Tullett | G24: =INDEX($AA$8:$AE$160,MATCH(1,($A24=$AE$8:$AE$160)*($F$6=$AD$8:$AD$160),0),$C$3) -> 00:34:53 | H24: =INDEX($AA$8:$AE$160,MATCH(1,($A24=$AE$8:$AE$160)*($F$6=$AD$8:$AD$160),0),$D$3) -> HHH | J24: =INDEX($AA$8:$AE$160,MATCH(1,($A24=$AE$8:$AE$160)*($J$6=$AD$8:$AD$160),0),$B$3) -> Eogan McKenna | K24: =INDEX($AA$8:$AE$160,MATCH(1,($A24=$AE$8:$AE$160)*($J$6=$AD$8:$AD$160),0),$C$3) -> 00:49:56 | L24: =INDEX($AA$8:$AE$160,MATCH(1,($A24=$AE$8:$AE$160)*($J$6=$AD$8:$AD$160),0),$D$3) -> PHX | M24: 17 | N24: =INDEX($AA$8:$AE$160,MATCH(1,($A24=$AE$8:$AE$160)*($N$6=$AD$8:$AD$160),0),$B$3) -> Lydia Levy | O24: =INDEX($AA$8:$AE$160,MATCH(1,($A24=$AE$8:$AE$160)*($N$6=$AD$8:$AD$160),0),$C$3) -> 00:43:16 | P24: =INDEX($AA$8:$AE$160,MATCH(1,($A24=$AE$8:$AE$160)*($N$6=$AD$8:$AD$160),0),$D$3) -> HHH | R24: =INDEX($AA$8:$AE$160,MATCH(1,($A24=$AE$8:$AE$160)*($R$6=$AD$8:$AD$160),0),$B$3) -> Emma Hodgson | S24: =INDEX($AA$8:$AE$160,MATCH(1,($A24=$AE$8:$AE$160)*($R$6=$AD$8:$AD$160),0),$C$3) -> 00:53:27 | T24: =INDEX($AA$8:$AE$160,MATCH(1,($A24=$AE$8:$AE$160)*($R$6=$AD$8:$AD$160),0),$D$3) -> Lewes | Z24: 17 | AA24: PHX | AB24: =Phoenix!D13 -> Paul Weir | AC24: =Phoenix!E13 -> 00:32:36 | AD24: =Phoenix!H13 -> M S | AE24: 10 | AF24: tied
A25: 18 | B25: =INDEX($AA$8:$AE$160,MATCH(1,($A25=$AE$8:$AE$160)*($B$6=$AD$8:$AD$160),0),$B$3) -> Dermot Cameron | C25: =INDEX($AA$8:$AE$160,MATCH(1,($A25=$AE$8:$AE$160)*($B$6=$AD$8:$AD$160),0),$C$3) -> 00:34:19 | D25: =INDEX($AA$8:$AE$160,MATCH(1,($A25=$AE$8:$AE$160)*($B$6=$AD$8:$AD$160),0),$D$3) -> PHX | F25: =INDEX($AA$8:$AE$160,MATCH(1,($A25=$AE$8:$AE$160)*($F$6=$AD$8:$AD$160),0),$B$3) -> Jim Whitelegg | G25: =INDEX($AA$8:$AE$160,MATCH(1,($A25=$AE$8:$AE$160)*($F$6=$AD$8:$AD$160),0),$C$3) -> 00:34:59 | H25: =INDEX($AA$8:$AE$160,MATCH(1,($A25=$AE$8:$AE$160)*($F$6=$AD$8:$AD$160),0),$D$3) -> PHX | J25: =INDEX($AA$8:$AE$160,MATCH(1,($A25=$AE$8:$AE$160)*($J$6=$AD$8:$AD$160),0),$B$3) -> Rik Taub | K25: =INDEX($AA$8:$AE$160,MATCH(1,($A25=$AE$8:$AE$160)*($J$6=$AD$8:$AD$160),0),$C$3) -> 00:51:06 | L25: =INDEX($AA$8:$AE$160,MATCH(1,($A25=$AE$8:$AE$160)*($J$6=$AD$8:$AD$160),0),$D$3) -> PHX | M25: 18 | N25: =INDEX($AA$8:$AE$160,MATCH(1,($A25=$AE$8:$AE$160)*($N$6=$AD$8:$AD$160),0),$B$3) -> Gemma Morgan | O25: =INDEX($AA$8:$AE$160,MATCH(1,($A25=$AE$8:$AE$160)*($N$6=$AD$8:$AD$160),0),$C$3) -> 00:43:17 | P25: =INDEX($AA$8:$AE$160,MATCH(1,($A25=$AE$8:$AE$160)*($N$6=$AD$8:$AD$160),0),$D$3) -> HHH | R25: =INDEX($AA$8:$AE$160,MATCH(1,($A25=$AE$8:$AE$160)*($R$6=$AD$8:$AD$160),0),$B$3) -> Emma Gardner | S25: =INDEX($AA$8:$AE$160,MATCH(1,($A25=$AE$8:$AE$160)*($R$6=$AD$8:$AD$160),0),$C$3) -> 00:54:04 | T25: =INDEX($AA$8:$AE$160,MATCH(1,($A25=$AE$8:$AE$160)*($R$6=$AD$8:$AD$160),0),$D$3) -> Lewes | Z25: 18 | AA25: Lewes | AB25: =LewesAC!D10 -> Mike Green | AC25: =LewesAC!E10 -> 00:32:38 | AD25: =LewesAC!H10 -> M V | AE25: 8
A26: 19 | B26: =INDEX($AA$8:$AE$160,MATCH(1,($A26=$AE$8:$AE$160)*($B$6=$AD$8:$AD$160),0),$B$3) -> Sébastien Béhuret | C26: =INDEX($AA$8:$AE$160,MATCH(1,($A26=$AE$8:$AE$160)*($B$6=$AD$8:$AD$160),0),$C$3) -> 00:34:22 | D26: =INDEX($AA$8:$AE$160,MATCH(1,($A26=$AE$8:$AE$160)*($B$6=$AD$8:$AD$160),0),$D$3) -> PHX | F26: =INDEX($AA$8:$AE$160,MATCH(1,($A26=$AE$8:$AE$160)*($F$6=$AD$8:$AD$160),0),$B$3) -> Oliver Day | G26: =INDEX($AA$8:$AE$160,MATCH(1,($A26=$AE$8:$AE$160)*($F$6=$AD$8:$AD$160),0),$C$3) -> 00:35:07 | H26: =INDEX($AA$8:$AE$160,MATCH(1,($A26=$AE$8:$AE$160)*($F$6=$AD$8:$AD$160),0),$D$3) -> BHR | J26: =INDEX($AA$8:$AE$160,MATCH(1,($A26=$AE$8:$AE$160)*($J$6=$AD$8:$AD$160),0),$B$3) -> Malcolm Kemp | K26: =INDEX($AA$8:$AE$160,MATCH(1,($A26=$AE$8:$AE$160)*($J$6=$AD$8:$AD$160),0),$C$3) -> 00:51:06 | L26: =INDEX($AA$8:$AE$160,MATCH(1,($A26=$AE$8:$AE$160)*($J$6=$AD$8:$AD$160),0),$D$3) -> PHX | M26: 19 | N26: =INDEX($AA$8:$AE$160,MATCH(1,($A26=$AE$8:$AE$160)*($N$6=$AD$8:$AD$160),0),$B$3) -> Beth Hancock | O26: =INDEX($AA$8:$AE$160,MATCH(1,($A26=$AE$8:$AE$160)*($N$6=$AD$8:$AD$160),0),$C$3) -> 00:43:48 | P26: =INDEX($AA$8:$AE$160,MATCH(1,($A26=$AE$8:$AE$160)*($N$6=$AD$8:$AD$160),0),$D$3) -> Lewes | R26: =INDEX($AA$8:$AE$160,MATCH(1,($A26=$AE$8:$AE$160)*($R$6=$AD$8:$AD$160),0),$B$3) -> Julie Deakin | S26: =INDEX($AA$8:$AE$160,MATCH(1,($A26=$AE$8:$AE$160)*($R$6=$AD$8:$AD$160),0),$C$3) -> 00:54:12 | T26: =INDEX($AA$8:$AE$160,MATCH(1,($A26=$AE$8:$AE$160)*($R$6=$AD$8:$AD$160),0),$D$3) -> Lewes | Z26: 19 | AA26: HHH | AB26: =HHH!D13 -> Matt Cook | AC26: =HHH!E13 -> 00:32:45 | AD26: =HHH!H13 -> M S | AE26: 11
A27: 20 | B27: =INDEX($AA$8:$AE$160,MATCH(1,($A27=$AE$8:$AE$160)*($B$6=$AD$8:$AD$160),0),$B$3) -> Mark Nichol 1 | C27: =INDEX($AA$8:$AE$160,MATCH(1,($A27=$AE$8:$AE$160)*($B$6=$AD$8:$AD$160),0),$C$3) -> 00:34:34 | D27: =INDEX($AA$8:$AE$160,MATCH(1,($A27=$AE$8:$AE$160)*($B$6=$AD$8:$AD$160),0),$D$3) -> BHR | F27: =INDEX($AA$8:$AE$160,MATCH(1,($A27=$AE$8:$AE$160)*($F$6=$AD$8:$AD$160),0),$B$3) -> Simon Robinson | G27: =INDEX($AA$8:$AE$160,MATCH(1,($A27=$AE$8:$AE$160)*($F$6=$AD$8:$AD$160),0),$C$3) -> 00:35:32 | H27: =INDEX($AA$8:$AE$160,MATCH(1,($A27=$AE$8:$AE$160)*($F$6=$AD$8:$AD$160),0),$D$3) -> HHH | J27: =INDEX($AA$8:$AE$160,MATCH(1,($A27=$AE$8:$AE$160)*($J$6=$AD$8:$AD$160),0),$B$3) -> Pete Brownlie | K27: =INDEX($AA$8:$AE$160,MATCH(1,($A27=$AE$8:$AE$160)*($J$6=$AD$8:$AD$160),0),$C$3) -> 00:51:40 | L27: =INDEX($AA$8:$AE$160,MATCH(1,($A27=$AE$8:$AE$160)*($J$6=$AD$8:$AD$160),0),$D$3) -> BHR | M27: 20 | N27: =INDEX($AA$8:$AE$160,MATCH(1,($A27=$AE$8:$AE$160)*($N$6=$AD$8:$AD$160),0),$B$3) -> Val Avella | O27: =INDEX($AA$8:$AE$160,MATCH(1,($A27=$AE$8:$AE$160)*($N$6=$AD$8:$AD$160),0),$C$3) -> 00:44:08 | P27: =INDEX($AA$8:$AE$160,MATCH(1,($A27=$AE$8:$AE$160)*($N$6=$AD$8:$AD$160),0),$D$3) -> PHX | R27: =INDEX($AA$8:$AE$160,MATCH(1,($A27=$AE$8:$AE$160)*($R$6=$AD$8:$AD$160),0),$B$3) -> Eileen Adlam | S27: =INDEX($AA$8:$AE$160,MATCH(1,($A27=$AE$8:$AE$160)*($R$6=$AD$8:$AD$160),0),$C$3) -> 01:18:08 | T27: =INDEX($AA$8:$AE$160,MATCH(1,($A27=$AE$8:$AE$160)*($R$6=$AD$8:$AD$160),0),$D$3) -> BHR | Z27: 20 | AA27: Lewes | AB27: =LewesAC!D11 -> Ben Pepler | AC27: =LewesAC!E11 -> 00:32:49 | AD27: =LewesAC!H11 -> M S | AE27: 12
A28: 21 | B28: =INDEX($AA$8:$AE$160,MATCH(1,($A28=$AE$8:$AE$160)*($B$6=$AD$8:$AD$160),0),$B$3) -> Gregory Hilton | C28: =INDEX($AA$8:$AE$160,MATCH(1,($A28=$AE$8:$AE$160)*($B$6=$AD$8:$AD$160),0),$C$3) -> 00:35:09 | D28: =INDEX($AA$8:$AE$160,MATCH(1,($A28=$AE$8:$AE$160)*($B$6=$AD$8:$AD$160),0),$D$3) -> HHH | F28: =INDEX($AA$8:$AE$160,MATCH(1,($A28=$AE$8:$AE$160)*($F$6=$AD$8:$AD$160),0),$B$3) -> Robert Cooper | G28: =INDEX($AA$8:$AE$160,MATCH(1,($A28=$AE$8:$AE$160)*($F$6=$AD$8:$AD$160),0),$C$3) -> 00:35:41 | H28: =INDEX($AA$8:$AE$160,MATCH(1,($A28=$AE$8:$AE$160)*($F$6=$AD$8:$AD$160),0),$D$3) -> Lewes | J28: =INDEX($AA$8:$AE$160,MATCH(1,($A28=$AE$8:$AE$160)*($J$6=$AD$8:$AD$160),0),$B$3) -> David Clark | K28: =INDEX($AA$8:$AE$160,MATCH(1,($A28=$AE$8:$AE$160)*($J$6=$AD$8:$AD$160),0),$C$3) -> 01:01:54 | L28: =INDEX($AA$8:$AE$160,MATCH(1,($A28=$AE$8:$AE$160)*($J$6=$AD$8:$AD$160),0),$D$3) -> BHR | M28: 21 | N28: =INDEX($AA$8:$AE$160,MATCH(1,($A28=$AE$8:$AE$160)*($N$6=$AD$8:$AD$160),0),$B$3) -> Amy Lovejoy | O28: =INDEX($AA$8:$AE$160,MATCH(1,($A28=$AE$8:$AE$160)*($N$6=$AD$8:$AD$160),0),$C$3) -> 00:45:41 | P28: =INDEX($AA$8:$AE$160,MATCH(1,($A28=$AE$8:$AE$160)*($N$6=$AD$8:$AD$160),0),$D$3) -> HHH | R28: =INDEX($AA$8:$AE$160,MATCH(1,($A28=$AE$8:$AE$160)*($R$6=$AD$8:$AD$160),0),$B$3) ->  | S28: =INDEX($AA$8:$AE$160,MATCH(1,($A28=$AE$8:$AE$160)*($R$6=$AD$8:$AD$160),0),$C$3) ->  | T28: =INDEX($AA$8:$AE$160,MATCH(1,($A28=$AE$8:$AE$160)*($R$6=$AD$8:$AD$160),0),$D$3) ->  | Z28: 21 | AA28: PHX | AB28: =Phoenix!D14 -> Tom Clewley | AC28: =Phoenix!E14 -> 00:33:00 | AD28: =Phoenix!H14 -> M S | AE28: 13
A29: 22 | B29: =INDEX($AA$8:$AE$160,MATCH(1,($A29=$AE$8:$AE$160)*($B$6=$AD$8:$AD$160),0),$B$3) -> Simeon Wishlade | C29: =INDEX($AA$8:$AE$160,MATCH(1,($A29=$AE$8:$AE$160)*($B$6=$AD$8:$AD$160),0),$C$3) -> 00:35:31 | D29: =INDEX($AA$8:$AE$160,MATCH(1,($A29=$AE$8:$AE$160)*($B$6=$AD$8:$AD$160),0),$D$3) -> HHH | F29: =INDEX($AA$8:$AE$160,MATCH(1,($A29=$AE$8:$AE$160)*($F$6=$AD$8:$AD$160),0),$B$3) -> Tom Sanderson | G29: =INDEX($AA$8:$AE$160,MATCH(1,($A29=$AE$8:$AE$160)*($F$6=$AD$8:$AD$160),0),$C$3) -> 00:35:47 | H29: =INDEX($AA$8:$AE$160,MATCH(1,($A29=$AE$8:$AE$160)*($F$6=$AD$8:$AD$160),0),$D$3) -> PHX | J29: =INDEX($AA$8:$AE$160,MATCH(1,($A29=$AE$8:$AE$160)*($J$6=$AD$8:$AD$160),0),$B$3) ->  | K29: =INDEX($AA$8:$AE$160,MATCH(1,($A29=$AE$8:$AE$160)*($J$6=$AD$8:$AD$160),0),$C$3) ->  | L29: =INDEX($AA$8:$AE$160,MATCH(1,($A29=$AE$8:$AE$160)*($J$6=$AD$8:$AD$160),0),$D$3) ->  | M29: 22 | N29: =INDEX($AA$8:$AE$160,MATCH(1,($A29=$AE$8:$AE$160)*($N$6=$AD$8:$AD$160),0),$B$3) -> Mercy Dennis-Smith | O29: =INDEX($AA$8:$AE$160,MATCH(1,($A29=$AE$8:$AE$160)*($N$6=$AD$8:$AD$160),0),$C$3) -> 00:46:50 | P29: =INDEX($AA$8:$AE$160,MATCH(1,($A29=$AE$8:$AE$160)*($N$6=$AD$8:$AD$160),0),$D$3) -> BHR | Z29: 22 | AA29: BHR | AB29: =BHR!D8 -> Philip Wallek | AC29: =BHR!E8 -> 00:33:24 | AD29: =BHR!H8 -> M S | AE29: 14
A30: 23 | B30: =INDEX($AA$8:$AE$160,MATCH(1,($A30=$AE$8:$AE$160)*($B$6=$AD$8:$AD$160),0),$B$3) -> Kai Robinson | C30: =INDEX($AA$8:$AE$160,MATCH(1,($A30=$AE$8:$AE$160)*($B$6=$AD$8:$AD$160),0),$C$3) -> 00:36:32 | D30: =INDEX($AA$8:$AE$160,MATCH(1,($A30=$AE$8:$AE$160)*($B$6=$AD$8:$AD$160),0),$D$3) -> HHH | F30: =INDEX($AA$8:$AE$160,MATCH(1,($A30=$AE$8:$AE$160)*($F$6=$AD$8:$AD$160),0),$B$3) -> Paul Cousins | G30: =INDEX($AA$8:$AE$160,MATCH(1,($A30=$AE$8:$AE$160)*($F$6=$AD$8:$AD$160),0),$C$3) -> 00:35:57 | H30: =INDEX($AA$8:$AE$160,MATCH(1,($A30=$AE$8:$AE$160)*($F$6=$AD$8:$AD$160),0),$D$3) -> HHH | J30: =INDEX($AA$8:$AE$160,MATCH(1,($A30=$AE$8:$AE$160)*($J$6=$AD$8:$AD$160),0),$B$3) ->  | K30: =INDEX($AA$8:$AE$160,MATCH(1,($A30=$AE$8:$AE$160)*($J$6=$AD$8:$AD$160),0),$C$3) ->  | L30: =INDEX($AA$8:$AE$160,MATCH(1,($A30=$AE$8:$AE$160)*($J$6=$AD$8:$AD$160),0),$D$3) ->  | M30: 23 | N30: =INDEX($AA$8:$AE$160,MATCH(1,($A30=$AE$8:$AE$160)*($N$6=$AD$8:$AD$160),0),$B$3) -> Carys Hind | O30: =INDEX($AA$8:$AE$160,MATCH(1,($A30=$AE$8:$AE$160)*($N$6=$AD$8:$AD$160),0),$C$3) -> 00:50:55 | P30: =INDEX($AA$8:$AE$160,MATCH(1,($A30=$AE$8:$AE$160)*($N$6=$AD$8:$AD$160),0),$D$3) -> HHH | Z30: 23 | AA30: HHH | AB30: =HHH!D14 -> Matthew King | AC30: =HHH!E14 -> 00:33:39 | AD30: =HHH!H14 -> M S | AE30: 15
A31: 24 | B31: =INDEX($AA$8:$AE$160,MATCH(1,($A31=$AE$8:$AE$160)*($B$6=$AD$8:$AD$160),0),$B$3) -> Russell Mullen | C31: =INDEX($AA$8:$AE$160,MATCH(1,($A31=$AE$8:$AE$160)*($B$6=$AD$8:$AD$160),0),$C$3) -> 00:36:52 | D31: =INDEX($AA$8:$AE$160,MATCH(1,($A31=$AE$8:$AE$160)*($B$6=$AD$8:$AD$160),0),$D$3) -> HHH | F31: =INDEX($AA$8:$AE$160,MATCH(1,($A31=$AE$8:$AE$160)*($F$6=$AD$8:$AD$160),0),$B$3) -> Julian Boyer | G31: =INDEX($AA$8:$AE$160,MATCH(1,($A31=$AE$8:$AE$160)*($F$6=$AD$8:$AD$160),0),$C$3) -> 00:36:14 | H31: =INDEX($AA$8:$AE$160,MATCH(1,($A31=$AE$8:$AE$160)*($F$6=$AD$8:$AD$160),0),$D$3) -> HHH | J31: =INDEX($AA$8:$AE$160,MATCH(1,($A31=$AE$8:$AE$160)*($J$6=$AD$8:$AD$160),0),$B$3) ->  | K31: =INDEX($AA$8:$AE$160,MATCH(1,($A31=$AE$8:$AE$160)*($J$6=$AD$8:$AD$160),0),$C$3) ->  | L31: =INDEX($AA$8:$AE$160,MATCH(1,($A31=$AE$8:$AE$160)*($J$6=$AD$8:$AD$160),0),$D$3) ->  | M31: 24 | N31: =INDEX($AA$8:$AE$160,MATCH(1,($A31=$AE$8:$AE$160)*($N$6=$AD$8:$AD$160),0),$B$3) -> Christelle Maugiron | O31: =INDEX($AA$8:$AE$160,MATCH(1,($A31=$AE$8:$AE$160)*($N$6=$AD$8:$AD$160),0),$C$3) -> 00:51:47 | P31: =INDEX($AA$8:$AE$160,MATCH(1,($A31=$AE$8:$AE$160)*($N$6=$AD$8:$AD$160),0),$D$3) -> BHR | Z31: 24 | AA31: PHX | AB31: =Phoenix!D15 -> Matt Greenall | AC31: =Phoenix!E15 -> 00:33:47 | AD31: =Phoenix!H15 -> M V | AE31: 9
A32: 25 | B32: =INDEX($AA$8:$AE$160,MATCH(1,($A32=$AE$8:$AE$160)*($B$6=$AD$8:$AD$160),0),$B$3) -> Andrew Haslam | C32: =INDEX($AA$8:$AE$160,MATCH(1,($A32=$AE$8:$AE$160)*($B$6=$AD$8:$AD$160),0),$C$3) -> 00:37:50 | D32: =INDEX($AA$8:$AE$160,MATCH(1,($A32=$AE$8:$AE$160)*($B$6=$AD$8:$AD$160),0),$D$3) -> PHX | F32: =INDEX($AA$8:$AE$160,MATCH(1,($A32=$AE$8:$AE$160)*($F$6=$AD$8:$AD$160),0),$B$3) -> Dave Warren | G32: =INDEX($AA$8:$AE$160,MATCH(1,($A32=$AE$8:$AE$160)*($F$6=$AD$8:$AD$160),0),$C$3) -> 00:36:34 | H32: =INDEX($AA$8:$AE$160,MATCH(1,($A32=$AE$8:$AE$160)*($F$6=$AD$8:$AD$160),0),$D$3) -> HHH | M32: 25 | N32: =INDEX($AA$8:$AE$160,MATCH(1,($A32=$AE$8:$AE$160)*($N$6=$AD$8:$AD$160),0),$B$3) -> Naomi Ross | O32: =INDEX($AA$8:$AE$160,MATCH(1,($A32=$AE$8:$AE$160)*($N$6=$AD$8:$AD$160),0),$C$3) -> 00:54:10 | P32: =INDEX($AA$8:$AE$160,MATCH(1,($A32=$AE$8:$AE$160)*($N$6=$AD$8:$AD$160),0),$D$3) -> Lewes | Z32: 25 | AA32: PHX | AB32: =Phoenix!D16 -> Tony Rickwood | AC32: =Phoenix!E16 -> 00:33:55 | AD32: =Phoenix!H16 -> M V | AE32: 10
A33: 26 | B33: =INDEX($AA$8:$AE$160,MATCH(1,($A33=$AE$8:$AE$160)*($B$6=$AD$8:$AD$160),0),$B$3) -> Matt Howells | C33: =INDEX($AA$8:$AE$160,MATCH(1,($A33=$AE$8:$AE$160)*($B$6=$AD$8:$AD$160),0),$C$3) -> 00:39:39 | D33: =INDEX($AA$8:$AE$160,MATCH(1,($A33=$AE$8:$AE$160)*($B$6=$AD$8:$AD$160),0),$D$3) -> HHH | F33: =INDEX($AA$8:$AE$160,MATCH(1,($A33=$AE$8:$AE$160)*($F$6=$AD$8:$AD$160),0),$B$3) -> Barry Blackwell | G33: =INDEX($AA$8:$AE$160,MATCH(1,($A33=$AE$8:$AE$160)*($F$6=$AD$8:$AD$160),0),$C$3) -> 00:36:40 | H33: =INDEX($AA$8:$AE$160,MATCH(1,($A33=$AE$8:$AE$160)*($F$6=$AD$8:$AD$160),0),$D$3) -> PHX | M33: 26 | N33: =INDEX($AA$8:$AE$160,MATCH(1,($A33=$AE$8:$AE$160)*($N$6=$AD$8:$AD$160),0),$B$3) -> Ella Grabsky | O33: =INDEX($AA$8:$AE$160,MATCH(1,($A33=$AE$8:$AE$160)*($N$6=$AD$8:$AD$160),0),$C$3) -> 01:00:42 | P33: =INDEX($AA$8:$AE$160,MATCH(1,($A33=$AE$8:$AE$160)*($N$6=$AD$8:$AD$160),0),$D$3) -> PHX | Z33: 26 | AA33: Lewes | AB33: =LewesAC!D12 -> Ben Hodgson | AC33: =LewesAC!E12 -> 00:33:57 | AD33: =LewesAC!H12 -> M V | AE33: 11 | AF33: tied
A34: 27 | B34: =INDEX($AA$8:$AE$160,MATCH(1,($A34=$AE$8:$AE$160)*($B$6=$AD$8:$AD$160),0),$B$3) -> Josh Franks | C34: =INDEX($AA$8:$AE$160,MATCH(1,($A34=$AE$8:$AE$160)*($B$6=$AD$8:$AD$160),0),$C$3) -> 00:43:10 | D34: =INDEX($AA$8:$AE$160,MATCH(1,($A34=$AE$8:$AE$160)*($B$6=$AD$8:$AD$160),0),$D$3) -> HHH | F34: =INDEX($AA$8:$AE$160,MATCH(1,($A34=$AE$8:$AE$160)*($F$6=$AD$8:$AD$160),0),$B$3) -> Andy Bone | G34: =INDEX($AA$8:$AE$160,MATCH(1,($A34=$AE$8:$AE$160)*($F$6=$AD$8:$AD$160),0),$C$3) -> 00:37:12 | H34: =INDEX($AA$8:$AE$160,MATCH(1,($A34=$AE$8:$AE$160)*($F$6=$AD$8:$AD$160),0),$D$3) -> PHX | M34: 27 | N34: =INDEX($AA$8:$AE$160,MATCH(1,($A34=$AE$8:$AE$160)*($N$6=$AD$8:$AD$160),0),$B$3) -> Isabelle Adlam | O34: =INDEX($AA$8:$AE$160,MATCH(1,($A34=$AE$8:$AE$160)*($N$6=$AD$8:$AD$160),0),$C$3) -> 01:15:00 | P34: =INDEX($AA$8:$AE$160,MATCH(1,($A34=$AE$8:$AE$160)*($N$6=$AD$8:$AD$160),0),$D$3) -> BHR | Z34: 27 | AA34: HHH | AB34: =HHH!D15 -> Michael Burke | AC34: =HHH!E15 -> 00:33:57 | AD34: =HHH!H15 -> M S | AE34: 16 | AF34: tied
A35: 28 | B35: =INDEX($AA$8:$AE$160,MATCH(1,($A35=$AE$8:$AE$160)*($B$6=$AD$8:$AD$160),0),$B$3) -> Steve Barrett | C35: =INDEX($AA$8:$AE$160,MATCH(1,($A35=$AE$8:$AE$160)*($B$6=$AD$8:$AD$160),0),$C$3) -> 00:44:52 | D35: =INDEX($AA$8:$AE$160,MATCH(1,($A35=$AE$8:$AE$160)*($B$6=$AD$8:$AD$160),0),$D$3) -> BHR | F35: =INDEX($AA$8:$AE$160,MATCH(1,($A35=$AE$8:$AE$160)*($F$6=$AD$8:$AD$160),0),$B$3) -> Michael Ussher | G35: =INDEX($AA$8:$AE$160,MATCH(1,($A35=$AE$8:$AE$160)*($F$6=$AD$8:$AD$160),0),$C$3) -> 00:37:39 | H35: =INDEX($AA$8:$AE$160,MATCH(1,($A35=$AE$8:$AE$160)*($F$6=$AD$8:$AD$160),0),$D$3) -> Lewes | N35: =INDEX($AA$8:$AE$160,MATCH(1,($A35=$AE$8:$AE$160)*($N$6=$AD$8:$AD$160),0),$B$3) ->  | O35: =INDEX($AA$8:$AE$160,MATCH(1,($A35=$AE$8:$AE$160)*($N$6=$AD$8:$AD$160),0),$C$3) ->  | P35: =INDEX($AA$8:$AE$160,MATCH(1,($A35=$AE$8:$AE$160)*($N$6=$AD$8:$AD$160),0),$D$3) ->  | Z35: 28 | AA35: Lewes | AB35: =LewesAC!D13 -> Rick Curtis | AC35: =LewesAC!E13 -> 00:34:00 | AD35: =LewesAC!H13 -> M V | AE35: 12
A36: 29 | B36: =INDEX($AA$8:$AE$160,MATCH(1,($A36=$AE$8:$AE$160)*($B$6=$AD$8:$AD$160),0),$B$3) -> Cameron Cooper | C36: =INDEX($AA$8:$AE$160,MATCH(1,($A36=$AE$8:$AE$160)*($B$6=$AD$8:$AD$160),0),$C$3) -> 00:47:57 | D36: =INDEX($AA$8:$AE$160,MATCH(1,($A36=$AE$8:$AE$160)*($B$6=$AD$8:$AD$160),0),$D$3) -> BHR | F36: =INDEX($AA$8:$AE$160,MATCH(1,($A36=$AE$8:$AE$160)*($F$6=$AD$8:$AD$160),0),$B$3) -> Ian Jones | G36: =INDEX($AA$8:$AE$160,MATCH(1,($A36=$AE$8:$AE$160)*($F$6=$AD$8:$AD$160),0),$C$3) -> 00:37:54 | H36: =INDEX($AA$8:$AE$160,MATCH(1,($A36=$AE$8:$AE$160)*($F$6=$AD$8:$AD$160),0),$D$3) -> BHR | N36: =INDEX($AA$8:$AE$160,MATCH(1,($A36=$AE$8:$AE$160)*($N$6=$AD$8:$AD$160),0),$B$3) ->  | O36: =INDEX($AA$8:$AE$160,MATCH(1,($A36=$AE$8:$AE$160)*($N$6=$AD$8:$AD$160),0),$C$3) ->  | P36: =INDEX($AA$8:$AE$160,MATCH(1,($A36=$AE$8:$AE$160)*($N$6=$AD$8:$AD$160),0),$D$3) ->  | Z36: 29 | AA36: HHH | AB36: =HHH!D16 -> Tim Miller | AC36: =HHH!E16 -> 00:34:11 | AD36: =HHH!H16 -> M V | AE36: 13
A37: 30 | B37: =INDEX($AA$8:$AE$160,MATCH(1,($A37=$AE$8:$AE$160)*($B$6=$AD$8:$AD$160),0),$B$3) -> Chris Hine | C37: =INDEX($AA$8:$AE$160,MATCH(1,($A37=$AE$8:$AE$160)*($B$6=$AD$8:$AD$160),0),$C$3) -> 00:50:35 | D37: =INDEX($AA$8:$AE$160,MATCH(1,($A37=$AE$8:$AE$160)*($B$6=$AD$8:$AD$160),0),$D$3) -> BHR | F37: =INDEX($AA$8:$AE$160,MATCH(1,($A37=$AE$8:$AE$160)*($F$6=$AD$8:$AD$160),0),$B$3) -> Andy Dray | G37: =INDEX($AA$8:$AE$160,MATCH(1,($A37=$AE$8:$AE$160)*($F$6=$AD$8:$AD$160),0),$C$3) -> 00:37:56 | H37: =INDEX($AA$8:$AE$160,MATCH(1,($A37=$AE$8:$AE$160)*($F$6=$AD$8:$AD$160),0),$D$3) -> HHH | Z37: 30 | AA37: HHH | AB37: =HHH!D17 -> Peter Francis | AC37: =HHH!E17 -> 00:34:12 | AD37: =HHH!H17 -> M S | AE37: 17
A38: 31 | B38: =INDEX($AA$8:$AE$160,MATCH(1,($A38=$AE$8:$AE$160)*($B$6=$AD$8:$AD$160),0),$B$3) ->  | C38: =INDEX($AA$8:$AE$160,MATCH(1,($A38=$AE$8:$AE$160)*($B$6=$AD$8:$AD$160),0),$C$3) ->  | D38: =INDEX($AA$8:$AE$160,MATCH(1,($A38=$AE$8:$AE$160)*($B$6=$AD$8:$AD$160),0),$D$3) ->  | F38: =INDEX($AA$8:$AE$160,MATCH(1,($A38=$AE$8:$AE$160)*($F$6=$AD$8:$AD$160),0),$B$3) -> Mauro Lazzati | G38: =INDEX($AA$8:$AE$160,MATCH(1,($A38=$AE$8:$AE$160)*($F$6=$AD$8:$AD$160),0),$C$3) -> 00:38:26 | H38: =INDEX($AA$8:$AE$160,MATCH(1,($A38=$AE$8:$AE$160)*($F$6=$AD$8:$AD$160),0),$D$3) -> Lewes | Z38: 31 | AA38: PHX | AB38: =Phoenix!D17 -> Dermot Cameron | AC38: =Phoenix!E17 -> 00:34:19 | AD38: =Phoenix!H17 -> M S | AE38: 18
A39: 32 | B39: =INDEX($AA$8:$AE$160,MATCH(1,($A39=$AE$8:$AE$160)*($B$6=$AD$8:$AD$160),0),$B$3) ->  | C39: =INDEX($AA$8:$AE$160,MATCH(1,($A39=$AE$8:$AE$160)*($B$6=$AD$8:$AD$160),0),$C$3) ->  | D39: =INDEX($AA$8:$AE$160,MATCH(1,($A39=$AE$8:$AE$160)*($B$6=$AD$8:$AD$160),0),$D$3) ->  | F39: =INDEX($AA$8:$AE$160,MATCH(1,($A39=$AE$8:$AE$160)*($F$6=$AD$8:$AD$160),0),$B$3) -> Andy Pumphrey | G39: =INDEX($AA$8:$AE$160,MATCH(1,($A39=$AE$8:$AE$160)*($F$6=$AD$8:$AD$160),0),$C$3) -> 00:38:28 | H39: =INDEX($AA$8:$AE$160,MATCH(1,($A39=$AE$8:$AE$160)*($F$6=$AD$8:$AD$160),0),$D$3) -> PHX | Z39: 32 | AA39: PHX | AB39: =Phoenix!D18 -> Sébastien Béhuret | AC39: =Phoenix!E18 -> 00:34:22 | AD39: =Phoenix!H18 -> M S | AE39: 19
A40: 33 | B40: =INDEX($AA$8:$AE$160,MATCH(1,($A40=$AE$8:$AE$160)*($B$6=$AD$8:$AD$160),0),$B$3) ->  | C40: =INDEX($AA$8:$AE$160,MATCH(1,($A40=$AE$8:$AE$160)*($B$6=$AD$8:$AD$160),0),$C$3) ->  | D40: =INDEX($AA$8:$AE$160,MATCH(1,($A40=$AE$8:$AE$160)*($B$6=$AD$8:$AD$160),0),$D$3) ->  | F40: =INDEX($AA$8:$AE$160,MATCH(1,($A40=$AE$8:$AE$160)*($F$6=$AD$8:$AD$160),0),$B$3) -> Chris Faulkner | G40: =INDEX($AA$8:$AE$160,MATCH(1,($A40=$AE$8:$AE$160)*($F$6=$AD$8:$AD$160),0),$C$3) -> 00:38:32 | H40: =INDEX($AA$8:$AE$160,MATCH(1,($A40=$AE$8:$AE$160)*($F$6=$AD$8:$AD$160),0),$D$3) -> HHH | Z40: 33 | AA40: PHX | AB40: =Phoenix!D19 -> Bobby Searle | AC40: =Phoenix!E19 -> 00:34:23 | AD40: =Phoenix!H19 -> F S | AE40: =COUNTIFS($AD$8:$AD$160,AD40,$AC$8:$AC$160,"<"&AC40)+1 -> 1
A41: 34 | F41: =INDEX($AA$8:$AE$160,MATCH(1,($A41=$AE$8:$AE$160)*($F$6=$AD$8:$AD$160),0),$B$3) -> Jamie Goodhead | G41: =INDEX($AA$8:$AE$160,MATCH(1,($A41=$AE$8:$AE$160)*($F$6=$AD$8:$AD$160),0),$C$3) -> 00:38:39 | H41: =INDEX($AA$8:$AE$160,MATCH(1,($A41=$AE$8:$AE$160)*($F$6=$AD$8:$AD$160),0),$D$3) -> BHR | Z41: 34 | AA41: PHX | AB41: =Phoenix!D20 -> Paul Lawrence | AC41: =Phoenix!E20 -> 00:34:30 | AD41: =Phoenix!H20 -> M V | AE41: 14
A42: 35 | F42: =INDEX($AA$8:$AE$160,MATCH(1,($A42=$AE$8:$AE$160)*($F$6=$AD$8:$AD$160),0),$B$3) -> Ian Dumbrell | G42: =INDEX($AA$8:$AE$160,MATCH(1,($A42=$AE$8:$AE$160)*($F$6=$AD$8:$AD$160),0),$C$3) -> 00:38:39.010 | H42: =INDEX($AA$8:$AE$160,MATCH(1,($A42=$AE$8:$AE$160)*($F$6=$AD$8:$AD$160),0),$D$3) -> HHH | Z42: 35 | AA42: BHR | AB42: =BHR!D9 -> Mark Nichol 1 | AC42: =BHR!E9 -> 00:34:34 | AD42: =BHR!H9 -> M S | AE42: 20
A43: 36 | F43: =INDEX($AA$8:$AE$160,MATCH(1,($A43=$AE$8:$AE$160)*($F$6=$AD$8:$AD$160),0),$B$3) -> Jason Robinson | G43: =INDEX($AA$8:$AE$160,MATCH(1,($A43=$AE$8:$AE$160)*($F$6=$AD$8:$AD$160),0),$C$3) -> 00:38:48 | H43: =INDEX($AA$8:$AE$160,MATCH(1,($A43=$AE$8:$AE$160)*($F$6=$AD$8:$AD$160),0),$D$3) -> HHH | Z43: 36 | AA43: PHX | AB43: =Phoenix!D21 -> Geoff Pike | AC43: =Phoenix!E21 -> 00:34:35 | AD43: =Phoenix!H21 -> M V | AE43: 15
A44: 37 | F44: =INDEX($AA$8:$AE$160,MATCH(1,($A44=$AE$8:$AE$160)*($F$6=$AD$8:$AD$160),0),$B$3) -> Rob Stanway | G44: =INDEX($AA$8:$AE$160,MATCH(1,($A44=$AE$8:$AE$160)*($F$6=$AD$8:$AD$160),0),$C$3) -> 00:39:01 | H44: =INDEX($AA$8:$AE$160,MATCH(1,($A44=$AE$8:$AE$160)*($F$6=$AD$8:$AD$160),0),$D$3) -> Lewes | Z44: 37 | AA44: PHX | AB44: =Phoenix!D22 -> Donald Maclellan | AC44: =Phoenix!E22 -> 00:34:40 | AD44: =Phoenix!H22 -> M V | AE44: 16 | AF44: tied
A45: 38 | F45: =INDEX($AA$8:$AE$160,MATCH(1,($A45=$AE$8:$AE$160)*($F$6=$AD$8:$AD$160),0),$B$3) -> Andrew Brooks | G45: =INDEX($AA$8:$AE$160,MATCH(1,($A45=$AE$8:$AE$160)*($F$6=$AD$8:$AD$160),0),$C$3) -> 00:39:09 | H45: =INDEX($AA$8:$AE$160,MATCH(1,($A45=$AE$8:$AE$160)*($F$6=$AD$8:$AD$160),0),$D$3) -> PHX | Z45: 38 | AA45: PHX | AB45: =Phoenix!D23 -> Paul Whelpton | AC45: =Phoenix!E23 -> 00:34:40 | AD45: =Phoenix!H23 -> M SV | AE45: 1 | AF45: tied
A46: 39 | F46: =INDEX($AA$8:$AE$160,MATCH(1,($A46=$AE$8:$AE$160)*($F$6=$AD$8:$AD$160),0),$B$3) -> Mat Homewood | G46: =INDEX($AA$8:$AE$160,MATCH(1,($A46=$AE$8:$AE$160)*($F$6=$AD$8:$AD$160),0),$C$3) -> 00:39:37 | H46: =INDEX($AA$8:$AE$160,MATCH(1,($A46=$AE$8:$AE$160)*($F$6=$AD$8:$AD$160),0),$D$3) -> Lewes | Z46: 39 | AA46: HHH | AB46: =HHH!D18 -> Barry Tullett | AC46: =HHH!E18 -> 00:34:53 | AD46: =HHH!H18 -> M V | AE46: 17
A47: 40 | F47: =INDEX($AA$8:$AE$160,MATCH(1,($A47=$AE$8:$AE$160)*($F$6=$AD$8:$AD$160),0),$B$3) -> David Foster | G47: =INDEX($AA$8:$AE$160,MATCH(1,($A47=$AE$8:$AE$160)*($F$6=$AD$8:$AD$160),0),$C$3) -> 00:39:39 | H47: =INDEX($AA$8:$AE$160,MATCH(1,($A47=$AE$8:$AE$160)*($F$6=$AD$8:$AD$160),0),$D$3) -> Lewes | Z47: 40 | AA47: PHX | AB47: =Phoenix!D24 -> Jim Whitelegg | AC47: =Phoenix!E24 -> 00:34:59 | AD47: =Phoenix!H24 -> M V | AE47: 18
A48: 41 | F48: =INDEX($AA$8:$AE$160,MATCH(1,($A48=$AE$8:$AE$160)*($F$6=$AD$8:$AD$160),0),$B$3) -> Mike Townley | G48: =INDEX($AA$8:$AE$160,MATCH(1,($A48=$AE$8:$AE$160)*($F$6=$AD$8:$AD$160),0),$C$3) -> 00:39:55 | H48: =INDEX($AA$8:$AE$160,MATCH(1,($A48=$AE$8:$AE$160)*($F$6=$AD$8:$AD$160),0),$D$3) -> PHX | Z48: 41 | AA48: BHR | AB48: =BHR!D10 -> Oliver Day | AC48: =BHR!E10 -> 00:35:07 | AD48: =BHR!H10 -> M V | AE48: 19
A49: 42 | F49: =INDEX($AA$8:$AE$160,MATCH(1,($A49=$AE$8:$AE$160)*($F$6=$AD$8:$AD$160),0),$B$3) -> Geoff Manns | G49: =INDEX($AA$8:$AE$160,MATCH(1,($A49=$AE$8:$AE$160)*($F$6=$AD$8:$AD$160),0),$C$3) -> 00:39:58 | H49: =INDEX($AA$8:$AE$160,MATCH(1,($A49=$AE$8:$AE$160)*($F$6=$AD$8:$AD$160),0),$D$3) -> PHX | Z49: 42 | AA49: HHH | AB49: =HHH!D19 -> Gregory Hilton | AC49: =HHH!E19 -> 00:35:09 | AD49: =HHH!H19 -> M S | AE49: 21
A50: 43 | F50: =INDEX($AA$8:$AE$160,MATCH(1,($A50=$AE$8:$AE$160)*($F$6=$AD$8:$AD$160),0),$B$3) -> Peter Harding | G50: =INDEX($AA$8:$AE$160,MATCH(1,($A50=$AE$8:$AE$160)*($F$6=$AD$8:$AD$160),0),$C$3) -> 00:42:05 | H50: =INDEX($AA$8:$AE$160,MATCH(1,($A50=$AE$8:$AE$160)*($F$6=$AD$8:$AD$160),0),$D$3) -> HHH | Z50: 43 | AA50: HHH | AB50: =HHH!D20 -> Simeon Wishlade | AC50: =HHH!E20 -> 00:35:31 | AD50: =HHH!H20 -> M S | AE50: 22
A51: 44 | F51: =INDEX($AA$8:$AE$160,MATCH(1,($A51=$AE$8:$AE$160)*($F$6=$AD$8:$AD$160),0),$B$3) -> Andy Perris | G51: =INDEX($AA$8:$AE$160,MATCH(1,($A51=$AE$8:$AE$160)*($F$6=$AD$8:$AD$160),0),$C$3) -> 00:44:19 | H51: =INDEX($AA$8:$AE$160,MATCH(1,($A51=$AE$8:$AE$160)*($F$6=$AD$8:$AD$160),0),$D$3) -> Lewes | Z51: 44 | AA51: HHH | AB51: =HHH!D21 -> Simon Robinson | AC51: =HHH!E21 -> 00:35:32 | AD51: =HHH!H21 -> M V | AE51: 20
A52: 45 | F52: =INDEX($AA$8:$AE$160,MATCH(1,($A52=$AE$8:$AE$160)*($F$6=$AD$8:$AD$160),0),$B$3) -> Carl Bicknell | G52: =INDEX($AA$8:$AE$160,MATCH(1,($A52=$AE$8:$AE$160)*($F$6=$AD$8:$AD$160),0),$C$3) -> 00:46:24 | H52: =INDEX($AA$8:$AE$160,MATCH(1,($A52=$AE$8:$AE$160)*($F$6=$AD$8:$AD$160),0),$D$3) -> HHH | Z52: 45 | AA52: Lewes | AB52: =LewesAC!D14 -> Robert Cooper | AC52: =LewesAC!E14 -> 00:35:41 | AD52: =LewesAC!H14 -> M V | AE52: 21
A53: 46 | F53: =INDEX($AA$8:$AE$160,MATCH(1,($A53=$AE$8:$AE$160)*($F$6=$AD$8:$AD$160),0),$B$3) -> Thomas Peel-Yates | G53: =INDEX($AA$8:$AE$160,MATCH(1,($A53=$AE$8:$AE$160)*($F$6=$AD$8:$AD$160),0),$C$3) -> 00:46:43 | H53: =INDEX($AA$8:$AE$160,MATCH(1,($A53=$AE$8:$AE$160)*($F$6=$AD$8:$AD$160),0),$D$3) -> BHR | Z53: 46 | AA53: PHX | AB53: =Phoenix!D25 -> Tom Sanderson | AC53: =Phoenix!E25 -> 00:35:47 | AD53: =Phoenix!H25 -> M V | AE53: 22
A54: 47 | F54: =INDEX($AA$8:$AE$160,MATCH(1,($A54=$AE$8:$AE$160)*($F$6=$AD$8:$AD$160),0),$B$3) -> Bill Whitehead | G54: =INDEX($AA$8:$AE$160,MATCH(1,($A54=$AE$8:$AE$160)*($F$6=$AD$8:$AD$160),0),$C$3) -> 00:48:24 | H54: =INDEX($AA$8:$AE$160,MATCH(1,($A54=$AE$8:$AE$160)*($F$6=$AD$8:$AD$160),0),$D$3) -> BHR | Z54: 47 | AA54: HHH | AB54: =HHH!D22 -> Paul Cousins | AC54: =HHH!E22 -> 00:35:57 | AD54: =HHH!H22 -> M V | AE54: 23
A55: 48 | F55: =INDEX($AA$8:$AE$160,MATCH(1,($A55=$AE$8:$AE$160)*($F$6=$AD$8:$AD$160),0),$B$3) -> Phil Grabsky | G55: =INDEX($AA$8:$AE$160,MATCH(1,($A55=$AE$8:$AE$160)*($F$6=$AD$8:$AD$160),0),$C$3) -> 01:00:42 | H55: =INDEX($AA$8:$AE$160,MATCH(1,($A55=$AE$8:$AE$160)*($F$6=$AD$8:$AD$160),0),$D$3) -> PHX | Z55: 48 | AA55: PHX | AB55: =Phoenix!D26 -> Erica Martin | AC55: =Phoenix!E26 -> 00:36:06 | AD55: =Phoenix!H26 -> F S | AE55: 2
A56: 49 | F56: =INDEX($AA$8:$AE$160,MATCH(1,($A56=$AE$8:$AE$160)*($F$6=$AD$8:$AD$160),0),$B$3) -> Richard Thompson | G56: =INDEX($AA$8:$AE$160,MATCH(1,($A56=$AE$8:$AE$160)*($F$6=$AD$8:$AD$160),0),$C$3) -> 01:01:36 | H56: =INDEX($AA$8:$AE$160,MATCH(1,($A56=$AE$8:$AE$160)*($F$6=$AD$8:$AD$160),0),$D$3) -> PHX | Z56: 49 | AA56: HHH | AB56: =HHH!D23 -> Julian Boyer | AC56: =HHH!E23 -> 00:36:14 | AD56: =HHH!H23 -> M V | AE56: 24
A57: 50 | F57: =INDEX($AA$8:$AE$160,MATCH(1,($A57=$AE$8:$AE$160)*($F$6=$AD$8:$AD$160),0),$B$3) ->  | G57: =INDEX($AA$8:$AE$160,MATCH(1,($A57=$AE$8:$AE$160)*($F$6=$AD$8:$AD$160),0),$C$3) ->  | H57: =INDEX($AA$8:$AE$160,MATCH(1,($A57=$AE$8:$AE$160)*($F$6=$AD$8:$AD$160),0),$D$3) ->  | Z57: 50 | AA57: HHH | AB57: =HHH!D24 -> Kai Robinson | AC57: =HHH!E24 -> 00:36:32 | AD57: =HHH!H24 -> M S | AE57: 23
Z58: 51 | AA58: HHH | AB58: =HHH!D25 -> Dave Warren | AC58: =HHH!E25 -> 00:36:34 | AD58: =HHH!H25 -> M V | AE58: 25
Z59: 52 | AA59: PHX | AB59: =Phoenix!D27 -> Barry Blackwell | AC59: =Phoenix!E27 -> 00:36:40 | AD59: =Phoenix!H27 -> M V | AE59: 26
Z60: 53 | AA60: HHH | AB60: =HHH!D26 -> Russell Mullen | AC60: =HHH!E26 -> 00:36:52 | AD60: =HHH!H26 -> M S | AE60: 24
Z61: 54 | AA61: PHX | AB61: =Phoenix!D28 -> Samantha Leader | AC61: =Phoenix!E28 -> 00:37:03 | AD61: =Phoenix!H28 -> F V | AE61: 1
Z62: 55 | AA62: PHX | AB62: =Phoenix!D29 -> Andy Bone | AC62: =Phoenix!E29 -> 00:37:12 | AD62: =Phoenix!H29 -> M V | AE62: 27
Z63: 56 | AA63: PHX | AB63: =Phoenix!D30 -> Cat Bounds | AC63: =Phoenix!E30 -> 00:37:22 | AD63: =Phoenix!H30 -> F S | AE63: 3
Z64: 57 | AA64: Lewes | AB64: =LewesAC!D15 -> Helen Sida | AC64: =LewesAC!E15 -> 00:37:39 | AD64: =LewesAC!H15 -> F V | AE64: 2 | AF64: tied
Z65: 58 | AA65: Lewes | AB65: =LewesAC!D16 -> Michael Ussher | AC65: =LewesAC!E16 -> 00:37:39 | AD65: =LewesAC!H16 -> M V | AE65: 28 | AF65: tied
Z66: 59 | AA66: PHX | AB66: =Phoenix!D31 -> Andrew Haslam | AC66: =Phoenix!E31 -> 00:37:50 | AD66: =Phoenix!H31 -> M S | AE66: 25
Z67: 60 | AA67: BHR | AB67: =BHR!D11 -> Ian Jones | AC67: =BHR!E11 -> 00:37:54 | AD67: =BHR!H11 -> M V | AE67: 29
Z68: 61 | AA68: HHH | AB68: =HHH!D27 -> Andy Dray | AC68: =HHH!E27 -> 00:37:56 | AD68: =HHH!H27 -> M V | AE68: 30
Z69: 62 | AA69: HHH | AB69: =HHH!D28 -> Kim Lo | AC69: =HHH!E28 -> 00:38:08 | AD69: =HHH!H28 -> F S | AE69: 4
Z70: 63 | AA70: HHH | AB70: =HHH!D29 -> Tim Hicks | AC70: =HHH!E29 -> 00:38:11 | AD70: =HHH!H29 -> M SV | AE70: 2
Z71: 64 | AA71: HHH | AB71: =HHH!D30 -> Siobhan Amer | AC71: =HHH!E30 -> 00:38:16 | AD71: =HHH!H30 -> F V | AE71: 3
Z72: 65 | AA72: PHX | AB72: =Phoenix!D32 -> Sibel Recber | AC72: =Phoenix!E32 -> 00:38:22 | AD72: =Phoenix!H32 -> F S | AE72: =COUNTIFS($AD$8:$AD$160,AD72,$AC$8:$AC$160,"<"&AC72)+1 -> 5
Z73: 66 | AA73: Lewes | AB73: =LewesAC!D17 -> Mauro Lazzati | AC73: =LewesAC!E17 -> 00:38:26 | AD73: =LewesAC!H17 -> M V | AE73: 31
Z74: 67 | AA74: Lewes | AB74: =LewesAC!D18 -> David Prince-Iles | AC74: =LewesAC!E18 -> 00:38:27 | AD74: =LewesAC!H18 -> M SV | AE74: 3
Z75: 68 | AA75: PHX | AB75: =Phoenix!D33 -> Andy Pumphrey | AC75: =Phoenix!E33 -> 00:38:28 | AD75: =Phoenix!H33 -> M V | AE75: 32
Z76: 69 | AA76: PHX | AB76: =Phoenix!D34 -> Sara Burns | AC76: =Phoenix!E34 -> 00:38:29 | AD76: =Phoenix!H34 -> F V | AE76: 4
Z77: 70 | AA77: HHH | AB77: =HHH!D31 -> Chris Faulkner | AC77: =HHH!E31 -> 00:38:32 | AD77: =HHH!H31 -> M V | AE77: 33
Z78: 71 | AA78: PHX | AB78: =Phoenix!D35 -> Emily Budd | AC78: =Phoenix!E35 -> 00:38:37 | AD78: =Phoenix!H35 -> F S | AE78: 6
Z79: 72 | AA79: BHR | AB79: =BHR!D12 -> Jamie Goodhead | AC79: =BHR!E12 -> 00:38:39 | AD79: =BHR!H12 -> M V | AE79: 34 | AF79: tied
Z80: 73 | AA80: HHH | AB80: =HHH!D32 -> Ian Dumbrell | AC80: =HHH!E32 -> 00:38:39.010 | AD80: =HHH!H32 -> M V | AE80: 35 | AF80: tied
Z81: 74 | AA81: HHH | AB81: =HHH!D33 -> Jason Robinson | AC81: =HHH!E33 -> 00:38:48 | AD81: =HHH!H33 -> M V | AE81: 36
Z82: 75 | AA82: Lewes | AB82: =LewesAC!D19 -> Rob Stanway | AC82: =LewesAC!E19 -> 00:39:01 | AD82: =LewesAC!H19 -> M V | AE82: 37
Z83: 76 | AA83: PHX | AB83: =Phoenix!D36 -> Andrew Brooks | AC83: =Phoenix!E36 -> 00:39:09 | AD83: =Phoenix!H36 -> M V | AE83: 38
Z84: 77 | AA84: PHX | AB84: =Phoenix!D37 -> Chelsey Hallam | AC84: =Phoenix!E37 -> 00:39:36 | AD84: =Phoenix!H37 -> F S | AE84: 7
Z85: 78 | AA85: Lewes | AB85: =LewesAC!D20 -> Mat Homewood | AC85: =LewesAC!E20 -> 00:39:37 | AD85: =LewesAC!H20 -> M V | AE85: 39
Z86: 79 | AA86: HHH | AB86: =HHH!D34 -> Matt Howells | AC86: =HHH!E34 -> 00:39:39 | AD86: =HHH!H34 -> M S | AE86: 26 | AF86: tied
Z87: 80 | AA87: Lewes | AB87: =LewesAC!D21 -> David Foster | AC87: =LewesAC!E21 -> 00:39:39 | AD87: =LewesAC!H21 -> M V | AE87: 40 | AF87: tied
Z88: 81 | AA88: Lewes | AB88: =LewesAC!D22 -> Ellen Brookes | AC88: =LewesAC!E22 -> 00:39:39 | AD88: =LewesAC!H22 -> F S | AE88: 8 | AF88: tied
Z89: 82 | AA89: Lewes | AB89: =LewesAC!D23 -> Tamsyn d'Arienzo | AC89: =LewesAC!E23 -> 00:39:45 | AD89: =LewesAC!H23 -> F S | AE89: 9
Z90: 83 | AA90: PHX | AB90: =Phoenix!D38 -> Mike Townley | AC90: =Phoenix!E38 -> 00:39:55 | AD90: =Phoenix!H38 -> M V | AE90: 41
Z91: 84 | AA91: PHX | AB91: =Phoenix!D39 -> Geoff Manns | AC91: =Phoenix!E39 -> 00:39:58 | AD91: =Phoenix!H39 -> M V | AE91: 42
Z92: 85 | AA92: PHX | AB92: =Phoenix!D40 -> Georgie Anderson | AC92: =Phoenix!E40 -> 00:39:59 | AD92: =Phoenix!H40 -> F S | AE92: 10
Z93: 86 | AA93: PHX | AB93: =Phoenix!D41 -> Dan Allen | AC93: =Phoenix!E41 -> 00:40:00 | AD93: =Phoenix!H41 -> M SV | AE93: 4
Z94: 87 | AA94: PHX | AB94: =Phoenix!D42 -> Jess Stribbling | AC94: =Phoenix!E42 -> 00:40:05 | AD94: =Phoenix!H42 -> F S | AE94: 11
Z95: 88 | AA95: PHX | AB95: =Phoenix!D43 -> Amelia Culshaw | AC95: =Phoenix!E43 -> 00:41:10 | AD95: =Phoenix!H43 -> F V | AE95: 5
Z96: 89 | AA96: PHX | AB96: =Phoenix!D44 -> Rachel Gorman | AC96: =Phoenix!E44 -> 00:41:13 | AD96: =Phoenix!H44 -> F S | AE96: 12
Z97: 90 | AA97: HHH | AB97: =HHH!D35 -> Olivia Treharne | AC97: =HHH!E35 -> 00:41:43 | AD97: =HHH!H35 -> F S | AE97: 13
Z98: 91 | AA98: HHH | AB98: =HHH!D36 -> Peter Harding | AC98: =HHH!E36 -> 00:42:05 | AD98: =HHH!H36 -> M V | AE98: 43
Z99: 92 | AA99: Lewes | AB99: =LewesAC!D24 -> Gerard Dummett | AC99: =LewesAC!E24 -> 00:42:37 | AD99: =LewesAC!H24 -> M SV | AE99: 5
Z100: 93 | AA100: HHH | AB100: =HHH!D37 -> Katherine Buckeridge | AC100: =HHH!E37 -> 00:42:45 | AD100: =HHH!H37 -> F V | AE100: 6
Z101: 94 | AA101: HHH | AB101: =HHH!D38 -> Liz Earley | AC101: =HHH!E38 -> 00:42:54 | AD101: =HHH!H38 -> F S | AE101: 14 | AF101: tied
Z102: 95 | AA102: HHH | AB102: =HHH!D39 -> Sarah King | AC102: =HHH!E39 -> 00:42:54.010 | AD102: =HHH!H39 -> F S | AE102: 15 | AF102: tied
Z103: 96 | AA103: PHX | AB103: =Phoenix!D45 -> Liz Halliday | AC103: =Phoenix!E45 -> 00:42:56 | AD103: =Phoenix!H45 -> F V | AE103: 7
Z104: 97 | AA104: BHR | AB104: =BHR!D13 -> Flo Wolfe | AC104: =BHR!E13 -> 00:42:57 | AD104: =BHR!H13 -> F S | AE104: =COUNTIFS($AD$8:$AD$160,AD104,$AC$8:$AC$160,"<"&AC104)+1 -> 16
Z105: 98 | AA105: HHH | AB105: =HHH!D40 -> Josh Franks | AC105: =HHH!E40 -> 00:43:10 | AD105: =HHH!H40 -> M S | AE105: 27 | AF105: tied
Z106: 99 | AA106: BHR | AB106: =BHR!D14 -> Stuart Condie | AC106: =BHR!E14 -> 00:43:10 | AD106: =BHR!H14 -> M SV | AE106: 6 | AF106: tied
Z107: 100 | AA107: HHH | AB107: =HHH!D41 -> Lydia Levy | AC107: =HHH!E41 -> 00:43:16 | AD107: =HHH!H41 -> F S | AE107: 17
Z108: 101 | AA108: HHH | AB108: =HHH!D42 -> Gemma Morgan | AC108: =HHH!E42 -> 00:43:17 | AD108: =HHH!H42 -> F S | AE108: 18
Z109: 102 | AA109: HHH | AB109: =HHH!D43 -> Mark Sykes | AC109: =HHH!E43 -> 00:43:26 | AD109: =HHH!H43 -> M SV | AE109: 7
Z110: 103 | AA110: Lewes | AB110: =LewesAC!D25 -> Peter Kennedy | AC110: =LewesAC!E25 -> 00:43:32 | AD110: =LewesAC!H25 -> M SV | AE110: 8
Z111: 104 | AA111: Lewes | AB111: =LewesAC!D26 -> Beth Hancock | AC111: =LewesAC!E26 -> 00:43:48 | AD111: =LewesAC!H26 -> F S | AE111: 19
Z112: 105 | AA112: PHX | AB112: =Phoenix!D46 -> Val Avella | AC112: =Phoenix!E46 -> 00:44:08 | AD112: =Phoenix!H46 -> F S | AE112: 20
Z113: 106 | AA113: Lewes | AB113: =LewesAC!D27 -> Ian Hilder | AC113: =LewesAC!E27 -> 00:44:13 | AD113: =LewesAC!H27 -> M SV | AE113: 9
Z114: 107 | AA114: PHX | AB114: =Phoenix!D47 -> Andrew Haig | AC114: =Phoenix!E47 -> 00:44:16 | AD114: =Phoenix!H47 -> M SV | AE114: 10
Z115: 108 | AA115: Lewes | AB115: =LewesAC!D28 -> Andy Perris | AC115: =LewesAC!E28 -> 00:44:19 | AD115: =LewesAC!H28 -> M V | AE115: 44
Z116: 109 | AA116: BHR | AB116: =BHR!D15 -> Steve Barrett | AC116: =BHR!E15 -> 00:44:52 | AD116: =BHR!H15 -> M S | AE116: 28
Z117: 110 | AA117: BHR | AB117: =BHR!D16 -> Richard Light | AC117: =BHR!E16 -> 00:45:25 | AD117: =BHR!H16 -> M SV | AE117: 11
Z118: 111 | AA118: Lewes | AB118: =LewesAC!D29 -> Helen Bowman | AC118: =LewesAC!E29 -> 00:45:37 | AD118: =LewesAC!H29 -> F V | AE118: 8
Z119: 112 | AA119: HHH | AB119: =HHH!D44 -> Shelagh Robinson | AC119: =HHH!E44 -> 00:45:40 | AD119: =HHH!H44 -> F V | AE119: 9
Z120: 113 | AA120: HHH | AB120: =HHH!D45 -> Amy Lovejoy | AC120: =HHH!E45 -> 00:45:41 | AD120: =HHH!H45 -> F S | AE120: 21
Z121: 114 | AA121: HHH | AB121: =HHH!D46 -> Carl Bicknell | AC121: =HHH!E46 -> 00:46:24 | AD121: =HHH!H46 -> M V | AE121: 45
Z122: 115 | AA122: Lewes | AB122: =LewesAC!D30 -> Mark Pappenheim | AC122: =LewesAC!E30 -> 00:46:30 | AD122: =LewesAC!H30 -> M SV | AE122: 12
Z123: 116 | AA123: BHR | AB123: =BHR!D17 -> Thomas Peel-Yates | AC123: =BHR!E17 -> 00:46:43 | AD123: =BHR!H17 -> M V | AE123: 46
Z124: 117 | AA124: Lewes | AB124: =LewesAC!D31 -> Bob Hughes | AC124: =LewesAC!E31 -> 00:46:45 | AD124: =LewesAC!H31 -> M SV | AE124: 13
Z125: 118 | AA125: HHH | AB125: =HHH!D47 -> Jacqueline Barnes | AC125: =HHH!E47 -> 00:46:47 | AD125: =HHH!H47 -> F V | AE125: 10
Z126: 119 | AA126: BHR | AB126: =BHR!D18 -> Mercy Dennis-Smith | AC126: =BHR!E18 -> 00:46:50 | AD126: =BHR!H18 -> F S | AE126: 22
Z127: 120 | AA127: Lewes | AB127: =LewesAC!D32 -> Ruth Wray | AC127: =LewesAC!E32 -> 00:47:03 | AD127: =LewesAC!H32 -> F V | AE127: 11
Z128: 121 | AA128: Lewes | AB128: =LewesAC!D33 -> Hugh St John | AC128: =LewesAC!E33 -> 00:47:16 | AD128: =LewesAC!H33 -> M SV | AE128: 14 | AF128: tied
Z129: 122 | AA129: Lewes | AB129: =LewesAC!D34 -> Andrew Chitty | AC129: =LewesAC!E34 -> 00:47:16.010 | AD129: =LewesAC!H34 -> M SV | AE129: 15 | AF129: tied
Z130: 123 | AA130: PHX | AB130: =Phoenix!D48 -> Lisa Ebdon | AC130: =Phoenix!E48 -> 00:47:31 | AD130: =Phoenix!H48 -> F V | AE130: 12
Z131: 124 | AA131: Lewes | AB131: =LewesAC!D35 -> Colin Hartland | AC131: =LewesAC!E35 -> 00:47:43 | AD131: =LewesAC!H35 -> M SV | AE131: 16
Z132: 125 | AA132: BHR | AB132: =BHR!D19 -> Cameron Cooper | AC132: =BHR!E19 -> 00:47:57 | AD132: =BHR!H19 -> M S | AE132: 29
Z133: 126 | AA133: HHH | AB133: =HHH!D48 -> Marion Hemsworth | AC133: =HHH!E48 -> 00:48:20 | AD133: =HHH!H48 -> F SV | AE133: 1
Z134: 127 | AA134: BHR | AB134: =BHR!D20 -> Bill Whitehead | AC134: =BHR!E20 -> 00:48:24 | AD134: =BHR!H20 -> M V | AE134: 47
Z135: 128 | AA135: Lewes | AB135: =LewesAC!D36 -> Fran Witt | AC135: =LewesAC!E36 -> 00:48:51 | AD135: =LewesAC!H36 -> F V | AE135: 13
Z136: 129 | AA136: PHX | AB136: =Phoenix!D49 -> Sarah Russell | AC136: =Phoenix!E49 -> 00:48:54 | AD136: =Phoenix!H49 -> F V | AE136: =COUNTIFS($AD$8:$AD$160,AD136,$AC$8:$AC$160,"<"&AC136)+1 -> 14
Z137: 130 | AA137: Lewes | AB137: =LewesAC!D37 -> Anne Hagan | AC137: =LewesAC!E37 -> 00:49:24 | AD137: =LewesAC!H37 -> F SV | AE137: 2
Z138: 131 | AA138: BHR | AB138: =BHR!D21 -> Nicky Callus | AC138: =BHR!E21 -> 00:49:35 | AD138: =BHR!H21 -> F SV | AE138: 3
Z139: 132 | AA139: PHX | AB139: =Phoenix!D50 -> Jude Matthews | AC139: =Phoenix!E50 -> 00:49:49 | AD139: =Phoenix!H50 -> F SV | AE139: 4
Z140: 133 | AA140: PHX | AB140: =Phoenix!D51 -> Eogan McKenna | AC140: =Phoenix!E51 -> 00:49:56 | AD140: =Phoenix!H51 -> M SV | AE140: 17
Z141: 134 | AA141: Lewes | AB141: =LewesAC!D38 -> Anita Amies | AC141: =LewesAC!E38 -> 00:50:13 | AD141: =LewesAC!H38 -> F SV | AE141: 5
Z142: 135 | AA142: BHR | AB142: =BHR!D22 -> Chris Hine | AC142: =BHR!E22 -> 00:50:35 | AD142: =BHR!H22 -> M S | AE142: 30
Z143: 136 | AA143: HHH | AB143: =HHH!D49 -> Linda Tullett | AC143: =HHH!E49 -> 00:50:41 | AD143: =HHH!H49 -> F V | AE143: 15
Z144: 137 | AA144: HHH | AB144: =HHH!D50 -> Carys Hind | AC144: =HHH!E50 -> 00:50:55 | AD144: =HHH!H50 -> F S | AE144: 23
Z145: 138 | AA145: BHR | AB145: =BHR!D23 -> Emma Buckland | AC145: =BHR!E23 -> 00:51:00 | AD145: =BHR!H23 -> F V | AE145: 16
Z146: 139 | AA146: PHX | AB146: =Phoenix!D52 -> Rik Taub | AC146: =Phoenix!E52 -> 00:51:06 | AD146: =Phoenix!H52 -> M SV | AE146: 18 | AF146: tied
Z147: 140 | AA147: PHX | AB147: =Phoenix!D53 -> Malcolm Kemp | AC147: =Phoenix!E53 -> 00:51:06 | AD147: =Phoenix!H53 -> M SV | AE147: 19 | AF147: tied
Z148: 141 | AA148: BHR | AB148: =BHR!D24 -> Pete Brownlie | AC148: =BHR!E24 -> 00:51:40 | AD148: =BHR!H24 -> M SV | AE148: 20
Z149: 142 | AA149: BHR | AB149: =BHR!D25 -> Christelle Maugiron | AC149: =BHR!E25 -> 00:51:47 | AD149: =BHR!H25 -> F S | AE149: 24
Z150: 143 | AA150: BHR | AB150: =BHR!D26 -> Kim Gow | AC150: =BHR!E26 -> 00:52:53 | AD150: =BHR!H26 -> F SV | AE150: 6
Z151: 144 | AA151: Lewes | AB151: =LewesAC!D39 -> Emma Hodgson | AC151: =LewesAC!E39 -> 00:53:27 | AD151: =LewesAC!H39 -> F V | AE151: 17
Z152: 145 | AA152: Lewes | AB152: =LewesAC!D40 -> Emma Gardner | AC152: =LewesAC!E40 -> 00:54:04 | AD152: =LewesAC!H40 -> F V | AE152: 18
Z153: 146 | AA153: Lewes | AB153: =LewesAC!D41 -> Naomi Ross | AC153: =LewesAC!E41 -> 00:54:10 | AD153: =LewesAC!H41 -> F S | AE153: 25
Z154: 147 | AA154: Lewes | AB154: =LewesAC!D42 -> Julie Deakin | AC154: =LewesAC!E42 -> 00:54:12 | AD154: =LewesAC!H42 -> F V | AE154: 19
Z155: 148 | AA155: PHX | AB155: =Phoenix!D54 -> Ella Grabsky | AC155: =Phoenix!E54 -> 01:00:42 | AD155: =Phoenix!H54 -> F S | AE155: 26 | AF155: tied
Z156: 149 | AA156: PHX | AB156: =Phoenix!D55 -> Phil Grabsky | AC156: =Phoenix!E55 -> 01:00:42 | AD156: =Phoenix!H55 -> M V | AE156: 48 | AF156: tied
Z157: 150 | AA157: PHX | AB157: =Phoenix!D56 -> Richard Thompson | AC157: =Phoenix!E56 -> 01:01:36 | AD157: =Phoenix!H56 -> M V | AE157: 49
Z158: 151 | AA158: BHR | AB158: =BHR!D27 -> David Clark | AC158: =BHR!E27 -> 01:01:54 | AD158: =BHR!H27 -> M SV | AE158: 21
Z159: 152 | AA159: BHR | AB159: =BHR!D28 -> Isabelle Adlam | AC159: =BHR!E28 -> 01:15:00 | AD159: =BHR!H28 -> F S | AE159: 27
Z160: 153 | AA160: BHR | AB160: =BHR!D29 -> Eileen Adlam | AC160: =BHR!E29 -> 01:18:08 | AD160: =BHR!H29 -> F V | AE160: 20

Sheet HHH
D1: =MID(CELL("filename",A1),FIND("]",CELL("filename",A1))+1,255) -> HHH
G2: S | H2: =to V44 | L2: 1 | M2: 2 | N2: 3 | O2: 4 | P2: 5 | Q2: 6 | R2: 7 | S2: 8 | AD2: Team Time
G3: V | H3: = V45-V59
G4: SV | H4: =V60+ | K4: Team allocation | U4: Correction factors | AD4: =SUM(AD7:AD69) -> 0.1553126157 | AE4: =SUM(AE7:AE69) -> 0.1641519259 | AF4: 0.1700868704 | AG4: 0.1730433919 | AH4: 0.1800614931 | AI4: 0.1824876505 | AJ4: 0.1915498148 | AK4: 0.1872700231
C6: posn | E6: time | F6: Gender | G6: Age cat | H6: Gen/Age | I6: rank in cat | L6: Team A | M6: Team B | N6: Team C | O6: Team D | P6: Team E | Q6: Team F | R6: Team G | S6: Team H | U6: Team A | V6: Team B | W6: Team C | X6: Team D | Y6: Team E | Z6: Team F | AA6: Team G | AB6: Team H | AD6: Team A | AE6: Team B | AF6: Team C | AG6: Team D | AH6: Team E | AI6: Team F | AJ6: Team G | AK6: Team H | AT6: name | AU6: time | AV6: cat | AW6: cat rank | AX6: Gender | AY6: age grp
C7: 1 | D7: =AT7 -> Ben Gibson | E7: =AU7 -> 00:29:18 | F7: =AX7 -> M | G7: =AY7 -> S | H7: =F7&" "&G7 -> M S | I7: =COUNTIFS($H$7:$H$59,H7,$E$7:$E$59,"<"&E7)+1 -> 1 | J7: =COUNTA(L7:S7) -> 1 | L7: 1 | U7: =IF(ISBLANK(L7)=TRUE(),"",IF(ISNUMBER(L7)=TRUE(),1,"overwrite manually")) -> 1 | AA7: =IF(ISBLANK(R7)=TRUE(),"",IF(ISNUMBER(R7)=TRUE(),1,"overwrite manually")) ->  | AD7: =IFERROR(U7*$E7,"") -> 00:29:18 | AJ7: =IFERROR(AA7*$E7,"") ->  | AS7: 1 | AT7: Ben Gibson | AU7: 00:29:18 | AV7: mU45 | AW7: 1 | AX7: M | AY7: S
C8: 2 | D8: James Collins | E8: 00:29:46 | F8: M | G8: S | H8: =F8&" "&G8 -> M S | I8: =COUNTIFS($H$7:$H$59,H8,$E$7:$E$59,"<"&E8)+1 -> 2 | J8: =COUNTA(L8:S8) -> 1 | M8: 2 | U8: =IF(ISBLANK(L8)=TRUE(),"",IF(ISNUMBER(L8)=TRUE(),1,"overwrite manually")) ->  | V8: =IF(ISBLANK(M8)=TRUE(),"",IF(ISNUMBER(M8)=TRUE(),1,"overwrite manually")) -> 1 | W8: =IF(ISBLANK(N8)=TRUE(),"",IF(ISNUMBER(N8)=TRUE(),1,"overwrite manually")) ->  | X8: =IF(ISBLANK(O8)=TRUE(),"",IF(ISNUMBER(O8)=TRUE(),1,"overwrite manually")) ->  | Y8: =IF(ISBLANK(P8)=TRUE(),"",IF(ISNUMBER(P8)=TRUE(),1,"overwrite manually")) ->  | Z8: =IF(ISBLANK(Q8)=TRUE(),"",IF(ISNUMBER(Q8)=TRUE(),1,"overwrite manually")) ->  | AA8: =IF(ISBLANK(R8)=TRUE(),"",IF(ISNUMBER(R8)=TRUE(),1,"overwrite manually")) ->  | AB8: =IF(ISBLANK(S8)=TRUE(),"",IF(ISNUMBER(S8)=TRUE(),1,"overwrite manually")) ->  | AD8: =IFERROR(U8*$E8,"") ->  | AE8: 00:29:46 | AI8: =IFERROR(Z8*$E8,"") ->  | AJ8: =IFERROR(AA8*$E8,"") ->  | AK8: =IFERROR(AB8*$E8,"") ->  | AS8: 2 | AT8: James Collins | AU8: 00:29:46 | AV8: mU45 | AW8: 2 | AX8: M | AY8: S
C9: 3 | D9: Marcus Kimmins | E9: 00:31:26.010 | F9: M | G9: V | H9: M V | I9: 1 | J9: 1 | L9: 1 | U9: 1 | AD9: 00:31:26.010 | AS9: 3 | AT9: Marcus Kimmins | AU9: 00:31:26.010 | AV9: mU60 | AW9: 1 | AX9: M | AY9: V
C10: 4 | D10: Phil Payne | E10: 00:32:24 | F10: M | G10: S | H10: M S | I10: 3 | J10: 1 | N10: 3 | W10: 1 | AF10: 00:32:24 | AS10: 4 | AT10: Phil Payne | AU10: 00:32:24 | AV10: mU45 | AW10: 3 | AX10: M | AY10: S
C11: 5 | D11: Andy Hind | E11: 00:32:26 | F11: M | G11: V | H11: M V | I11: 2 | J11: 1 | M11: 2 | V11: 1 | AE11: 00:32:26 | AS11: 5 | AT11: Andy Hind | AU11: 00:32:26 | AV11: mU60 | AW11: 2 | AX11: M | AY11: V
C12: 6 | D12: James Moffat | E12: 00:32:36 | F12: M | G12: V | H12: M V | I12: 3 | J12: 1 | N12: 3 | W12: 1 | AF12: 00:32:36 | AS12: 6 | AT12: James Moffat | AU12: 00:32:36 | AV12: mU60 | AW12: 3 | AX12: M | AY12: V
C13: 7 | D13: Matt Cook | E13: 00:32:45 | F13: M | G13: S | H13: M S | I13: 4 | J13: 1 | O13: 4 | X13: 1 | AG13: 00:32:45 | AS13: 7 | AT13: Matt Cook | AU13: 00:32:45 | AV13: mU45 | AW13: 4 | AX13: M | AY13: S
C14: 8 | D14: Matthew King | E14: 00:33:39 | F14: M | G14: S | H14: M S | I14: 5 | J14: 1 | P14: 5 | Y14: 1 | AH14: 00:33:39 | AS14: 8 | AT14: Matthew King | AU14: 00:33:39 | AV14: mU45 | AW14: 5 | AX14: M | AY14: S
C15: 9 | D15: Michael Burke | E15: 00:33:57 | F15: M | G15: S | H15: M S | I15: 6 | J15: 1 | Q15: 6 | Z15: 1 | AD15: =IFERROR(U15*$E15,"") ->  | AE15: =IFERROR(V15*$E15,"") ->  | AF15: =IFERROR(W15*$E15,"") ->  | AG15: =IFERROR(X15*$E15,"") ->  | AH15: =IFERROR(Y15*$E15,"") ->  | AI15: 00:33:57 | AS15: 9 | AT15: Michael Burke | AU15: 00:33:57 | AV15: mU45 | AW15: 6 | AX15: M | AY15: S
C16: 10 | D16: Tim Miller | E16: 00:34:11 | F16: M | G16: V | H16: M V | I16: 4 | J16: 1 | O16: 4 | X16: 1 | AG16: 00:34:11 | AS16: 10 | AT16: Tim Miller | AU16: 00:34:11 | AV16: mU60 | AW16: 4 | AX16: M | AY16: V
C17: 11 | D17: Peter Francis | E17: 00:34:12 | F17: M | G17: S | H17: M S | I17: 7 | J17: 1 | R17: 7 | AA17: 1 | AJ17: 00:34:12 | AS17: 11 | AT17: Peter Francis | AU17: 00:34:12 | AV17: mU45 | AW17: 7 | AX17: M | AY17: S
C18: 12 | D18: Barry Tullett | E18: 00:34:53 | F18: M | G18: V | H18: M V | I18: 5 | J18: 1 | P18: 5 | Y18: 1 | AH18: 00:34:53 | AS18: 12 | AT18: Barry Tullett | AU18: 00:34:53 | AV18: mU60 | AW18: 5 | AX18: M | AY18: V
C19: 13 | D19: Gregory Hilton | E19: 00:35:09 | F19: M | G19: S | H19: M S | I19: 8 | J19: 1 | S19: 8 | AB19: 1 | AK19: 00:35:09 | AS19: 13 | AT19: Gregory Hilton | AU19: 00:35:09 | AV19: mU45 | AW19: 8 | AX19: M | AY19: S
C20: 14 | D20: Simeon Wishlade | E20: 00:35:31 | F20: M | G20: S | H20: M S | I20: 9 | J20: 1 | P20: as F SV | Y20: 1.4238 | AD20: =IFERROR(U20*$E20,"") ->  | AE20: =IFERROR(V20*$E20,"") ->  | AF20: =IFERROR(W20*$E20,"") ->  | AG20: =IFERROR(X20*$E20,"") ->  | AH20: =IFERROR(Y20*$E20,"") -> 00:50:34.118 | AI20: =IFERROR(Z20*$E20,"") ->  | AJ20: =IFERROR(AA20*$E20,"") ->  | AK20: =IFERROR(AB20*$E20,"") ->  | AS20: 14 | AT20: Simeon Wishlade | AU20: 00:35:31 | AV20: mU45 | AW20: 9 | AX20: M | AY20: S
C21: 15 | D21: Simon Robinson | E21: 00:35:32 | F21: M | G21: V | H21: M V | I21: 6 | J21: 1 | Q21: 6 | Z21: 1 | AI21: 00:35:32 | AS21: 15 | AT21: Simon Robinson | AU21: 00:35:32 | AV21: mU60 | AW21: 6 | AX21: M | AY21: V
C22: 16 | D22: Paul Cousins | E22: 00:35:57 | F22: M | G22: V | H22: M V | I22: 7 | J22: 1 | R22: 7 | AA22: 1 | AJ22: 00:35:57 | AS22: 16 | AT22: Paul Cousins | AU22: 00:35:57 | AV22: mU60 | AW22: 7 | AX22: M | AY22: V
C23: 17 | D23: Julian Boyer | E23: 00:36:14 | F23: M | G23: V | H23: M V | I23: 8 | J23: 1 | S23: 8 | AB23: 1 | AK23: 00:36:14 | AS23: 17 | AT23: Julian Boyer | AU23: 00:36:14 | AV23: mU60 | AW23: 8 | AX23: M | AY23: V
C24: 18 | D24: Kai Robinson | E24: 00:36:32 | F24: M | G24: S | H24: M S | I24: 10 | J24: 1 | P24: as M SV | W24: =IF(ISBLANK(N24)=TRUE(),"",IF(ISNUMBER(N24)=TRUE(),1,"overwrite manually")) ->  | X24: =IF(ISBLANK(O24)=TRUE(),"",IF(ISNUMBER(O24)=TRUE(),1,"overwrite manually")) ->  | Y24: 1.2656 | Z24: =IF(ISBLANK(Q24)=TRUE(),"",IF(ISNUMBER(Q24)=TRUE(),1,"overwrite manually")) ->  | AA24: =IF(ISBLANK(R24)=TRUE(),"",IF(ISNUMBER(R24)=TRUE(),1,"overwrite manually")) ->  | AH24: 00:46:14.195 | AS24: 18 | AT24: Kai Robinson | AU24: 00:36:32 | AV24: mU45 | AW24: 10 | AX24: M | AY24: S
C25: 19 | D25: Dave Warren | E25: 00:36:34 | F25: M | G25: V | H25: M V | I25: 9 | J25: 1 | M25: as F SV | V25: 1.2656 | Y25: =IF(ISBLANK(P25)=TRUE(),"",IF(ISNUMBER(P25)=TRUE(),1,"overwrite manually")) ->  | AE25: 00:46:16.726 | AS25: 19 | AT25: Dave Warren | AU25: 00:36:34 | AV25: mU60 | AW25: 9 | AX25: M | AY25: V
C26: 20 | D26: Russell Mullen | E26: 00:36:52 | F26: M | G26: S | H26: M S | I26: 11 | J26: 1 | Q26: as F SV | Z26: 1.4238 | AI26: 00:52:29.446 | AS26: 20 | AT26: Russell Mullen | AU26: 00:36:52 | AV26: mU45 | AW26: 11 | AX26: M | AY26: S
C27: 21 | D27: Andy Dray | E27: 00:37:56 | F27: M | G27: V | H27: M V | I27: 10 | J27: 1 | N27: as F SV | W27: 1.2656 | AF27: 00:48:00.506 | AS27: 21 | AT27: Andy Dray | AU27: 00:37:56 | AV27: mU60 | AW27: 10 | AX27: M | AY27: V
C28: 22 | D28: Kim Lo | E28: 00:38:08 | F28: F | G28: S | H28: F S | I28: 1 | J28: 1 | L28: 1 | U28: 1 | AD28: 00:38:08 | AS28: 22 | AT28: Kim Lo | AU28: 00:38:08 | AV28: fU45 | AW28: 1 | AX28: F | AY28: S
C29: 23 | D29: Tim Hicks | E29: 00:38:11 | F29: M | G29: SV | H29: M SV | I29: 1 | J29: 1 | L29: 1 | U29: 1 | AD29: 00:38:11 | AS29: 23 | AT29: Tim Hicks | AU29: 00:38:11 | AV29: mO60 | AW29: 1 | AX29: M | AY29: SV
C30: 24 | D30: Siobhan Amer | E30: 00:38:16 | F30: F | G30: V | H30: F V | I30: 1 | J30: 1 | L30: 1 | U30: 1 | AD30: 00:38:16 | AS30: 24 | AT30: Siobhan Amer | AU30: 00:38:16 | AV30: fU60 | AW30: 1 | AX30: F | AY30: V
C31: 25 | D31: Chris Faulkner | E31: 00:38:32 | F31: M | G31: V | H31: M V | I31: 11 | J31: 1 | N31: as M SV | W31: 1.125 | AF31: 00:43:21 | AS31: 25 | AT31: Chris Faulkner | AU31: 00:38:32 | AV31: mU60 | AW31: 11 | AX31: M | AY31: V
C32: 26 | D32: Ian Dumbrell | E32: 00:38:39.010 | F32: M | G32: V | H32: M V | I32: 12 | J32: 1 | O32: as F SV | X32: 1.2656 | AG32: 00:48:54.939 | AS32: 26 | AT32: Ian Dumbrell | AU32: 00:38:39.010 | AV32: mU60 | AW32: 12 | AX32: M | AY32: V
C33: 27 | D33: Jason Robinson | E33: 00:38:48 | F33: M | G33: V | H33: M V | I33: 13 | J33: 1 | O33: as M SV | X33: 1.125 | AG33: 00:43:39 | AS33: 27 | AT33: Jason Robinson | AU33: 00:38:48 | AV33: mU60 | AW33: 13 | AX33: M | AY33: V
C34: 28 | D34: Matt Howells | E34: 00:39:39 | F34: M | G34: S | H34: M S | I34: 12 | J34: 1 | Q34: as FV | Z34: 1.2656 | AI34: 00:50:10.862 | AS34: 28 | AT34: Matt Howells | AU34: 00:39:39 | AV34: mU45 | AW34: 12 | AX34: M | AY34: S
C35: 29 | D35: Olivia Treharne | E35: 00:41:43 | F35: F | G35: S | H35: F S | I35: 2 | J35: 1 | M35: 2 | V35: 1 | AE35: 00:41:43 | AS35: 29 | AT35: Olivia Treharne | AU35: 00:41:43 | AV35: fU45 | AW35: 2 | AX35: F | AY35: S
C36: 30 | D36: Peter Harding | E36: 00:42:05 | F36: M | G36: V | H36: M V | I36: 14 | J36: 1 | Q36: as M SV | Z36: 1.125 | AI36: 00:47:20.625 | AS36: 30 | AT36: Peter Harding | AU36: 00:42:05 | AV36: mU60 | AW36: 14 | AX36: M | AY36: V
C37: 31 | D37: Katherine Buckeridge | E37: 00:42:45 | F37: F | G37: V | H37: F V | I37: 2 | J37: 1 | M37: 2 | V37: 1 | AE37: 00:42:45 | AS37: 31 | AT37: Katherine Buckeridge | AU37: 00:42:45 | AV37: fU60 | AW37: 2 | AX37: F | AY37: V
C38: 32 | D38: Liz Earley | E38: 00:42:54 | F38: F | G38: S | H38: F S | I38: 3 | J38: 1 | N38: 3 | W38: 1 | AF38: 00:42:54 | AS38: 32 | AT38: Liz Earley | AU38: 00:42:54 | AV38: fU45 | AW38: 3 | AX38: F | AY38: S
C39: 33 | D39: Sarah King | E39: 00:42:54.010 | F39: F | G39: S | H39: F S | I39: 4 | J39: 1 | O39: 4 | X39: 1 | AG39: 00:42:54.010 | AS39: 33 | AT39: Sarah King | AU39: 00:42:54.010 | AV39: fU45 | AW39: 3 | AX39: F | AY39: S
C40: 34 | D40: Josh Franks | E40: 00:43:10 | F40: M | G40: S | H40: M S | I40: 13 | J40: 1 | R40: as FV | AA40: 1.2656 | AJ40: 00:54:37.904 | AS40: 34 | AT40: Josh Franks | AU40: 00:43:10 | AV40: mU45 | AW40: 13 | AX40: M | AY40: S
C41: 35 | D41: Lydia Levy | E41: 00:43:16 | F41: F | G41: S | H41: F S | I41: 5 | J41: 1 | P41: 5 | Y41: 1 | AH41: 00:43:16 | AS41: 35 | AT41: Lydia Levy | AU41: 00:43:16 | AV41: fU45 | AW41: 5 | AX41: F | AY41: S
C42: 36 | D42: Gemma Morgan | E42: 00:43:17 | F42: F | G42: S | H42: F S | I42: 6 | J42: 1 | Q42: 6 | Z42: 1 | AI42: 00:43:17 | AS42: 36 | AT42: Gemma Morgan | AU42: 00:43:17 | AV42: fU45 | AW42: 6 | AX42: F | AY42: S
C43: 37 | D43: Mark Sykes | E43: 00:43:26 | F43: M | G43: SV | H43: M SV | I43: 2 | J43: 1 | M43: 2 | V43: 1 | AE43: 00:43:26 | AS43: 37 | AT43: Mark Sykes | AU43: 00:43:26 | AV43: mO60 | AW43: 2 | AX43: M | AY43: SV
C44: 38 | D44: Shelagh Robinson | E44: 00:45:40 | F44: F | G44: V | H44: F V | I44: 3 | J44: 1 | N44: 3 | W44: 1 | AF44: 00:45:40 | AS44: 38 | AT44: Shelagh Robinson | AU44: 00:45:40 | AV44: fU60 | AW44: 3 | AX44: F | AY44: V
C45: 39 | D45: Amy Lovejoy | E45: 00:45:41 | F45: F | G45: S | H45: F S | I45: 7 | J45: 1 | R45: 7 | AA45: 1 | AJ45: 00:45:41 | AS45: 39 | AT45: Amy Lovejoy | AU45: 00:45:41 | AV45: fU45 | AW45: 7 | AX45: F | AY45: S
C46: 40 | D46: Carl Bicknell | E46: 00:46:24 | F46: M | G46: V | H46: M V | I46: 15 | J46: 1 | R46: as M SV | AA46: 1.125 | AJ46: 00:52:12 | AS46: 40 | AT46: Carl Bicknell | AU46: 00:46:24 | AV46: mU60 | AW46: 15 | AX46: M | AY46: V
C47: 41 | D47: Jacqueline Barnes | E47: 00:46:47 | F47: F | G47: V | H47: F V | I47: 4 | J47: 1 | O47: 4 | X47: 1 | AG47: 00:46:47 | AS47: 41 | AT47: Jacqueline Barnes | AU47: 00:46:47 | AV47: fU60 | AW47: 4 | AX47: F | AY47: V
C48: 42 | D48: Marion Hemsworth | E48: 00:48:20 | F48: F | G48: SV | H48: F SV | I48: 1 | J48: 1 | L48: 1 | U48: 1 | AD48: 00:48:20 | AS48: 42 | AT48: Marion Hemsworth | AU48: 00:48:20 | AV48: fO60 | AW48: 1 | AX48: F | AY48: SV
C49: 43 | D49: Linda Tullett | E49: 00:50:41 | F49: F | G49: V | H49: F V | I49: 5 | J49: 1 | P49: 5 | Y49: 1 | AH49: 00:50:41 | AS49: 43 | AT49: Linda Tullett | AU49: 00:50:41 | AV49: fU60 | AW49: 5 | AX49: F | AY49: V
C50: 44 | D50: Carys Hind | E50: 00:50:55 | F50: F | G50: S | H50: F S | I50: 8 | J50: 1 | S50: 8 | AB50: 1 | AK50: 00:50:55 | AN50: 1.125 | AS50: 44 | AT50: Carys Hind | AU50: 00:50:55 | AV50: fU45 | AW50: 8 | AX50: F | AY50: S
C51: 45 | AI51: =IFERROR(Z51*$E51,"") ->  | AJ51: =IFERROR(AB51*$E51,"") ->  | AN51: =AN50^2 -> 1.265625
C52: 46 | AN52: =AN50^3 -> 1.423828125
C53: 47
C54: 48
C55: 49
C56: 50
C57: 51
C58: 52 | AD58: =IFERROR(U58*$E58,"") ->  | AH58: =IFERROR(AB58*$E58,"") -> 
C59: 53
I61: 10%
I62: =TEXT(I61,"0.0%") -> 10.0%
E63: average | G63: cat | H63: Count | I63: ="AVG + "&I62 -> AVG + 10.0% | R63: Additional Cats | S63: Additional Cats
D64: =G64&" "&$I$63 -> M S AVG + 10.0% | E64: =SUMIF($H$7:$H$59,G64,$E$7:$E$59)/H64 -> 00:34:50.308 | G64: M S | H64: =COUNTIF($H$7:$H$59,G64) -> 13 | I64: =E64*(1+$I$61) -> 00:38:19.338
D65: =G65&" "&$I$63 -> M V AVG + 10.0% | E65: =SUMIF($H$7:$H$59,G65,$E$7:$E$59)/H65 -> 00:36:48.868 | G65: M V | H65: =COUNTIF($H$7:$H$59,G65) -> 15 | I65: =E65*(1+$I$61) -> 00:40:29.755
D66: M SV AVG + 10.0% | E66: 00:40:48.500 | G66: M SV | H66: 2 | I66: 00:44:53.350 | S66: M SV | AB66: 1 | AK66: =INDEX($E$64:$I$69,MATCH(S66,$G$64:$G$69,0),5)*AB66 -> 00:44:53.350
D67: F S AVG + 10.0% | E67: 00:43:36.001 | G67: F S | H67: 8 | I67: 00:47:57.601
D68: F V AVG + 10.0% | E68: 00:44:49.800 | G68: F V | H68: 5 | I68: 00:49:18.780 | S68: F V | AB68: 1 | AK68: =INDEX($E$64:$I$69,MATCH(S68,$G$64:$G$69,0),5)*AB68 -> 00:49:18.780
D69: F SV AVG + 10.0% | E69: 00:48:20 | G69: F SV | H69: 1 | I69: 00:53:10 | R69: F SV | S69: F SV | AA69: 1 | AB69: 1 | AJ69: =INDEX($E$64:$I$69,MATCH(R69,$G$64:$G$69,0),5)*AA69 -> 00:53:10 | AK69: =INDEX($E$64:$I$69,MATCH(S69,$G$64:$G$69,0),5)*AB69 -> 00:53:10
H71: =SUM(H64:H70) -> 44 | L71: =COUNTA(L7:L59) -> 6 | M71: =COUNTA(M7:M59) -> 6 | N71: 6 | O71: 6 | P71: 6 | Q71: 6 | R71: 5 | S71: =COUNTA(S7:S59) -> 3
U72: Note
U73: the fastest runner in a team category is always allocated to their "natural category"

Sheet LewesAC
D1: =MID(CELL("filename",A1),FIND("]",CELL("filename",A1))+1,255) -> LewesAC
G2: S | H2: =to V44 | L2: 1 | M2: 2 | N2: 3 | O2: 4 | P2: 5 | Q2: 6 | Z2: Team Time
G3: V | H3: = V45-V59
G4: SV | H4: =V60+ | K4: Team allocation | S4: Correction factors | Z4: =SUM(Z7:Z55) -> 0.1591898148 | AA4: 0.1703587963 | AB4: 0.1751040556 | AC4: =SUM(AC7:AC55) -> 0.1867102963 | AD4: =SUM(AD7:AD55) -> 0.1882233796 | AE4: =SUM(AE7:AE55) -> 0.2013253617
C6: posn | E6: time | F6: Gender | G6: Age cat | H6: Gen/Age | I6: rank in cat | L6: Team A | M6: Team B | N6: Team C | O6: Team D | P6: Team E | Q6: Team F | S6: Team A | T6: Team B | U6: Team C | V6: Team D | W6: Team E | X6: Team F | Z6: Team A | AA6: Team B | AB6: Team C | AC6: Team D | AD6: Team E | AE6: Team F | AO6: Name | AP6: Gen. | AQ6: Age category S = 16-44 V = 45-59 SV = 60+ (ages on 13/12/20) | AR6: Adjusted time (equivalent to DBS time, calculated automatically from last 3 columns) *
C7: 1 | D7: =AO7 -> Chris Gilbert | E7: =AR7 -> 00:31:16 | F7: =AP7 -> M | G7: =AQ7 -> V | H7: =F7&" "&G7 -> M V | I7: =COUNTIFS($H$7:$H$45,H7,$E$7:$E$45,"<"&E7)+1 -> 1 | J7: =COUNTA(L7:Q7) -> 1 | L7: 1 | S7: =IF(ISBLANK(L7)=TRUE(),"",IF(ISNUMBER(L7)=TRUE(),1,"overwrite manually")) -> 1 | T7: =IF(ISBLANK(M7)=TRUE(),"",IF(ISNUMBER(M7)=TRUE(),1,"overwrite manually")) ->  | X7: =IF(ISBLANK(Q7)=TRUE(),"",IF(ISNUMBER(Q7)=TRUE(),1,"overwrite manually")) ->  | Z7: =IFERROR(S7*$E7,"") -> 00:31:16 | AA7: =IFERROR(T7*$E7,"") ->  | AB7: =IFERROR(U7*$E7,"") ->  | AN7: 1 | AO7: Chris Gilbert | AP7: M | AQ7: V | AR7: 00:31:16
C8: 2 | D8: =AO8 -> Mike Ellicock | E8: =AR8 -> 00:31:26 | F8: =AP8 -> M | G8: =AQ8 -> V | H8: =F8&" "&G8 -> M V | I8: =COUNTIFS($H$7:$H$45,H8,$E$7:$E$45,"<"&E8)+1 -> 2 | J8: =COUNTA(L8:Q8) -> 1 | M8: 1 | S8: =IF(ISBLANK(L8)=TRUE(),"",IF(ISNUMBER(L8)=TRUE(),1,"overwrite manually")) ->  | T8: 1 | Z8: =IFERROR(S8*$E8,"") ->  | AA8: =IFERROR(T8*$E8,"") -> 00:31:26 | AB8: =IFERROR(U8*$E8,"") ->  | AC8: =IFERROR(V8*$E8,"") ->  | AD8: =IFERROR(W8*$E8,"") ->  | AE8: =IFERROR(X8*$E8,"") ->  | AN8: 2 | AO8: Mike Ellicock | AP8: M | AQ8: V | AR8: 00:31:26
C9: 3 | D9: Lewis Sida | E9: 00:31:41 | F9: M | G9: V | H9: M V | I9: 3 | J9: 1 | N9: 1 | U9: 1 | AB9: 00:31:41 | AN9: 3 | AO9: Lewis Sida | AP9: M | AQ9: V | AR9: 00:31:41
C10: 4 | D10: Mike Green | E10: 00:32:38 | F10: M | G10: V | H10: M V | I10: 4 | J10: 1 | O10: 1 | V10: 1 | AC10: 00:32:38 | AN10: 4 | AO10: Mike Green | AP10: M | AQ10: V | AR10: 00:32:38
C11: 5 | D11: Ben Pepler | E11: 00:32:49 | F11: M | G11: S | H11: M S | I11: 1 | J11: 1 | L11: 1 | S11: 1 | Z11: 00:32:49 | AN11: 5 | AO11: Ben Pepler | AP11: M | AQ11: S | AR11: 00:32:49
C12: 6 | D12: Ben Hodgson | E12: 00:33:57 | F12: M | G12: V | H12: M V | I12: 5 | J12: 1 | P12: 1 | S12: =IF(ISBLANK(L12)=TRUE(),"",IF(ISNUMBER(L12)=TRUE(),1,"overwrite manually")) ->  | W12: 1 | AD12: 00:33:57 | AN12: 6 | AO12: Ben Hodgson | AP12: M | AQ12: V | AR12: 00:33:57
C13: 7 | D13: Rick Curtis | E13: 00:34:00 | F13: M | G13: V | H13: M V | I13: 6 | J13: 1 | Q13: 1 | X13: 1 | AE13: 00:34:00 | AN13: 7 | AO13: Rick Curtis | AP13: M | AQ13: V | AR13: 00:34:00
C14: 8 | D14: Robert Cooper | E14: 00:35:41 | F14: M | G14: V | H14: M V | I14: 7 | J14: 1 | M14: as M S | S14: =IF(ISBLANK(L14)=TRUE(),"",IF(ISNUMBER(L14)=TRUE(),1,"overwrite manually")) ->  | T14: 1 | U14: =IF(ISBLANK(N14)=TRUE(),"",IF(ISNUMBER(N14)=TRUE(),1,"overwrite manually")) ->  | V14: =IF(ISBLANK(O14)=TRUE(),"",IF(ISNUMBER(O14)=TRUE(),1,"overwrite manually")) ->  | X14: =IF(ISBLANK(Q14)=TRUE(),"",IF(ISNUMBER(Q14)=TRUE(),1,"overwrite manually")) ->  | AA14: 00:35:41 | AN14: 8 | AO14: Robert Cooper | AP14: M | AQ14: V | AR14: 00:35:41
C15: 9 | D15: Helen Sida | E15: 00:37:39 | F15: F | G15: V | H15: F V | I15: 1 | J15: 1 | L15: 1 | S15: 1 | T15: =IF(ISBLANK(M15)=TRUE(),"",IF(ISNUMBER(M15)=TRUE(),1,"overwrite manually")) ->  | Z15: 00:37:39 | AN15: 9 | AO15: Helen Sida | AP15: F | AQ15: V | AR15: 00:37:39
C16: 10 | D16: Michael Ussher | E16: 00:37:39 | F16: M | G16: V | H16: M V | I16: 8 | J16: 1 | N16: as F SV | U16: 1.2656 | AB16: 00:47:38.990 | AN16: 10 | AO16: Michael Ussher | AP16: M | AQ16: V | AR16: 00:37:39
C17: 11 | D17: Mauro Lazzati | E17: 00:38:26 | F17: M | G17: V | H17: M V | I17: 9 | J17: 1 | N17: as M S | U17: 1 | AB17: 00:38:26 | AN17: 11 | AO17: Mauro Lazzati | AP17: M | AQ17: V | AR17: 00:38:26
C18: 12 | D18: David Prince-Iles | E18: 00:38:27 | F18: M | G18: SV | H18: M SV | I18: 1 | J18: 1 | L18: 1 | S18: 1 | Z18: 00:38:27 | AN18: 12 | AO18: David Prince-Iles | AP18: M | AQ18: SV | AR18: 00:38:27
C19: 13 | D19: Rob Stanway | E19: 00:39:01 | F19: M | G19: V | H19: M V | I19: 10 | J19: 1 | O19: as F SV | V19: 1.2656 | AC19: 00:49:22.770 | AN19: 13 | AO19: Rob Stanway | AP19: M | AQ19: V | AR19: 00:39:01
C20: 14 | D20: Mat Homewood | E20: 00:39:37 | F20: M | G20: V | H20: M V | I20: 11 | J20: 1 | O20: as M S | V20: 1 | AC20: 00:39:37 | AN20: 14 | AO20: Mat Homewood | AP20: M | AQ20: V | AR20: 00:39:37
C21: 15 | D21: David Foster | E21: 00:39:39 | F21: M | G21: V | H21: M V | I21: 12 | J21: 1 | P21: as F S | W21: 1 | AD21: 00:39:39 | AN21: 15 | AO21: David Foster | AP21: M | AQ21: V | AR21: 00:39:39
C22: 16 | D22: Ellen Brookes | E22: 00:39:39 | F22: F | G22: S | H22: F S | I22: 1 | J22: 1 | L22: 1 | S22: 1 | Z22: 00:39:39 | AN22: 16 | AO22: Ellen Brookes | AP22: F | AQ22: S | AR22: 00:39:39
C23: 17 | D23: Tamsyn d'Arienzo | E23: 00:39:45 | F23: F | G23: S | H23: F S | I23: 2 | J23: 1 | M23: 1 | T23: 1 | AA23: 00:39:45 | AN23: 17 | AO23: Tamsyn d'Arienzo | AP23: F | AQ23: S | AR23: 00:39:45
C24: 18 | D24: Gerard Dummett | E24: 00:42:37 | F24: M | G24: SV | H24: M SV | I24: 2 | J24: 1 | M24: 1 | T24: 1 | AA24: 00:42:37 | AN24: 18 | AO24: Gerard Dummett | AP24: M | AQ24: SV | AR24: 00:42:37
C25: 19 | D25: Peter Kennedy | E25: 00:43:32 | F25: M | G25: SV | H25: M SV | I25: 3 | J25: 1 | N25: 1 | U25: 1 | AB25: 00:43:32 | AN25: 19 | AO25: Peter Kennedy | AP25: M | AQ25: SV | AR25: 00:43:32
C26: 20 | D26: Beth Hancock | E26: 00:43:48 | F26: F | G26: S | H26: F S | I26: 3 | J26: 1 | N26: 1 | U26: 1 | AB26: 00:43:48 | AN26: 20 | AO26: Beth Hancock | AP26: F | AQ26: S | AR26: 00:43:48
C27: 21 | D27: Ian Hilder | E27: 00:44:13 | F27: M | G27: SV | H27: M SV | I27: 4 | J27: 1 | O27: 1 | V27: 1 | AC27: 00:44:13 | AN27: 21 | AO27: Ian Hilder | AP27: M | AQ27: SV | AR27: 00:44:13
C28: 22 | D28: Andy Perris | E28: 00:44:19 | F28: M | G28: V | H28: M V | I28: 13 | J28: 1 | P28: as M S | W28: 1 | AD28: 00:44:19 | AN28: 22 | AO28: Andy Perris | AP28: M | AQ28: V | AR28: 00:44:19
C29: 23 | D29: Helen Bowman | E29: 00:45:37 | F29: F | G29: V | H29: F V | I29: 2 | J29: 1 | M29: 1 | T29: 1 | AA29: 00:45:37 | AN29: 23 | AO29: Helen Bowman | AP29: F | AQ29: V | AR29: 00:45:37
C30: 24 | D30: Mark Pappenheim | E30: 00:46:30 | F30: M | G30: SV | H30: M SV | I30: 5 | J30: 1 | P30: 1 | W30: 1 | AD30: 00:46:30 | AN30: 24 | AO30: Mark Pappenheim | AP30: M | AQ30: SV | AR30: 00:46:30
C31: 25 | D31: Bob Hughes | E31: 00:46:45 | F31: M | G31: SV | H31: M SV | I31: 6 | J31: 1 | Q31: 1 | X31: 1 | AE31: 00:46:45 | AN31: 25 | AO31: Bob Hughes | AP31: M | AQ31: SV | AR31: 00:46:45
C32: 26 | D32: Ruth Wray | E32: 00:47:03 | F32: F | G32: V | H32: F V | I32: 3 | J32: 1 | N32: 1 | U32: 1 | AB32: 00:47:03 | AN32: 26 | AO32: Ruth Wray | AP32: F | AQ32: V | AR32: 00:47:03
C33: 27 | D33: Hugh St John | E33: 00:47:16 | F33: M | G33: SV | H33: M SV | I33: 7 | J33: 1 | P33: as F SV | W33: 1.125 | AD33: 00:53:10.500 | AN33: 27 | AO33: Hugh St John | AP33: M | AQ33: SV | AR33: 00:47:16
C34: 28 | D34: Andrew Chitty | E34: 00:47:16.010 | F34: M | G34: SV | H34: M SV | I34: 8 | J34: 1 | Q34: as F SV | X34: 1.125 | AE34: 00:53:10.511 | AN34: 28 | AO34: Andrew Chitty | AP34: M | AQ34: SV | AR34: 00:47:16.010
C35: 29 | D35: Colin Hartland | E35: 00:47:43 | F35: M | G35: SV | H35: M SV | I35: 9 | J35: 1 | Q35: as M S | X35: 1 | AE35: 00:47:43 | AN35: 29 | AO35: Colin Hartland | AP35: M | AQ35: SV | AR35: 00:47:43
C36: 30 | D36: Fran Witt | E36: 00:48:51 | F36: F | G36: V | H36: F V | I36: 4 | J36: 1 | O36: 1 | V36: 1 | AC36: 00:48:51 | AN36: 30 | AO36: Fran Witt | AP36: F | AQ36: V | AR36: 00:48:51
C37: 31 | D37: Anne Hagan | E37: 00:49:24 | F37: F | G37: SV | H37: F SV | I37: 1 | J37: 1 | L37: 1 | S37: 1 | Z37: 00:49:24 | AN37: 31 | AO37: Anne Hagan | AP37: F | AQ37: SV | AR37: 00:49:24
C38: 32 | D38: Anita Amies | E38: 00:50:13 | F38: F | G38: SV | H38: F SV | I38: 2 | J38: 1 | M38: 1 | T38: 1 | AA38: 00:50:13 | AN38: 32 | AO38: Anita Amies | AP38: F | AQ38: SV | AR38: 00:50:13
C39: 33 | D39: Emma Hodgson | E39: 00:53:27 | F39: F | G39: V | H39: F V | I39: 5 | J39: 1 | P39: 1 | S39: =IF(ISBLANK(L39)=TRUE(),"",IF(ISNUMBER(L39)=TRUE(),1,"overwrite manually")) ->  | W39: 1 | AD39: 00:53:27 | AN39: 33 | AO39: Emma Hodgson | AP39: F | AQ39: V | AR39: 00:53:27
C40: 34 | D40: Emma Gardner | E40: 00:54:04 | F40: F | G40: V | H40: F V | I40: 6 | J40: 1 | Q40: 1 | X40: 1 | AE40: 00:54:04 | AN40: 34 | AO40: Emma Gardner | AP40: F | AQ40: V | AR40: 00:54:04
C41: 35 | D41: Naomi Ross | E41: 00:54:10 | F41: F | G41: S | H41: F S | I41: 4 | J41: 1 | O41: 1 | V41: 1 | AC41: 00:54:10 | AN41: 35 | AO41: Naomi Ross | AP41: F | AQ41: S | AR41: 00:54:10
C42: 36 | D42: Julie Deakin | E42: 00:54:12 | F42: F | G42: V | H42: F V | I42: 7 | J42: 1 | Q42: as F S | S42: =IF(ISBLANK(L42)=TRUE(),"",IF(ISNUMBER(L42)=TRUE(),1,"overwrite manually")) ->  | T42: =IF(ISBLANK(M42)=TRUE(),"",IF(ISNUMBER(M42)=TRUE(),1,"overwrite manually")) ->  | U42: =IF(ISBLANK(N42)=TRUE(),"",IF(ISNUMBER(N42)=TRUE(),1,"overwrite manually")) ->  | V42: =IF(ISBLANK(O42)=TRUE(),"",IF(ISNUMBER(O42)=TRUE(),1,"overwrite manually")) ->  | W42: =IF(ISBLANK(P42)=TRUE(),"",IF(ISNUMBER(P42)=TRUE(),1,"overwrite manually")) ->  | X42: 1 | AE42: 00:54:12 | AN42: 36 | AO42: Julie Deakin | AP42: F | AQ42: V | AR42: 00:54:12
C43: 37 | X43: =IF(ISBLANK(Q43)=TRUE(),"",IF(ISNUMBER(Q43)=TRUE(),1,"overwrite manually")) ->  | Z43: =IFERROR(S43*$E43,"") ->  | AD43: =IFERROR(X43*$E43,"") -> 
C44: 38
C45: 39
I47: =HHH!I61 -> 10% | K47: check | L47: =COUNTA(L7:L45) -> 6 | M47: =COUNTA(M7:M45) -> 6 | N47: 6 | O47: 6 | P47: 6 | Q47: 6
I48: =TEXT(I47,"0.0%") -> 10.0%
E49: average | G49: cat | H49: Count | I49: ="AVG + "&I48 -> AVG + 10.0%
E50: =SUMIF($H$7:$H$45,G50,$E$7:$E$45)/H50 -> 00:32:49 | G50: M S | H50: =COUNTIF($H$7:$H$45,G50) -> 1 | I50: =E50*(1+$I$47) -> 00:36:05.900
E51: =SUMIF($H$7:$H$45,G51,$E$7:$E$45)/H51 -> 00:36:06.154 | G51: M V | H51: =COUNTIF($H$7:$H$45,G51) -> 13 | I51: =E51*(1+$I$47) -> 00:39:42.769
E52: 00:44:55.446 | G52: M SV | H52: 9 | I52: 00:49:24.990
E53: 00:44:20.500 | G53: F S | H53: 4 | I53: 00:48:46.550
E54: 00:48:41.857 | G54: F V | H54: 7 | I54: 00:53:34.043
E55: 00:49:48.500 | G55: F SV | H55: 2 | I55: 00:54:47.350
H57: =SUM(H50:H56) -> 36
S58: Note
S59: the fastest runner in a team category is always allocated to their "natural category"

Sheet Phoenix
D1: =MID(CELL("filename",A1),FIND("]",CELL("filename",A1))+1,255) -> Phoenix
G2: S | H2: =to V44 | L2: 1 | M2: 2 | N2: 3 | O2: 4 | P2: 5 | Q2: 6 | R2: 7 | S2: 8 | T2: 9 | AF2: Team Time
G3: V | H3: = V45-V59
G4: SV | H4: =V60+ | K4: Team allocation | V4: Correction factors | AF4: =SUM(AF7:AF67) -> 0.1513078704 | AG4: =SUM(AG7:AG67) -> 0.1567571667 | AH4: 0.1637153333 | AI4: 0.1706122037 | AJ4: 0.1759850926 | AK4: 0.1787836686 | AL4: 0.1944383194 | AM4: 0.2101174769 | AN4: =SUM(AN7:AN67) -> 0.1831155482
C6: posn | E6: time | F6: Gender | G6: Age cat | H6: Gen/Age | I6: rank in cat | L6: Team A | M6: Team B | N6: Team C | O6: Team D | P6: Team E | Q6: Team F | R6: Team G | S6: Team H | T6: Team I | V6: Team A | W6: Team B | X6: Team C | Y6: Team D | Z6: Team E | AA6: Team F | AB6: Team G | AC6: Team H | AD6: Team I | AF6: Team A | AG6: Team B | AH6: Team C | AI6: Team D | AJ6: Team E | AK6: Team F | AL6: Team G | AM6: Team H | AN6: Team I | AT6: Name | AU6: Age Category | AV6: Time | AW6: Time 2 | AX6: Gender | AY6: Cat | BB6: RUNNER | BC6: CATEGORY | BD6: TIME | BE6: LDRBOARD | BF6: time 2
C7: 1 | D7: =AT7 -> Simon Heath | E7: =AW7 -> 00:29:37 | F7: =AX7 -> M | G7: =AY7 -> S | H7: =F7&" "&G7 -> M S | I7: =COUNTIFS($H$7:$H$57,H7,$E$7:$E$57,"<"&E7)+1 -> 1 | J7: =COUNTA(L7:U7) -> 1 | L7: 1 | V7: =IF(ISBLANK(L7)=TRUE(),"",IF(ISNUMBER(L7)=TRUE(),1,"overwrite manually")) -> 1 | W7: =IF(ISBLANK(M7)=TRUE(),"",IF(ISNUMBER(M7)=TRUE(),1,"overwrite manually")) ->  | X7: =IF(ISBLANK(N7)=TRUE(),"",IF(ISNUMBER(N7)=TRUE(),1,"overwrite manually")) ->  | Y7: =IF(ISBLANK(O7)=TRUE(),"",IF(ISNUMBER(O7)=TRUE(),1,"overwrite manually")) ->  | Z7: =IF(ISBLANK(P7)=TRUE(),"",IF(ISNUMBER(P7)=TRUE(),1,"overwrite manually")) ->  | AA7: =IF(ISBLANK(Q7)=TRUE(),"",IF(ISNUMBER(Q7)=TRUE(),1,"overwrite manually")) ->  | AF7: =IFERROR(V7*$E7,"") -> 00:29:37 | AG7: =IFERROR(W7*$E7,"") ->  | AT7: Simon Heath | AU7: M16-44 | AV7: 1.234027778 | AW7: =AV7/60 -> 0.02056712963 | AX7: M | AY7: S | BB7: Simon Heath | BC7: M16-44 | BD7: 29:37 | BE7: L | BF7: =BD7/60 -> 0.02056712963 | BH7: =BF7=AW7 -> TRUE
C8: 2 | D8: Todd Leckie | E8: 00:30:17 | F8: M | G8: S | H8: =F8&" "&G8 -> M S | I8: =COUNTIFS($H$7:$H$57,H8,$E$7:$E$57,"<"&E8)+1 -> 2 | J8: =COUNTA(L8:U8) -> 1 | M8: 2 | V8: =IF(ISBLANK(L8)=TRUE(),"",IF(ISNUMBER(L8)=TRUE(),1,"overwrite manually")) ->  | W8: =IF(ISBLANK(M8)=TRUE(),"",IF(ISNUMBER(M8)=TRUE(),1,"overwrite manually")) -> 1 | X8: =IF(ISBLANK(N8)=TRUE(),"",IF(ISNUMBER(N8)=TRUE(),1,"overwrite manually")) ->  | Y8: =IF(ISBLANK(O8)=TRUE(),"",IF(ISNUMBER(O8)=TRUE(),1,"overwrite manually")) ->  | Z8: =IF(ISBLANK(P8)=TRUE(),"",IF(ISNUMBER(P8)=TRUE(),1,"overwrite manually")) ->  | AA8: =IF(ISBLANK(Q8)=TRUE(),"",IF(ISNUMBER(Q8)=TRUE(),1,"overwrite manually")) ->  | AB8: =IF(ISBLANK(R8)=TRUE(),"",IF(ISNUMBER(R8)=TRUE(),1,"overwrite manually")) ->  | AC8: =IF(ISBLANK(S8)=TRUE(),"",IF(ISNUMBER(S8)=TRUE(),1,"overwrite manually")) ->  | AD8: =IF(ISBLANK(T8)=TRUE(),"",IF(ISNUMBER(T8)=TRUE(),1,"overwrite manually")) ->  | AF8: =IFERROR(V8*$E8,"") ->  | AG8: =IFERROR(W8*$E8,"") -> 00:30:17 | AH8: =IFERROR(X8*$E8,"") ->  | AI8: =IFERROR(Y8*$E8,"") ->  | AJ8: =IFERROR(Z8*$E8,"") ->  | AK8: =IFERROR(AA8*$E8,"") ->  | AL8: =IFERROR(AB8*$E8,"") ->  | AM8: =IFERROR(AC8*$E8,"") ->  | AN8: =IFERROR(AD8*$E8,"") ->  | AT8: Todd Leckie | AU8: M16-44 | AV8: 1.261805556 | AW8: 0.02103009259 | AX8: M | AY8: S | BB8: Todd Leckie | BC8: M16-44 | BD8: 30:17 | BE8: L | BF8: 0.02103009259 | BH8: =BF8=AW8 -> TRUE
C9: 3 | D9: Jon Clays | E9: 00:30:21 | F9: M | G9: S | H9: =F9&" "&G9 -> M S | I9: =COUNTIFS($H$7:$H$57,H9,$E$7:$E$57,"<"&E9)+1 -> 3 | J9: 1 | N9: 3 | X9: 1 | AH9: 00:30:21 | AT9: Jon Clays | AU9: M16-44 | AV9: 1.264583333 | AW9: 0.02107638889 | AX9: M | AY9: S | BB9: Jon Clays | BC9: M16-44 | BD9: 30:21 | BE9: L | BF9: 0.02107638889 | BH9: TRUE
C10: 4 | D10: Jim Lathbury | E10: 00:30:24 | F10: M | G10: S | H10: M S | I10: 4 | J10: 1 | O10: 4 | Y10: 1 | AI10: 00:30:24 | AT10: Jim Lathbury | AU10: M16-44 | AV10: 1.266666667 | AW10: 0.02111111111 | AX10: M | AY10: S | BB10: Jim Lathbury | BC10: M16-44 | BD10: 30:24 | BE10: L | BF10: 0.02111111111 | BH10: TRUE
C11: 5 | D11: Alex Garrod | E11: 00:31:05 | F11: M | G11: S | H11: M S | I11: 5 | J11: 1 | P11: 5 | Z11: 1 | AJ11: 00:31:05 | AT11: Alex Garrod | AU11: M16-44 | AV11: 1.295138889 | AW11: 0.02158564815 | AX11: M | AY11: S | BB11: Alex Garrod | BC11: M16-44 | BD11: 31:05 | BE11: L | BF11: 0.02158564815 | BH11: TRUE
C12: 6 | D12: Stuart Roberts | E12: 00:32:21 | F12: M | G12: V | H12: M V | I12: 1 | J12: 1 | L12: 1 | V12: 1 | AF12: 00:32:21 | AT12: Stuart Roberts | AU12: M45-59 | AV12: 1.347916667 | AW12: 0.02246527778 | AX12: M | AY12: V | BB12: Stuart Roberts | BC12: M45-59 | BD12: 32:21 | BE12: L | BF12: 0.02246527778 | BH12: TRUE
C13: 7 | D13: Paul Weir | E13: 00:32:36 | F13: M | G13: S | H13: M S | I13: 6 | J13: 1 | Q13: 6 | AA13: 1 | AK13: 00:32:36 | AT13: Paul Weir | AU13: M16-44 | AV13: 1.358333333 | AW13: 0.02263888889 | AX13: M | AY13: S | BB13: Paul Weir | BC13: M16-44 | BD13: 32:36 | BE13: L | BF13: 0.02263888889 | BH13: TRUE
C14: 8 | D14: Tom Clewley | E14: 00:33:00 | F14: M | G14: S | H14: M S | I14: 7 | J14: 1 | R14: 7 | AB14: 1 | AL14: 00:33:00 | AT14: Tom Clewley | AU14: M16-44 | AV14: 1.375 | AW14: 0.02291666667 | AX14: M | AY14: S | BB14: Tom Clewley | BC14: M16-44 | BD14: 33:00 | BE14: L | BF14: 0.02291666667 | BH14: TRUE
C15: 9 | D15: Matt Greenall | E15: 00:33:47 | F15: M | G15: V | H15: M V | I15: 2 | J15: 1 | M15: 2 | W15: 1 | AG15: 00:33:47 | AT15: Matt Greenall | AU15: M45-59 | AV15: 1.407638889 | AW15: 0.02346064815 | AX15: M | AY15: V | BB15: Matt Greenall | BC15: M45-59 | BD15: 33:47 | BE15: L | BF15: 0.02346064815 | BH15: TRUE
C16: 10 | D16: Tony Rickwood | E16: 00:33:55 | F16: M | G16: V | H16: M V | I16: 3 | J16: 1 | N16: 3 | X16: 1 | AH16: 00:33:55 | AT16: Tony Rickwood | AU16: M45-59 | AV16: 1.413194444 | AW16: 0.02355324074 | AX16: M | AY16: V | BB16: Tony Rickwood | BC16: M45-59 | BD16: 33:55 | BE16: L | BF16: 0.02355324074 | BH16: TRUE
C17: 11 | D17: Dermot Cameron | E17: 00:34:19 | F17: M | G17: S | H17: M S | I17: 8 | J17: 1 | S17: 8 | AC17: 1 | AM17: 00:34:19 | AT17: Dermot Cameron | AU17: M16-44 | AV17: 1.429861111 | AW17: 0.02383101852 | AX17: M | AY17: S | BB17: Dermot Cameron | BC17: M16-44 | BD17: 34:19 | BE17: L | BF17: 0.02383101852 | BH17: TRUE
C18: 12 | D18: Sébastien Béhuret | E18: 00:34:22 | F18: M | G18: S | H18: M S | I18: 9 | J18: 1 | T18: 9 | AD18: 1 | AN18: 00:34:22 | AT18: Sébastien Béhuret | AU18: M16-44 | AV18: 1.431944444 | AW18: 0.02386574074 | AX18: M | AY18: S | BB18: Sébastien Béhuret | BC18: M16-44 | BD18: 34:22 | BE18: L | BF18: 0.02386574074 | BH18: TRUE
C19: 13 | D19: Bobby Searle | E19: 00:34:23 | F19: F | G19: S | H19: F S | I19: 1 | J19: 1 | L19: 1 | V19: 1 | AF19: 00:34:23 | AT19: Bobby Searle | AU19: F16-44 | AV19: 1.432638889 | AW19: 0.02387731481 | AX19: F | AY19: S | BB19: Bobby Searle | BC19: F16-44 | BD19: 34:23 | BE19: L | BF19: 0.02387731481 | BH19: TRUE
C20: 14 | D20: Paul Lawrence | E20: 00:34:30 | F20: M | G20: V | H20: M V | I20: 4 | J20: 1 | O20: 4 | Y20: 1 | AI20: 00:34:30 | AT20: Paul Lawrence | AU20: M45-59 | AV20: 1.4375 | AW20: 0.02395833333 | AX20: M | AY20: V | BB20: Paul Lawrence | BC20: M45-59 | BD20: 34:30 | BE20: L | BF20: 0.02395833333 | BH20: TRUE
C21: 15 | D21: Geoff Pike | E21: 00:34:35 | F21: M | G21: V | H21: M V | I21: 5 | J21: 1 | P21: 5 | Z21: 1 | AJ21: 00:34:35 | AT21: Geoff Pike | AU21: M45-59 | AV21: 1.440972222 | AW21: 0.0240162037 | AX21: M | AY21: V | BB21: Geoff Pike | BC21: M45-59 | BD21: 34:35 | BE21: L | BF21: 0.0240162037 | BH21: TRUE
C22: 16 | D22: Donald Maclellan | E22: 00:34:40 | F22: M | G22: V | H22: M V | I22: 6 | J22: 1 | Q22: 6 | AA22: 1 | AK22: 00:34:40 | AT22: Donald Maclellan | AU22: M45-59 | AV22: 1.444444444 | AW22: 0.02407407407 | AX22: M | AY22: V | BB22: Donald Maclellan | BC22: M45-59 | BD22: 34:40 | BE22: L | BF22: 0.02407407407 | BH22: TRUE
C23: 17 | D23: Paul Whelpton | E23: 00:34:40 | F23: M | G23: SV | H23: M SV | I23: 1 | J23: 1 | L23: 1 | V23: 1 | AF23: 00:34:40 | AT23: Paul Whelpton | AU23: M60 | AV23: 1.444444444 | AW23: 0.02407407407 | AX23: M | AY23: SV | BB23: Paul Whelpton | BC23: M60 | BD23: 34:40 | BE23: L | BF23: 0.02407407407 | BH23: TRUE
C24: 18 | D24: Jim Whitelegg | E24: 00:34:59 | F24: M | G24: V | H24: M V | I24: 7 | J24: 1 | R24: 7 | AB24: 1 | AL24: 00:34:59 | AT24: Jim Whitelegg | AU24: M45-59 | AV24: 1.457638889 | AW24: 0.02429398148 | AX24: M | AY24: V | BB24: Jim Whitelegg | BC24: M45-59 | BD24: 34:59 | BE24: ADJUSTED | BF24: 0.02429398148 | BH24: TRUE
C25: 19 | D25: Tom Sanderson | E25: 00:35:47 | F25: M | G25: V | H25: M V | I25: 8 | J25: 1 | S25: 8 | AC25: 1 | AM25: 00:35:47 | AT25: Tom Sanderson | AU25: M45-59 | AV25: 1.490972222 | AW25: 0.02484953704 | AX25: M | AY25: V | BB25: Tom Sanderson | BC25: M45-59 | BD25: 35:47 | BE25: L | BF25: 0.02484953704 | BH25: TRUE
C26: 20 | D26: Erica Martin | E26: 00:36:06 | F26: F | G26: S | H26: F S | I26: 2 | J26: 1 | M26: 2 | W26: 1 | AG26: 00:36:06 | AT26: Erica Martin | AU26: F16-44 | AV26: 1.504166667 | AW26: 0.02506944444 | AX26: F | AY26: S | BB26: Erica Martin | BC26: F16-44 | BD26: 36:06 | BE26: L | BF26: 0.02506944444 | BH26: TRUE
C27: 21 | D27: Barry Blackwell | E27: 00:36:40 | F27: M | G27: V | H27: M V | I27: 9 | J27: 1 | T27: 9 | AD27: 1 | AN27: 00:36:40 | AT27: Barry Blackwell | AU27: M45-59 | AV27: 1.527777778 | AW27: 0.02546296296 | AX27: M | AY27: V | BB27: Barry Blackwell | BC27: M45-59 | BD27: 36:40 | BE27: ADJUSTED | BF27: 0.02546296296 | BH27: TRUE
C28: 22 | D28: Samantha Leader | E28: 00:37:03 | F28: F | G28: V | H28: F V | I28: 1 | J28: 1 | L28: 1 | V28: 1 | AF28: 00:37:03 | AT28: Samantha Leader | AU28: F45-59 | AV28: 1.54375 | AW28: 0.02572916667 | AX28: F | AY28: V | BB28: Samantha Leader | BC28: F45-59 | BD28: 37:03 | BE28: L | BF28: 0.02572916667 | BH28: TRUE
C29: 23 | D29: Andy Bone | E29: 00:37:12 | F29: M | G29: V | H29: M V | I29: 10 | J29: 1 | M29: as FSV | W29: 1.2656 | AG29: 00:47:04.819 | AT29: Andy Bone | AU29: M45-59 | AV29: 1.55 | AW29: 0.02583333333 | AX29: M | AY29: V | BB29: Andy Bone | BC29: M45-59 | BD29: 37:12 | BE29: L | BF29: 0.02583333333 | BH29: TRUE
C30: 24 | D30: Cat Bounds | E30: 00:37:22 | F30: F | G30: S | H30: F S | I30: 3 | J30: 1 | N30: 3 | X30: 1 | AH30: 00:37:22 | AT30: Cat Bounds | AU30: F16-44 | AV30: 1.556944444 | AW30: 0.02594907407 | AX30: F | AY30: S | BB30: Cat Bounds | BC30: F16-44 | BD30: 37:22 | BE30: L | BF30: 0.02594907407 | BH30: TRUE
C31: 25 | D31: Andrew Haslam | E31: 00:37:50 | F31: M | G31: S | H31: M S | I31: 10 | J31: 1 | R31: as M SV | AB31: 1.2656 | AL31: 00:47:52.912 | AT31: Andrew Haslam | AU31: M16-44 | AV31: 1.576388889 | AW31: 0.02627314815 | AX31: M | AY31: S | AZ31: tbc | BB31: Andrew Haslam | BC31: M16-44 | BD31: 37:50 | BE31: ESTIMATE | BF31: 0.02627314815 | BH31: TRUE
C32: 26 | D32: Sibel Recber | E32: 00:38:22 | F32: F | G32: S | H32: F S | I32: 4 | J32: 1 | O32: 4 | Y32: 1 | AI32: 00:38:22 | AT32: Sibel Recber | AU32: F16-44 | AV32: 1.598611111 | AW32: 0.02664351852 | AX32: F | AY32: S | BB32: Sibel Latchman | BC32: F16-44 | BD32: 38:22 | BE32: L | BF32: 0.02664351852 | BH32: TRUE
C33: 27 | D33: Andy Pumphrey | E33: 00:38:28 | F33: M | G33: V | H33: M V | I33: 11 | J33: 1 | N33: as F SV | X33: 1.2656 | AH33: 00:48:41.005 | AT33: Andy Pumphrey | AU33: M45-59 | AV33: 1.602777778 | AW33: 0.02671296296 | AX33: M | AY33: V | BB33: Andy Pumphrey | BC33: M45-59 | BD33: 38:28 | BE33: ESTIMATE | BF33: 0.02671296296 | BH33: TRUE
C34: 28 | D34: Sara Burns | E34: 00:38:29 | F34: F | G34: V | H34: F V | I34: 2 | J34: 1 | M34: 2 | W34: 1 | AG34: 00:38:29 | AT34: Sara Burns | AU34: F45-59 | AV34: 1.603472222 | AW34: 0.02672453704 | AX34: F | AY34: V | BB34: Sara Burns | BC34: F45-59 | BD34: 38:29 | BE34: L | BF34: 0.02672453704 | BH34: TRUE
C35: 29 | D35: Emily Budd | E35: 00:38:37 | F35: F | G35: S | H35: F S | I35: 5 | J35: 1 | P35: 5 | Z35: 1 | AJ35: 00:38:37 | AT35: Emily Budd | AU35: F16-44 | AV35: 1.609027778 | AW35: 0.02681712963 | AX35: F | AY35: S | BB35: Emily Budd | BC35: F16-44 | BD35: 38:37 | BE35: L | BF35: 0.02681712963 | BH35: TRUE
C36: 30 | D36: Andrew Brooks | E36: 00:39:09 | F36: M | G36: V | H36: M V | I36: 12 | J36: 1 | O36: as F SV | Y36: 1.2656 | AI36: 00:49:32.894 | AT36: Andrew Brooks | AU36: M45-59 | AV36: 1.63125 | AW36: 0.0271875 | AX36: M | AY36: V | BB36: Andrew Brooks | BC36: M45-59 | BD36: 39:09 | BE36: ADJUSTED | BF36: 0.0271875 | BH36: TRUE
C37: 31 | D37: Chelsey Hallam | E37: 00:39:36 | F37: F | G37: S | H37: F S | I37: 6 | J37: 1 | Q37: 6 | AA37: 1 | AK37: 00:39:36 | AT37: Chelsey Hallam | AU37: F16-44 | AV37: 1.65 | AW37: 0.0275 | AX37: F | AY37: S | BB37: Chelsey Hallam | BC37: F16-44 | BD37: 39:36 | BE37: L | BF37: 0.0275 | BH37: TRUE
C38: 32 | D38: Mike Townley | E38: 00:39:55 | F38: M | G38: V | H38: M V | I38: 13 | J38: 1 | P38: as FSV | Z38: 1.2656 | AJ38: 00:50:31.112 | AT38: Mike Townley | AU38: M45-59 | AV38: 1.663194444 | AW38: 0.02771990741 | AX38: M | AY38: V | BB38: Mike Townley | BC38: M45-59 | BD38: 39:55 | BE38: L | BF38: 0.02771990741 | BH38: TRUE
C39: 33 | D39: =AT39 -> Geoff Manns | E39: =AW39 -> 00:39:58 | F39: =AX39 -> M | G39: =AY39 -> V | H39: M V | I39: 14 | J39: 1 | Q39: as FSV | AA39: 1.2656 | AK39: 00:50:34.909 | AT39: Geoff Manns | AU39: M45-59 | AV39: 1.665277778 | AW39: =AV39/60 -> 0.02775462963 | AX39: M | AY39: V | BB39: Geoff Manns | BC39: M45-59 | BD39: 39:58 | BE39: L | BF39: =BD39/60 -> 0.02775462963 | BH39: TRUE
C40: 34 | D40: Georgie Anderson | E40: 00:39:59 | F40: F | G40: S | H40: F S | I40: 7 | J40: 1 | R40: 7 | AB40: 1 | AL40: 00:39:59 | AT40: Georgie Anderson | AU40: F16-44 | AV40: 1.665972222 | AW40: 0.0277662037 | AX40: F | AY40: S | BB40: Georgie Anderson | BC40: F16-44 | BD40: 39:59 | BE40: L | BF40: 0.0277662037 | BH40: TRUE
C41: 35 | D41: Dan Allen | E41: 00:40:00 | F41: M | G41: SV | H41: M SV | I41: 2 | J41: 1 | M41: 2 | W41: 1 | AG41: 00:40:00 | AT41: Dan Allen | AU41: M60 | AV41: 1.666666667 | AW41: 0.02777777778 | AX41: M | AY41: SV | BB41: Dan Allen | BC41: M60 | BD41: 40:00 | BE41: L | BF41: 0.02777777778 | BH41: TRUE
C42: 36 | D42: Jess Stribbling | E42: 00:40:05 | F42: F | G42: S | H42: F S | I42: 8 | J42: 1 | S42: 8 | AC42: 1 | AM42: 00:40:05 | AT42: Jess Stribbling | AU42: F16-44 | AV42: 1.670138889 | AW42: 0.02783564815 | AX42: F | AY42: S | BB42: Jess Stribbling | BC42: F16-44 | BD42: 40:05 | BE42: L | BF42: 0.02783564815 | BH42: TRUE
C43: 37 | D43: Amelia Culshaw | E43: 00:41:10 | F43: F | G43: V | H43: F V | I43: 3 | J43: 1 | N43: 3 | X43: 1 | AH43: 00:41:10 | AT43: Amelia Culshaw | AU43: F45-59 | AV43: 1.715277778 | AW43: 0.02858796296 | AX43: F | AY43: V | BB43: Amelia Culshaw | BC43: F45-59 | BD43: 41:10 | BE43: ADJUSTED | BF43: 0.02858796296 | BH43: TRUE
C44: 38 | D44: Rachel Gorman | E44: 00:41:13 | F44: F | G44: S | H44: F S | I44: 9 | J44: 1 | T44: 9 | AD44: 1 | AN44: 00:41:13 | AT44: Rachel Gorman | AU44: F16-44 | AV44: 1.717361111 | AW44: 0.02862268519 | AX44: F | AY44: S | BB44: Rachel Gorman | BC44: F16-44 | BD44: 41:13 | BE44: ADJUSTED | BF44: 0.02862268519 | BH44: TRUE
C45: 39 | D45: Liz Halliday | E45: 00:42:56 | F45: F | G45: V | H45: F V | I45: 4 | J45: 1 | O45: 4 | Y45: 1 | AI45: 00:42:56 | AT45: Liz Halliday | AU45: F45-59 | AV45: 1.788888889 | AW45: 0.02981481481 | AX45: F | AY45: V | BB45: Liz Halliday | BC45: F45-59 | BD45: 42:56 | BE45: L | BF45: 0.02981481481 | BH45: TRUE
C46: 40 | D46: Val Avella | E46: 00:44:08 | F46: F | G46: S | H46: F S | I46: 10 | J46: 1 | R46: as F SV | AB46: 1.2656 | AL46: 00:55:51.309 | AT46: Val Avella | AU46: F16-44 | AV46: 1.838888889 | AW46: 0.03064814815 | AX46: F | AY46: S | BB46: Val Avella | BC46: F16-44 | BD46: 44:08 | BE46: ADJUSTED | BF46: 0.03064814815 | BH46: TRUE
C47: 41 | D47: Andrew Haig | E47: 00:44:16 | F47: M | G47: SV | H47: M SV | I47: 3 | J47: 1 | N47: 3 | X47: 1 | AH47: 00:44:16 | AT47: Andrew Haig | AU47: M60 | AV47: 1.844444444 | AW47: 0.03074074074 | AX47: M | AY47: SV | BB47: Andrew Haig | BC47: M60 | BD47: 44:16 | BE47: ESTIMATE | BF47: 0.03074074074 | BH47: TRUE
C48: 42 | D48: Lisa Ebdon | E48: 00:47:31 | F48: F | G48: V | H48: F V | I48: 5 | J48: 1 | P48: 5 | Z48: 1 | AJ48: 00:47:31 | AT48: Lisa Ebdon | AU48: F45-59 | AV48: 1.979861111 | AW48: 0.03299768519 | AX48: F | AY48: V | BB48: Lisa Ebdon | BC48: F45-59 | BD48: 47:31 | BE48: ADJUSTED | BF48: 0.03299768519 | BH48: TRUE
C49: 43 | D49: Sarah Russell | E49: 00:48:54 | F49: F | G49: V | H49: F V | I49: 6 | J49: 1 | Q49: 6 | AA49: 1 | AK49: 00:48:54 | AT49: Sarah Russell | AU49: F45-59 | AV49: 2.0375 | AW49: 0.03395833333 | AX49: F | AY49: V | BB49: Sarah Russell | BC49: F45-59 | BD49: 48:54 | BE49: L | BF49: 0.03395833333 | BH49: TRUE
C50: 44 | D50: Jude Matthews | E50: 00:49:49 | F50: F | G50: SV | H50: F SV | I50: 1 | J50: 1 | L50: 1 | V50: 1 | AF50: 00:49:49 | AT50: Jude Matthews | AU50: F60 | AV50: 2.075694444 | AW50: 0.03459490741 | AX50: F | AY50: SV | BB50: Jude Matthews | BC50: F60 | BD50: 49:49 | BE50: L | BF50: 0.03459490741 | BH50: TRUE
C51: 45 | D51: Eogan McKenna | E51: 00:49:56 | F51: M | G51: SV | H51: M SV | I51: 4 | J51: 1 | O51: 4 | Y51: 1 | AI51: 00:49:56 | AT51: Eogan McKenna | AU51: M60 | AV51: 2.080555556 | AW51: 0.03467592593 | AX51: M | AY51: SV | BB51: Eogan McKenna | BC51: M60 | BD51: 49:56 | BE51: L | BF51: 0.03467592593 | BH51: TRUE
C52: 46 | D52: Rik Taub | E52: 00:51:06 | F52: M | G52: SV | H52: M SV | I52: 5 | J52: 1 | P52: 5 | Z52: 1 | AJ52: 00:51:06 | AT52: Rik Taub | AU52: M60 | AV52: 2.129166667 | AW52: 0.03548611111 | AX52: M | AY52: SV | BB52: Rik Taub | BC52: M60 | BD52: 51:06 | BE52: L | BF52: 0.03548611111 | BH52: TRUE
C53: 47 | D53: Malcolm Kemp | E53: 00:51:06 | F53: M | G53: SV | H53: M SV | I53: 6 | J53: 1 | Q53: 6 | AA53: 1 | AK53: 00:51:06 | AT53: Malcolm Kemp | AU53: M60 | AV53: 2.129166782 | AW53: 0.03548611304 | AX53: M | AY53: SV | BB53: Malcolm Kemp | BC53: M60 | BD53: 51:06 | BE53: ESTIMATE | BF53: 0.03548611111 | BH53: FALSE | BI53: .01 adjust to avoid equal ranking
C54: 48 | D54: Ella Grabsky | E54: 01:00:42 | F54: F | G54: S | H54: F S | I54: 11 | J54: 1 | R54: as F V | AB54: 1.125 | AL54: 01:08:17.250 | AT54: Ella Grabsky | AU54: F16-44 | AV54: 2.529166667 | AW54: 0.04215277778 | AX54: F | AY54: S | BB54: Ella Grabsky | BC54: F16-44 | BD54: 60:42 | BE54: ESTIMATE | BF54: 0.04215277778 | BH54: TRUE
C55: 49 | D55: Phil Grabsky | E55: 01:00:42 | F55: M | G55: V | H55: M V | I55: 15 | J55: 1 | S55: as FV | AC55: 1.125 | AM55: 01:08:17.250 | AT55: Phil Grabsky | AU55: M45-59 | AV55: 2.529166667 | AW55: 0.04215277778 | AX55: M | AY55: V | BB55: Phil Grabsky | BC55: M45-59 | BD55: 60:42 | BE55: SEGMENT | BF55: 0.04215277778 | BH55: TRUE
C56: 50 | D56: Richard Thompson | E56: 01:01:36 | F56: M | G56: V | H56: M V | I56: 16 | J56: 1 | S56: as M SV | AC56: 1.125 | AM56: 01:09:18 | AT56: Richard Thompson | AU56: M45-59 | AV56: 2.566666667 | AW56: 0.04277777778 | AX56: M | AY56: V | BB56: Richard Thompson | BC56: M45-59 | BD56: 61:36 | BE56: L | BF56: 0.04277777778 | BH56: TRUE
C57: 51
C58: 52
I59: =HHH!I61 -> 10% | K59: check | L59: =COUNTA(L7:L57) -> 6 | M59: =COUNTA(M7:M57) -> 6 | N59: 6 | O59: 6 | P59: 6 | Q59: 6 | R59: 6 | S59: 5 | T59: 3
I60: =TEXT(I59,"0.0%") -> 10.0%
E61: average | G61: cat | H61: Count | I61: ="AVG + "&I60 -> AVG + 10.0% | S61: Additional Cats | T61: Additional Cats
E62: =SUMIF($H$7:$H$57,G62,$E$7:$E$57)/H62 -> 00:32:23.100 | G62: M S | H62: =COUNTIF($H$7:$H$57,G62) -> 10 | I62: =E62*(1+$I$59) -> 00:35:37.410
E63: =SUMIF($H$7:$H$57,G63,$E$7:$E$57)/H63 -> 00:39:15.875 | G63: M V | H63: =COUNTIF($H$7:$H$57,G63) -> 16 | I63: =E63*(1+$I$59) -> 00:43:11.463
E64: 00:45:10.667 | G64: M SV | H64: 6 | I64: 00:49:41.733 | T64: M SV | AD64: 1 | AN64: =INDEX($E$62:$I$67,MATCH(T64,$G$62:$G$67,0),5)*AD64 -> 00:49:41.733
E65: 00:40:57.545 | G65: F S | H65: 11 | I65: 00:45:03.300
E66: 00:42:40.500 | G66: F V | H66: 6 | I66: 00:46:56.550 | T66: F V | AD66: 1 | AN66: 00:46:56.550
E67: 00:49:49 | G67: F SV | H67: 1 | I67: 00:54:47.900 | S67: F SV | T67: F SV | AC67: 1 | AD67: 1 | AM67: 00:54:47.900 | AN67: 00:54:47.900
H69: =SUM(H62:H68) -> 50
V70: Note
V71: the fastest runner in a team category is always allocated to their "natural category"

Sheet BHR
D1: =MID(CELL("filename",A1),FIND("]",CELL("filename",A1))+1,255) -> BHR
G2: S | H2: =to V44 | L2: 1 | M2: 2 | N2: 3 | O2: 4 | P2: 5 | X2: Team Time
G3: V | H3: = V45-V59
G4: SV | H4: =V60+ | K4: Team allocation | R4: Correction factors | X4: =SUM(X7:X41) -> 0.1761458333 | Y4: 0.2045601852 | Z4: 0.2073661296 | AA4: =SUM(AA7:AA41) -> 0.2422626852
C6: posn | E6: time | F6: Gender | G6: Age cat | H6: Gen/Age | I6: rank in cat | L6: Team A | M6: Team B | N6: Team C | O6: Team D | P6: Team E | R6: Team A | S6: Team B | T6: Team C | U6: Team D | V6: Team E | X6: Team A | Y6: Team B | Z6: Team C | AA6: Team D | AB6: Team E | AI6: Name | AL6: Age | AM6: Date | AN6: Time | AO6: Strava Y/N | AP6: Time 2
C7: 1 | D7: =AI7 -> Owen Wallek | E7: =AP7 -> 00:31:50 | F7: =AJ7 -> M | G7: =AK7 -> S | H7: =F7&" "&G7 -> M S | I7: =COUNTIFS($H$7:$H$31,H7,$E$7:$E$31,"<"&E7)+1 -> 1 | J7: =COUNTA(L7:P7) -> 1 | L7: 1 | R7: =IF(ISBLANK(L7)=TRUE(),"",IF(ISNUMBER(L7)=TRUE(),1,"overwrite manually")) -> 1 | S7: =IF(ISBLANK(M7)=TRUE(),"",IF(ISNUMBER(M7)=TRUE(),1,"overwrite manually")) ->  | X7: =IFERROR(R7*$E7,"") -> 00:31:50 | Y7: =IFERROR(S7*$E7,"") ->  | AI7: Owen Wallek | AJ7: M | AK7: S | AL7: S | AM7: 2020-12-12 | AN7: 31 - 50 | AO7: Y | AP7: =LEFT(AN7,2)/24/60+RIGHT(AN7,2)/24/60/60 -> 00:31:50
C8: 2 | D8: =AI8 -> Philip Wallek | E8: =AP8 -> 00:33:24 | F8: =AJ8 -> M | G8: =AK8 -> S | H8: =F8&" "&G8 -> M S | I8: =COUNTIFS($H$7:$H$31,H8,$E$7:$E$31,"<"&E8)+1 -> 2 | J8: =COUNTA(L8:P8) -> 1 | M8: 2 | R8: =IF(ISBLANK(L8)=TRUE(),"",IF(ISNUMBER(L8)=TRUE(),1,"overwrite manually")) ->  | S8: 1 | X8: =IFERROR(R8*$E8,"") ->  | Y8: 00:33:24 | AI8: Philip Wallek | AJ8: M | AK8: S | AL8: S | AM8: 2020-12-12 | AN8: 33 - 24 | AO8: Y | AP8: =LEFT(AN8,2)/24/60+RIGHT(AN8,2)/24/60/60 -> 00:33:24
C9: 3 | D9: Mark Nichol 1 | E9: 00:34:34 | F9: M | G9: S | H9: M S | I9: 3 | J9: 1 | N9: 3 | T9: 1 | Z9: 00:34:34 | AI9: Mark Nichol 1 | AJ9: M | AK9: S | AL9: S | AM9: 2020-12-08 | AN9: 34 - 34 | AO9: Y | AP9: 00:34:34
C10: 4 | D10: Oliver Day | E10: 00:35:07 | F10: M | G10: V | H10: M V | I10: 1 | J10: 1 | L10: 1 | R10: 1 | X10: 00:35:07 | AI10: Oliver Day | AJ10: M | AK10: V | AL10: 45-59 | AM10: 2020-12-08 | AN10: 35 - 07 | AO10: Y | AP10: 00:35:07
C11: 5 | D11: Ian Jones | E11: 00:37:54 | F11: M | G11: V | H11: M V | I11: 2 | J11: 1 | M11: 2 | S11: 1 | Y11: 00:37:54 | AI11: Ian Jones | AJ11: M | AK11: V | AL11: 45-59 | AM11: 2020-12-13 | AN11: 37 - 54 | AO11: Y | AP11: 00:37:54
C12: 6 | D12: Jamie Goodhead | E12: 00:38:39 | F12: M | G12: V | H12: M V | I12: 3 | J12: 1 | N12: 3 | T12: 1 | Z12: 00:38:39 | AI12: Jamie Goodhead | AJ12: M | AK12: V | AL12: 45-59 | AM12: 2020-12-08 | AN12: 38 - 39 | AO12: Y | AP12: 00:38:39
C13: 7 | D13: Flo Wolfe | E13: 00:42:57 | F13: F | G13: S | H13: F S | I13: 1 | J13: 1 | L13: 1 | R13: 1 | X13: 00:42:57 | AI13: Flo Wolfe | AJ13: F | AK13: S | AL13: S | AM13: 2020-12-13 | AN13: 42 - 57 | AO13: Y | AP13: 00:42:57
C14: 8 | D14: Stuart Condie | E14: 00:43:10 | F14: M | G14: SV | H14: M SV | I14: 1 | J14: 1 | L14: 1 | R14: 1 | X14: 00:43:10 | AI14: Stuart Condie | AJ14: M | AK14: SV | AL14: 60+ | AM14: 2020-12-07 | AN14: 43 - 10 | AO14: N | AP14: 00:43:10
C15: 9 | D15: Steve Barrett | E15: 00:44:52 | F15: M | G15: S | H15: M S | I15: 4 | J15: 1 | O15: 4 | U15: 1 | AA15: 00:44:52 | AI15: Steve Barrett | AJ15: M | AK15: S | AL15: S | AM15: 2020-12-12 | AN15: 44 - 52 | AO15: Y | AP15: 00:44:52
C16: 10 | D16: Richard Light | E16: 00:45:25 | F16: M | G16: SV | H16: M SV | I16: 2 | J16: 1 | M16: 2 | S16: 1 | Y16: 00:45:25 | AI16: Richard Light | AJ16: M | AK16: SV | AL16: 60+ | AM16: 2020-12-12 | AN16: 45 - 25 | AO16: Y | AP16: 00:45:25
C17: 11 | D17: Thomas Peel-Yates | E17: 00:46:43 | F17: M | G17: V | H17: M V | I17: 4 | J17: 1 | O17: 4 | U17: 1 | AA17: 00:46:43 | AI17: Thomas Peel-Yates | AJ17: M | AK17: V | AL17: 45-59 | AM17: 2020-12-12 | AN17: 46 - 43 | AO17: Y | AP17: 00:46:43
C18: 12 | D18: Mercy Dennis-Smith | E18: 00:46:50 | F18: F | G18: S | H18: F S | I18: 2 | J18: 1 | M18: 2 | S18: 1 | Y18: 00:46:50 | AI18: Mercy Dennis-Smith | AJ18: F | AK18: S | AL18: S | AM18: 2020-12-13 | AN18: 46 - 50 | AO18: Y | AP18: 00:46:50
C19: 13 | D19: Cameron Cooper | E19: 00:47:57 | F19: M | G19: S | H19: M S | I19: 5 | J19: 1 | N19: as F V | T19: 1.2656 | Z19: 01:00:41.131 | AI19: Cameron Cooper | AJ19: M | AK19: S | AL19: S | AM19: 2020-12-12 | AN19: 47 - 57 | AO19: Y | AP19: 00:47:57
C20: 14 | D20: Bill Whitehead | E20: 00:48:24 | F20: M | G20: V | H20: M V | I20: 5 | J20: 1 | N20: as F SV | T20: 1.2656 | Z20: 01:01:15.302 | AI20: Bill Whitehead | AJ20: M | AK20: V | AL20: 45-59 | AM20: 2020-12-13 | AN20: 48 - 24 | AO20: N | AP20: 00:48:24
C21: 15 | D21: Nicky Callus | E21: 00:49:35 | F21: F | G21: SV | H21: F SV | I21: 1 | J21: 1 | L21: 1 | R21: 1 | X21: 00:49:35 | AI21: Nicky Callus | AJ21: F | AK21: SV | AL21: 60+ | AM21: 2020-12-06 | AN21: 49 - 35 | AO21: Y | AP21: 00:49:35
C22: 16 | D22: Chris Hine | E22: 00:50:35 | F22: M | G22: S | H22: M S | I22: 6 | J22: 1 | O22: as F V | U22: 1.2656 | AA22: 01:04:01.096 | AI22: Chris Hine | AJ22: M | AK22: S | AL22: S | AM22: 2020-12-12 | AN22: 50 - 35 | AO22: Y | AP22: 00:50:35
C23: 17 | D23: Emma Buckland | E23: 00:51:00 | F23: F | G23: V | H23: F V | I23: 1 | J23: 1 | L23: 1 | R23: 1 | V23: =IF(ISBLANK(P23)=TRUE(),"",IF(ISNUMBER(P23)=TRUE(),1,"overwrite manually")) ->  | X23: 00:51:00 | AI23: Emma Buckland | AJ23: F | AK23: V | AL23: 45-59 | AM23: 2020-12-06 | AN23: 51 - 00 | AO23: Y | AP23: 00:51:00
C24: 18 | D24: Pete Brownlie | E24: 00:51:40 | F24: M | G24: SV | H24: M SV | I24: 3 | J24: 1 | N24: 3 | T24: 1 | Z24: 00:51:40 | AI24: Pete Brownlie | AJ24: M | AK24: SV | AL24: 60+ | AM24: 2020-12-07 | AN24: 51 - 40 | AO24: N | AP24: 00:51:40
C25: 19 | D25: Christelle Maugiron | E25: 00:51:47 | F25: F | G25: S | H25: F S | I25: 3 | J25: 1 | N25: 3 | T25: 1 | Z25: 00:51:47 | AI25: Christelle Maugiron | AJ25: F | AK25: S | AL25: S | AM25: 2020-12-06 | AN25: 51 - 47 | AO25: ? | AP25: 00:51:47
C26: 20 | D26: Kim Gow | E26: 00:52:53 | F26: F | G26: SV | H26: F SV | I26: 2 | J26: 1 | M26: 2 | S26: 1 | Y26: 00:52:53 | AI26: Kim Gow | AJ26: F | AK26: SV | AL26: 60+ | AM26: 2020-12-06 | AN26: 52 - 53 | AO26: y | AP26: 00:52:53
C27: 21 | D27: David Clark | E27: 01:01:54 | F27: M | G27: SV | H27: M SV | I27: 4 | J27: 1 | O27: 4 | U27: 1 | AA27: 01:01:54 | AI27: David Clark | AJ27: M | AK27: SV | AL27: 60+ | AM27: 2020-12-06 | AN27: 61-54 | AO27: N | AP27: 01:01:54
C28: 22 | D28: Isabelle Adlam | E28: 01:15:00 | F28: F | G28: S | H28: F S | I28: 4 | J28: 1 | O28: 4 | U28: 1 | AA28: 01:15:00 | AI28: Isabelle Adlam | AJ28: F | AK28: S | AL28: S | AM28: 2020-12-13 | AN28: 75 - 00 | AO28: Y | AP28: 01:15:00
C29: 23 | D29: Eileen Adlam | E29: 01:18:08 | F29: F | G29: V | H29: F V | I29: 2 | J29: 1 | M29: 2 | S29: 1 | Y29: 01:18:08 | AI29: Eileen Adlam | AJ29: F | AK29: V | AL29: 45-59 | AM29: 2020-12-13 | AN29: 78 - 08 | AO29: N | AP29: 01:18:08
C30: 24
C31: 25
I33: =HHH!I61 -> 10% | K33: check | L33: =COUNTA(L7:L31) -> 6 | M33: =COUNTA(M7:M31) -> 6 | N33: 6 | O33: 5 | P33: 0
I34: =TEXT(I33,"0.0%") -> 10.0%
E35: average | G35: cat | H35: Count | I35: ="AVG + "&I34 -> AVG + 10.0% | O35: additional
E36: =SUMIF($H$7:$H$31,G36,$E$7:$E$31)/H36 -> 00:40:32 | G36: M S | H36: =COUNTIF($H$7:$H$31,G36) -> 6 | I36: =E36*(1+$I$33) -> 00:44:35.200
E37: =SUMIF($H$7:$H$31,G37,$E$7:$E$31)/H37 -> 00:41:21.400 | G37: M V | H37: =COUNTIF($H$7:$H$31,G37) -> 5 | I37: =E37*(1+$I$33) -> 00:45:29.540
E38: 00:50:32.250 | G38: M SV | H38: 4 | I38: 00:55:35.475
E39: 00:54:08.500 | G39: F S | H39: 4 | I39: 00:59:33.350
E40: 01:04:34 | G40: F V | H40: 2 | I40: 01:11:01.400
E41: 00:51:14 | G41: F SV | H41: 2 | I41: 00:56:21.400 | O41: F SV | U41: 1 | AA41: =INDEX($E$36:$I$41,MATCH(O41,$G$36:$G$41,0),5)*U41 -> 00:56:21.400
H43: =SUM(H36:H42) -> 23
R44: Note
R45: the fastest runner in a team category is always allocated to their "natural category"

Sheet Sheet3
